Workbook

Sheet ETAPA 12
A1: Obs.: Selecione até 3 pilotos colocando na frente do seu nome os números 1, 2 e 3. | H1: PILOTO | I1: =J52 -> Maurício Júnior | J1: =K52 -> Daniel Nahum | K1: =L52 -> Marcelo Clemente
A2: 1 | B2: Maurício Júnior | H2: MÉDIA | I2: =AVERAGE(J53:J97) -> 00:00:49.912 | J2: =AVERAGE(K53:K97) -> 00:00:49.891 | K2: =AVERAGE(L53:L97) -> 00:00:49.932
A3: 2 | B3: Daniel Nahum | H3: MAXIMA | I3: =LARGE(J53:J97,1) -> 00:00:55.464 | J3: =LARGE(K53:K97,1) -> 00:00:56.163 | K3: =LARGE(L53:L97,1) -> 00:00:56.323
A4: 3 | B4: Marcelo Clemente | H4: MÍNIMA | I4: =SMALL(J53:J97,1) -> 00:00:49.252 | J4: =SMALL(K53:K97,1) -> 00:00:49.179 | K4: =SMALL(L53:L97,1) -> 00:00:49.286
B5: Wesley Canuto | H5: Desvio Padrão | I5: =_xlfn.STDEV.S(J53:J97) -> 00:00:00.989 | J5: =_xlfn.STDEV.S(K53:K97) -> 00:00:01.094 | K5: =_xlfn.STDEV.S(L53:L97) -> 00:00:01.121
B6: Jarbas Reis | H6: TEMPO TOTAL | I6: =SUM(J53:J97,1) -> 1.021952095 | J6: =SUM(K53:K97,1) -> 1.021942951 | K6: =SUM(L53:L97,1) -> 1.021961042
B7: Wesley Bambirra
B8: Marcelo Pereira
B9: Marcelo Marcondes
B10: Vitor Gatti
B11: Tati Marcondes
B12: Cláudio Naves
B13: Lucca Veloso | K13: =SMALL(I4:K4,1)-L13 -> 00:00:49.179
B14: Felipe Bouhid | K14: =LARGE(I3:K3,1)+L13 -> 00:00:56.323
B15: Marcelo Campos
B16: Raphael Reis
B17: Rodrigo Ricardo
B18: Jucimar Vieira
B19: Guilherme Alves
B20: Hélio Chagas
B21: Leandro Malias
B22: Marcelo Chagas
A32: 1
A50: ETAPA | B50: PILOTO | C50: NÚMERO VOLTAS | D50: KART | E50: Volta Tm | F50: velocidade Media | J50: =MATCH(J52,$B$51:$B$1500,0) -> 1 | K50: =MATCH(K52,$B$51:$B$1500,0) -> 39 | L50: 77
A51: 12 | B51: Maurício Júnior | C51: 38 | D51: 127 | E51: 00:00:55.464 | F51: 51.21 | J51: =VLOOKUP(J$52,$B$50:$F$1500,2,FALSE) -> 38 | K51: =VLOOKUP(K$52,$B$50:$F$1500,2,FALSE) -> 38 | L51: =VLOOKUP(L$52,$B$50:$F$1500,2,FALSE) -> 38
A52: 12 | B52: Maurício Júnior | C52: 38 | D52: 127 | E52: 00:00:50.327 | F52: 56.44 | I52: VOLTA | J52: =VLOOKUP(1,$A$2:$B$36,2,FALSE) -> Maurício Júnior | K52: =VLOOKUP(2,$A$2:$B$36,2,FALSE) -> Daniel Nahum | L52: =VLOOKUP(3,$A$2:$B$36,2,FALSE) -> Marcelo Clemente
A53: 12 | B53: Maurício Júnior | C53: 38 | D53: 127 | E53: 00:00:50.186 | F53: 56.6 | I53: 1 | J53: =OFFSET($E$51:$E$1500,J50-1,,J51) -> 00:00:55.464 | K53: =OFFSET($E$51:$E$1500,K50-1,,K51) -> 00:00:56.163 | L53: =OFFSET($E$51:$E$1500,L50-1,,L51) -> 00:00:56.323
A54: 12 | B54: Maurício Júnior | C54: 38 | D54: 127 | E54: 00:00:50.130 | F54: 56.66 | I54: 2 | J54: 00:00:50.327 | K54: 00:00:49.915 | L54: 00:00:49.889
A55: 12 | B55: Maurício Júnior | C55: 38 | D55: 127 | E55: 00:00:49.981 | F55: 56.83 | I55: 3 | J55: 00:00:50.186 | K55: 00:00:49.653 | L55: 00:00:49.920
A56: 12 | B56: Maurício Júnior | C56: 38 | D56: 127 | E56: 00:00:50.054 | F56: 56.75 | I56: 4 | J56: 00:00:50.130 | K56: 00:00:50.224 | L56: 00:00:50.057
A57: 12 | B57: Maurício Júnior | C57: 38 | D57: 127 | E57: 00:00:49.912 | F57: 56.91 | I57: 5 | J57: 00:00:49.981 | K57: 00:00:49.865 | L57: 00:00:49.941
A58: 12 | B58: Maurício Júnior | C58: 38 | D58: 127 | E58: 00:00:50.113 | F58: 56.68 | I58: 6 | J58: 00:00:50.054 | K58: 00:00:49.797 | L58: 00:00:49.947
A59: 12 | B59: Maurício Júnior | C59: 38 | D59: 127 | E59: 00:00:49.944 | F59: 56.87 | I59: 7 | J59: 00:00:49.912 | K59: 00:00:50.126 | L59: 00:00:49.901
A60: 12 | B60: Maurício Júnior | C60: 38 | D60: 127 | E60: 00:00:49.857 | F60: 56.97 | I60: 8 | J60: 00:00:50.113 | K60: 00:00:49.773 | L60: 00:00:50.111
A61: 12 | B61: Maurício Júnior | C61: 38 | D61: 127 | E61: 00:00:49.775 | F61: 57.06 | I61: 9 | J61: 00:00:49.944 | K61: 00:00:50.177 | L61: 00:00:49.958
A62: 12 | B62: Maurício Júnior | C62: 38 | D62: 127 | E62: 00:00:49.803 | F62: 57.03 | I62: 10 | J62: 00:00:49.857 | K62: 00:00:49.687 | L62: 00:00:49.939
A63: 12 | B63: Maurício Júnior | C63: 38 | D63: 127 | E63: 00:00:49.813 | F63: 57.02 | I63: 11 | J63: 00:00:49.775 | K63: 00:00:49.949 | L63: 00:00:49.701
A64: 12 | B64: Maurício Júnior | C64: 38 | D64: 127 | E64: 00:00:49.897 | F64: 56.93 | I64: 12 | J64: 00:00:49.803 | K64: 00:00:50.803 | L64: 00:00:50.111
A65: 12 | B65: Maurício Júnior | C65: 38 | D65: 127 | E65: 00:00:50.176 | F65: 56.61 | I65: 13 | J65: 00:00:49.813 | K65: 00:00:49.610 | L65: 00:00:49.727
A66: 12 | B66: Maurício Júnior | C66: 38 | D66: 127 | E66: 00:00:50.364 | F66: 56.4 | I66: 14 | J66: 00:00:49.897 | K66: 00:00:49.624 | L66: 00:00:49.696
A67: 12 | B67: Maurício Júnior | C67: 38 | D67: 127 | E67: 00:00:50.703 | F67: 56.02 | I67: 15 | J67: 00:00:50.176 | K67: 00:00:49.699 | L67: 00:00:49.926
A68: 12 | B68: Maurício Júnior | C68: 38 | D68: 127 | E68: 00:00:49.252 | F68: 57.67 | I68: 16 | J68: 00:00:50.364 | K68: 00:00:49.874 | L68: 00:00:49.787
A69: 12 | B69: Maurício Júnior | C69: 38 | D69: 127 | E69: 00:00:49.351 | F69: 57.56 | I69: 17 | J69: 00:00:50.703 | K69: 00:00:50.020 | L69: 00:00:49.673
A70: 12 | B70: Maurício Júnior | C70: 38 | D70: 127 | E70: 00:00:49.586 | F70: 57.28 | I70: 18 | J70: 00:00:49.252 | K70: 00:00:49.179 | L70: 00:00:49.553
A71: 12 | B71: Maurício Júnior | C71: 38 | D71: 127 | E71: 00:00:49.486 | F71: 57.4 | I71: 19 | J71: 00:00:49.351 | K71: 00:00:49.467 | L71: 00:00:49.987
A72: 12 | B72: Maurício Júnior | C72: 38 | D72: 127 | E72: 00:00:49.662 | F72: 57.19 | I72: 20 | J72: 00:00:49.586 | K72: 00:00:49.482 | L72: 00:00:49.565
A73: 12 | B73: Maurício Júnior | C73: 38 | D73: 127 | E73: 00:00:49.913 | F73: 56.91 | I73: 21 | J73: 00:00:49.486 | K73: 00:00:49.500 | L73: 00:00:49.462
A74: 12 | B74: Maurício Júnior | C74: 38 | D74: 127 | E74: 00:00:49.410 | F74: 57.49 | I74: 22 | J74: 00:00:49.662 | K74: 00:00:49.329 | L74: 00:00:49.694
A75: 12 | B75: Maurício Júnior | C75: 38 | D75: 127 | E75: 00:00:49.508 | F75: 57.37 | I75: 23 | J75: 00:00:49.913 | K75: 00:00:49.762 | L75: 00:00:49.890
A76: 12 | B76: Maurício Júnior | C76: 38 | D76: 127 | E76: 00:00:50.275 | F76: 56.5 | I76: 24 | J76: 00:00:49.410 | K76: 00:00:49.307 | L76: 00:00:49.308
A77: 12 | B77: Maurício Júnior | C77: 38 | D77: 127 | E77: 00:00:49.562 | F77: 57.31 | I77: 25 | J77: 00:00:49.508 | K77: 00:00:50.143 | L77: 00:00:49.696
A78: 12 | B78: Maurício Júnior | C78: 38 | D78: 127 | E78: 00:00:49.647 | F78: 57.21 | I78: 26 | J78: 00:00:50.275 | K78: 00:00:50.150 | L78: 00:00:51.387
A79: 12 | B79: Maurício Júnior | C79: 38 | D79: 127 | E79: 00:00:49.307 | F79: 57.61 | I79: 27 | J79: 00:00:49.562 | K79: 00:00:49.700 | L79: 00:00:49.432
A80: 12 | B80: Maurício Júnior | C80: 38 | D80: 127 | E80: 00:00:49.412 | F80: 57.48 | I80: 28 | J80: 00:00:49.647 | K80: 00:00:49.427 | L80: 00:00:49.461
A81: 12 | B81: Maurício Júnior | C81: 38 | D81: 127 | E81: 00:00:49.372 | F81: 57.53 | I81: 29 | J81: 00:00:49.307 | K81: 00:00:49.434 | L81: 00:00:49.286
A82: 12 | B82: Maurício Júnior | C82: 38 | D82: 127 | E82: 00:00:49.427 | F82: 57.47 | I82: 30 | J82: 00:00:49.412 | K82: 00:00:49.588 | L82: 00:00:49.497
A83: 12 | B83: Maurício Júnior | C83: 38 | D83: 127 | E83: 00:00:49.651 | F83: 57.21 | I83: 31 | J83: 00:00:49.372 | K83: 00:00:49.405 | L83: 00:00:49.641
A84: 12 | B84: Maurício Júnior | C84: 38 | D84: 127 | E84: 00:00:49.584 | F84: 57.28 | I84: 32 | J84: 00:00:49.427 | K84: 00:00:49.638 | L84: 00:00:49.573
A85: 12 | B85: Maurício Júnior | C85: 38 | D85: 127 | E85: 00:00:49.446 | F85: 57.44 | I85: 33 | J85: 00:00:49.651 | K85: 00:00:49.981 | L85: 00:00:49.459
A86: 12 | B86: Maurício Júnior | C86: 38 | D86: 127 | E86: 00:00:49.552 | F86: 57.32 | I86: 34 | J86: 00:00:49.584 | K86: 00:00:49.505 | L86: 00:00:49.503
A87: 12 | B87: Maurício Júnior | C87: 38 | D87: 127 | E87: 00:00:49.366 | F87: 57.54 | I87: 35 | J87: 00:00:49.446 | K87: 00:00:49.658 | L87: 00:00:49.625
A88: 12 | B88: Maurício Júnior | C88: 38 | D88: 127 | E88: 00:00:49.393 | F88: 57.51 | I88: 36 | J88: 00:00:49.552 | K88: 00:00:49.363 | L88: 00:00:49.392
A89: 12 | B89: Daniel Nahum | C89: 38 | D89: 148 | E89: 00:00:56.163 | F89: 50.57 | I89: 37 | J89: 00:00:49.366 | K89: 00:00:49.473 | L89: 00:00:49.541
A90: 12 | B90: Daniel Nahum | C90: 38 | D90: 148 | E90: 00:00:49.915 | F90: 56.9 | I90: 38 | J90: 00:00:49.393 | K90: 00:00:49.421 | L90: 00:00:49.875
A91: 12 | B91: Daniel Nahum | C91: 38 | D91: 148 | E91: 00:00:49.653 | F91: 57.21 | I91: 39
A92: 12 | B92: Daniel Nahum | C92: 38 | D92: 148 | E92: 00:00:50.224 | F92: 56.55 | I92: 40
A93: 12 | B93: Daniel Nahum | C93: 38 | D93: 148 | E93: 00:00:49.865 | F93: 56.96 | I93: 41
A94: 12 | B94: Daniel Nahum | C94: 38 | D94: 148 | E94: 00:00:49.797 | F94: 57.04 | I94: 42
A95: 12 | B95: Daniel Nahum | C95: 38 | D95: 148 | E95: 00:00:50.126 | F95: 56.67 | I95: 43
A96: 12 | B96: Daniel Nahum | C96: 38 | D96: 148 | E96: 00:00:49.773 | F96: 57.07 | I96: 44
A97: 12 | B97: Daniel Nahum | C97: 38 | D97: 148 | E97: 00:00:50.177 | F97: 56.61 | I97: 45
A98: 12 | B98: Daniel Nahum | C98: 38 | D98: 148 | E98: 00:00:49.687 | F98: 57.17
A99: 12 | B99: Daniel Nahum | C99: 38 | D99: 148 | E99: 00:00:49.949 | F99: 56.87
A100: 12 | B100: Daniel Nahum | C100: 38 | D100: 148 | E100: 00:00:50.803 | F100: 55.91
A101: 12 | B101: Daniel Nahum | C101: 38 | D101: 148 | E101: 00:00:49.610 | F101: 57.25
A102: 12 | B102: Daniel Nahum | C102: 38 | D102: 148 | E102: 00:00:49.624 | F102: 57.24
A103: 12 | B103: Daniel Nahum | C103: 38 | D103: 148 | E103: 00:00:49.699 | F103: 57.15
A104: 12 | B104: Daniel Nahum | C104: 38 | D104: 148 | E104: 00:00:49.874 | F104: 56.95
A105: 12 | B105: Daniel Nahum | C105: 38 | D105: 148 | E105: 00:00:50.020 | F105: 56.79
A106: 12 | B106: Daniel Nahum | C106: 38 | D106: 148 | E106: 00:00:49.179 | F106: 57.76
A107: 12 | B107: Daniel Nahum | C107: 38 | D107: 148 | E107: 00:00:49.467 | F107: 57.42
A108: 12 | B108: Daniel Nahum | C108: 38 | D108: 148 | E108: 00:00:49.482 | F108: 57.4
A109: 12 | B109: Daniel Nahum | C109: 38 | D109: 148 | E109: 00:00:49.500 | F109: 57.38
A110: 12 | B110: Daniel Nahum | C110: 38 | D110: 148 | E110: 00:00:49.329 | F110: 57.58
A111: 12 | B111: Daniel Nahum | C111: 38 | D111: 148 | E111: 00:00:49.762 | F111: 57.08
A112: 12 | B112: Daniel Nahum | C112: 38 | D112: 148 | E112: 00:00:49.307 | F112: 57.61
A113: 12 | B113: Daniel Nahum | C113: 38 | D113: 148 | E113: 00:00:50.143 | F113: 56.65
A114: 12 | B114: Daniel Nahum | C114: 38 | D114: 148 | E114: 00:00:50.150 | F114: 56.64
A115: 12 | B115: Daniel Nahum | C115: 38 | D115: 148 | E115: 00:00:49.700 | F115: 57.15
A116: 12 | B116: Daniel Nahum | C116: 38 | D116: 148 | E116: 00:00:49.427 | F116: 57.47
A117: 12 | B117: Daniel Nahum | C117: 38 | D117: 148 | E117: 00:00:49.434 | F117: 57.46
A118: 12 | B118: Daniel Nahum | C118: 38 | D118: 148 | E118: 00:00:49.588 | F118: 57.28
A119: 12 | B119: Daniel Nahum | C119: 38 | D119: 148 | E119: 00:00:49.405 | F119: 57.49
A120: 12 | B120: Daniel Nahum | C120: 38 | D120: 148 | E120: 00:00:49.638 | F120: 57.22
A121: 12 | B121: Daniel Nahum | C121: 38 | D121: 148 | E121: 00:00:49.981 | F121: 56.83
A122: 12 | B122: Daniel Nahum | C122: 38 | D122: 148 | E122: 00:00:49.505 | F122: 57.38
A123: 12 | B123: Daniel Nahum | C123: 38 | D123: 148 | E123: 00:00:49.658 | F123: 57.2
A124: 12 | B124: Daniel Nahum | C124: 38 | D124: 148 | E124: 00:00:49.363 | F124: 57.54
A125: 12 | B125: Daniel Nahum | C125: 38 | D125: 148 | E125: 00:00:49.473 | F125: 57.41
A126: 12 | B126: Daniel Nahum | C126: 38 | D126: 148 | E126: 00:00:49.421 | F126: 57.47
A127: 12 | B127: Marcelo Clemente | C127: 38 | D127: 129 | E127: 00:00:56.323 | F127: 50.43
A128: 12 | B128: Marcelo Clemente | C128: 38 | D128: 129 | E128: 00:00:49.889 | F128: 56.93
A129: 12 | B129: Marcelo Clemente | C129: 38 | D129: 129 | E129: 00:00:49.920 | F129: 56.9
A130: 12 | B130: Marcelo Clemente | C130: 38 | D130: 129 | E130: 00:00:50.057 | F130: 56.74
A131: 12 | B131: Marcelo Clemente | C131: 38 | D131: 129 | E131: 00:00:49.941 | F131: 56.88
A132: 12 | B132: Marcelo Clemente | C132: 38 | D132: 129 | E132: 00:00:49.947 | F132: 56.87
A133: 12 | B133: Marcelo Clemente | C133: 38 | D133: 129 | E133: 00:00:49.901 | F133: 56.92
A134: 12 | B134: Marcelo Clemente | C134: 38 | D134: 129 | E134: 00:00:50.111 | F134: 56.68
A135: 12 | B135: Marcelo Clemente | C135: 38 | D135: 129 | E135: 00:00:49.958 | F135: 56.86
A136: 12 | B136: Marcelo Clemente | C136: 38 | D136: 129 | E136: 00:00:49.939 | F136: 56.88
A137: 12 | B137: Marcelo Clemente | C137: 38 | D137: 129 | E137: 00:00:49.701 | F137: 57.15
A138: 12 | B138: Marcelo Clemente | C138: 38 | D138: 129 | E138: 00:00:50.111 | F138: 56.68
A139: 12 | B139: Marcelo Clemente | C139: 38 | D139: 129 | E139: 00:00:49.727 | F139: 57.12
A140: 12 | B140: Marcelo Clemente | C140: 38 | D140: 129 | E140: 00:00:49.696 | F140: 57.16
A141: 12 | B141: Marcelo Clemente | C141: 38 | D141: 129 | E141: 00:00:49.926 | F141: 56.89
A142: 12 | B142: Marcelo Clemente | C142: 38 | D142: 129 | E142: 00:00:49.787 | F142: 57.05
A143: 12 | B143: Marcelo Clemente | C143: 38 | D143: 129 | E143: 00:00:49.673 | F143: 57.18
A144: 12 | B144: Marcelo Clemente | C144: 38 | D144: 129 | E144: 00:00:49.553 | F144: 57.32
A145: 12 | B145: Marcelo Clemente | C145: 38 | D145: 129 | E145: 00:00:49.987 | F145: 56.82
A146: 12 | B146: Marcelo Clemente | C146: 38 | D146: 129 | E146: 00:00:49.565 | F146: 57.31
A147: 12 | B147: Marcelo Clemente | C147: 38 | D147: 129 | E147: 00:00:49.462 | F147: 57.43
A148: 12 | B148: Marcelo Clemente | C148: 38 | D148: 129 | E148: 00:00:49.694 | F148: 57.16
A149: 12 | B149: Marcelo Clemente | C149: 38 | D149: 129 | E149: 00:00:49.890 | F149: 56.93
A150: 12 | B150: Marcelo Clemente | C150: 38 | D150: 129 | E150: 00:00:49.308 | F150: 57.61
A151: 12 | B151: Marcelo Clemente | C151: 38 | D151: 129 | E151: 00:00:49.696 | F151: 57.16
A152: 12 | B152: Marcelo Clemente | C152: 38 | D152: 129 | E152: 00:00:51.387 | F152: 55.27
A153: 12 | B153: Marcelo Clemente | C153: 38 | D153: 129 | E153: 00:00:49.432 | F153: 57.46
A154: 12 | B154: Marcelo Clemente | C154: 38 | D154: 129 | E154: 00:00:49.461 | F154: 57.43
A155: 12 | B155: Marcelo Clemente | C155: 38 | D155: 129 | E155: 00:00:49.286 | F155: 57.63
A156: 12 | B156: Marcelo Clemente | C156: 38 | D156: 129 | E156: 00:00:49.497 | F156: 57.39
A157: 12 | B157: Marcelo Clemente | C157: 38 | D157: 129 | E157: 00:00:49.641 | F157: 57.22
A158: 12 | B158: Marcelo Clemente | C158: 38 | D158: 129 | E158: 00:00:49.573 | F158: 57.3
A159: 12 | B159: Marcelo Clemente | C159: 38 | D159: 129 | E159: 00:00:49.459 | F159: 57.43
A160: 12 | B160: Marcelo Clemente | C160: 38 | D160: 129 | E160: 00:00:49.503 | F160: 57.38
A161: 12 | B161: Marcelo Clemente | C161: 38 | D161: 129 | E161: 00:00:49.625 | F161: 57.24
A162: 12 | B162: Marcelo Clemente | C162: 38 | D162: 129 | E162: 00:00:49.392 | F162: 57.51
A163: 12 | B163: Marcelo Clemente | C163: 38 | D163: 129 | E163: 00:00:49.541 | F163: 57.33
A164: 12 | B164: Marcelo Clemente | C164: 38 | D164: 129 | E164: 00:00:49.875 | F164: 56.95
A165: 12 | B165: Wesley Canuto | C165: 38 | D165: 121 | E165: 00:00:56.765 | F165: 50.04
A166: 12 | B166: Wesley Canuto | C166: 38 | D166: 121 | E166: 00:00:49.803 | F166: 57.03
A167: 12 | B167: Wesley Canuto | C167: 38 | D167: 121 | E167: 00:00:49.864 | F167: 56.96
A168: 12 | B168: Wesley Canuto | C168: 38 | D168: 121 | E168: 00:00:49.779 | F168: 57.06
A169: 12 | B169: Wesley Canuto | C169: 38 | D169: 121 | E169: 00:00:49.760 | F169: 57.08
A170: 12 | B170: Wesley Canuto | C170: 38 | D170: 121 | E170: 00:00:49.883 | F170: 56.94
A171: 12 | B171: Wesley Canuto | C171: 38 | D171: 121 | E171: 00:00:50.849 | F171: 55.86
A172: 12 | B172: Wesley Canuto | C172: 38 | D172: 121 | E172: 00:00:49.738 | F172: 57.11
A173: 12 | B173: Wesley Canuto | C173: 38 | D173: 121 | E173: 00:00:49.899 | F173: 56.92
A174: 12 | B174: Wesley Canuto | C174: 38 | D174: 121 | E174: 00:00:49.802 | F174: 57.03
A175: 12 | B175: Wesley Canuto | C175: 38 | D175: 121 | E175: 00:00:49.768 | F175: 57.07
A176: 12 | B176: Wesley Canuto | C176: 38 | D176: 121 | E176: 00:00:50.509 | F176: 56.24
A177: 12 | B177: Wesley Canuto | C177: 38 | D177: 121 | E177: 00:00:49.440 | F177: 57.45
A178: 12 | B178: Wesley Canuto | C178: 38 | D178: 121 | E178: 00:00:49.733 | F178: 57.11
A179: 12 | B179: Wesley Canuto | C179: 38 | D179: 121 | E179: 00:00:49.599 | F179: 57.27
A180: 12 | B180: Wesley Canuto | C180: 38 | D180: 121 | E180: 00:00:49.951 | F180: 56.86
A181: 12 | B181: Wesley Canuto | C181: 38 | D181: 121 | E181: 00:00:49.537 | F181: 57.34
A182: 12 | B182: Wesley Canuto | C182: 38 | D182: 121 | E182: 00:00:49.573 | F182: 57.3
A183: 12 | B183: Wesley Canuto | C183: 38 | D183: 121 | E183: 00:00:49.873 | F183: 56.95
A184: 12 | B184: Wesley Canuto | C184: 38 | D184: 121 | E184: 00:00:49.603 | F184: 57.26
A185: 12 | B185: Wesley Canuto | C185: 38 | D185: 121 | E185: 00:00:49.518 | F185: 57.36
A186: 12 | B186: Wesley Canuto | C186: 38 | D186: 121 | E186: 00:00:49.534 | F186: 57.34
A187: 12 | B187: Wesley Canuto | C187: 38 | D187: 121 | E187: 00:00:49.944 | F187: 56.87
A188: 12 | B188: Wesley Canuto | C188: 38 | D188: 121 | E188: 00:00:49.440 | F188: 57.45
A189: 12 | B189: Wesley Canuto | C189: 38 | D189: 121 | E189: 00:00:49.611 | F189: 57.25
A190: 12 | B190: Wesley Canuto | C190: 38 | D190: 121 | E190: 00:00:50.190 | F190: 56.59
A191: 12 | B191: Wesley Canuto | C191: 38 | D191: 121 | E191: 00:00:49.605 | F191: 57.26
A192: 12 | B192: Wesley Canuto | C192: 38 | D192: 121 | E192: 00:00:49.517 | F192: 57.36
A193: 12 | B193: Wesley Canuto | C193: 38 | D193: 121 | E193: 00:00:49.444 | F193: 57.45
A194: 12 | B194: Wesley Canuto | C194: 38 | D194: 121 | E194: 00:00:49.452 | F194: 57.44
A195: 12 | B195: Wesley Canuto | C195: 38 | D195: 121 | E195: 00:00:49.876 | F195: 56.95
A196: 12 | B196: Wesley Canuto | C196: 38 | D196: 121 | E196: 00:00:50.062 | F196: 56.74
A197: 12 | B197: Wesley Canuto | C197: 38 | D197: 121 | E197: 00:00:49.462 | F197: 57.43
A198: 12 | B198: Wesley Canuto | C198: 38 | D198: 121 | E198: 00:00:49.474 | F198: 57.41
A199: 12 | B199: Wesley Canuto | C199: 38 | D199: 121 | E199: 00:00:49.678 | F199: 57.18
A200: 12 | B200: Wesley Canuto | C200: 38 | D200: 121 | E200: 00:00:49.580 | F200: 57.29
A201: 12 | B201: Wesley Canuto | C201: 38 | D201: 121 | E201: 00:00:49.659 | F201: 57.2
A202: 12 | B202: Wesley Canuto | C202: 38 | D202: 121 | E202: 00:00:49.879 | F202: 56.95
A203: 12 | B203: Jarbas Reis | C203: 38 | D203: 155 | E203: 00:00:57.158 | F203: 49.69
A204: 12 | B204: Jarbas Reis | C204: 38 | D204: 155 | E204: 00:00:50.168 | F204: 56.62
A205: 12 | B205: Jarbas Reis | C205: 38 | D205: 155 | E205: 00:00:49.958 | F205: 56.86
A206: 12 | B206: Jarbas Reis | C206: 38 | D206: 155 | E206: 00:00:49.958 | F206: 56.86
A207: 12 | B207: Jarbas Reis | C207: 38 | D207: 155 | E207: 00:00:49.835 | F207: 57
A208: 12 | B208: Jarbas Reis | C208: 38 | D208: 155 | E208: 00:00:50.206 | F208: 56.57
A209: 12 | B209: Jarbas Reis | C209: 38 | D209: 155 | E209: 00:00:50.022 | F209: 56.78
A210: 12 | B210: Jarbas Reis | C210: 38 | D210: 155 | E210: 00:00:49.673 | F210: 57.18
A211: 12 | B211: Jarbas Reis | C211: 38 | D211: 155 | E211: 00:00:49.582 | F211: 57.29
A212: 12 | B212: Jarbas Reis | C212: 38 | D212: 155 | E212: 00:00:49.750 | F212: 57.09
A213: 12 | B213: Jarbas Reis | C213: 38 | D213: 155 | E213: 00:00:49.669 | F213: 57.19
A214: 12 | B214: Jarbas Reis | C214: 38 | D214: 155 | E214: 00:00:50.830 | F214: 55.88
A215: 12 | B215: Jarbas Reis | C215: 38 | D215: 155 | E215: 00:00:49.714 | F215: 57.13
A216: 12 | B216: Jarbas Reis | C216: 38 | D216: 155 | E216: 00:00:49.760 | F216: 57.08
A217: 12 | B217: Jarbas Reis | C217: 38 | D217: 155 | E217: 00:00:49.667 | F217: 57.19
A218: 12 | B218: Jarbas Reis | C218: 38 | D218: 155 | E218: 00:00:49.615 | F218: 57.25
A219: 12 | B219: Jarbas Reis | C219: 38 | D219: 155 | E219: 00:00:50.382 | F219: 56.38
A220: 12 | B220: Jarbas Reis | C220: 38 | D220: 155 | E220: 00:00:49.527 | F220: 57.35
A221: 12 | B221: Jarbas Reis | C221: 38 | D221: 155 | E221: 00:00:49.597 | F221: 57.27
A222: 12 | B222: Jarbas Reis | C222: 38 | D222: 155 | E222: 00:00:49.501 | F222: 57.38
A223: 12 | B223: Jarbas Reis | C223: 38 | D223: 155 | E223: 00:00:49.256 | F223: 57.67
A224: 12 | B224: Jarbas Reis | C224: 38 | D224: 155 | E224: 00:00:49.438 | F224: 57.45
A225: 12 | B225: Jarbas Reis | C225: 38 | D225: 155 | E225: 00:00:49.879 | F225: 56.95
A226: 12 | B226: Jarbas Reis | C226: 38 | D226: 155 | E226: 00:00:49.662 | F226: 57.19
... 561 more rows

Sheet ETAPA 11
A1: Obs.: Selecione até 3 pilotos colocando na frente do seu nome os números 1, 2 e 3. | H1: PILOTO | I1: =J52 -> Marcelo Campos | J1: =K52 -> Marcelo Chagas | K1: =L52 -> Maurício Júnior
A2: 1 | B2: Marcelo Campos | H2: MÉDIA | I2: =AVERAGE(J53:J97) -> 00:01:06.826 | J2: =AVERAGE(K53:K97) -> 00:01:06.833 | K2: =AVERAGE(L53:L97) -> 00:01:06.885
A3: 2 | B3: Marcelo Chagas | H3: MAXIMA | I3: =LARGE(J53:J97,1) -> 00:01:16.530 | J3: =LARGE(K53:K97,1) -> 00:01:13.260 | K3: =LARGE(L53:L97,1) -> 00:01:10.287
A4: 3 | B4: Maurício Júnior | H4: MÍNIMA | I4: =SMALL(J53:J97,1) -> 00:01:05.786 | J4: =SMALL(K53:K97,1) -> 00:01:05.862 | K4: =SMALL(L53:L97,1) -> 00:01:05.915
B5: Marcelo Pereira | H5: Desvio Padrão | I5: =_xlfn.STDEV.S(J53:J97) -> 00:00:02.023 | J5: =_xlfn.STDEV.S(K53:K97) -> 00:00:01.351 | K5: =_xlfn.STDEV.S(L53:L97) -> 00:00:00.836
B6: Wesley Canuto | H6: TEMPO TOTAL | I6: =SUM(J53:J97,1) -> 1.020883183 | J6: =SUM(K53:K97,1) -> 1.020885405 | K6: =SUM(L53:L97,1) -> 1.020901447
B7: Eduardo Henrique
B8: Guilherme Alves
B9: Jarbas Reis
B10: Wesley Bambirra
B11: JEAN PAUL
B12: Vitor Gatti
B13: Alexandre Melillo | K13: =SMALL(I4:K4,1)-L13 -> 00:01:05.786
B14: Rodrigo Ricardo | K14: =LARGE(I3:K3,1)+L13 -> 00:01:16.530
B15: Raphael Reis
B16: Frederico Papatella
B17: CARLOS SAMPAIO
B18: Felipe Bouhid
B19: Leandro Malias
B20: Jucimar Vieira
B21: Tati Marcondes
B22: Cláudio Naves
B23: Hélio Chagas
B24: Wesley Camargos
B25: Renato Amaral
B26: Marcelo Clemente
B27: Daniel Nahum
B28: Roberta Epifânio
B29: Marcelo Marcondes
A32: 1
A50: ETAPA | B50: PILOTO | C50: NÚMERO VOLTAS | D50: KART | E50: Volta Tm | F50: velocidade Media | J50: =MATCH(J52,$B$51:$B$1500,0) -> 1 | K50: =MATCH(K52,$B$51:$B$1500,0) -> 28 | L50: 55
A51: 11 | B51: Marcelo Campos | C51: 27 | D51: 110 | E51: 00:01:16.530 | F51: 51.6 | J51: =VLOOKUP(J$52,$B$50:$F$1500,2,FALSE) -> 27 | K51: =VLOOKUP(K$52,$B$50:$F$1500,2,FALSE) -> 27 | L51: =VLOOKUP(L$52,$B$50:$F$1500,2,FALSE) -> 27
A52: 11 | B52: Marcelo Campos | C52: 27 | D52: 110 | E52: 00:01:07.924 | F52: 58.14 | I52: VOLTA | J52: =VLOOKUP(1,$A$2:$B$36,2,FALSE) -> Marcelo Campos | K52: =VLOOKUP(2,$A$2:$B$36,2,FALSE) -> Marcelo Chagas | L52: =VLOOKUP(3,$A$2:$B$36,2,FALSE) -> Maurício Júnior
A53: 11 | B53: Marcelo Campos | C53: 27 | D53: 110 | E53: 00:01:07.487 | F53: 58.52 | I53: 1 | J53: =OFFSET($E$51:$E$1500,J50-1,,J51) -> 00:01:16.530 | K53: =OFFSET($E$51:$E$1500,K50-1,,K51) -> 00:01:13.260 | L53: =OFFSET($E$51:$E$1500,L50-1,,L51) -> 00:01:10.287
A54: 11 | B54: Marcelo Campos | C54: 27 | D54: 110 | E54: 00:01:06.758 | F54: 59.16 | I54: 2 | J54: 00:01:07.924 | K54: 00:01:07.166 | L54: 00:01:07.917
A55: 11 | B55: Marcelo Campos | C55: 27 | D55: 110 | E55: 00:01:06.240 | F55: 59.62 | I55: 3 | J55: 00:01:07.487 | K55: 00:01:06.973 | L55: 00:01:07.217
A56: 11 | B56: Marcelo Campos | C56: 27 | D56: 110 | E56: 00:01:06.241 | F56: 59.62 | I56: 4 | J56: 00:01:06.758 | K56: 00:01:06.640 | L56: 00:01:06.938
A57: 11 | B57: Marcelo Campos | C57: 27 | D57: 110 | E57: 00:01:06.674 | F57: 59.23 | I57: 5 | J57: 00:01:06.240 | K57: 00:01:06.364 | L57: 00:01:06.924
A58: 11 | B58: Marcelo Campos | C58: 27 | D58: 110 | E58: 00:01:05.855 | F58: 59.97 | I58: 6 | J58: 00:01:06.241 | K58: 00:01:06.582 | L58: 00:01:06.516
A59: 11 | B59: Marcelo Campos | C59: 27 | D59: 110 | E59: 00:01:06.155 | F59: 59.7 | I59: 7 | J59: 00:01:06.674 | K59: 00:01:06.645 | L59: 00:01:06.803
A60: 11 | B60: Marcelo Campos | C60: 27 | D60: 110 | E60: 00:01:06.270 | F60: 59.59 | I60: 8 | J60: 00:01:05.855 | K60: 00:01:06.553 | L60: 00:01:06.551
A61: 11 | B61: Marcelo Campos | C61: 27 | D61: 110 | E61: 00:01:06.266 | F61: 59.6 | I61: 9 | J61: 00:01:06.155 | K61: 00:01:06.760 | L61: 00:01:06.458
A62: 11 | B62: Marcelo Campos | C62: 27 | D62: 110 | E62: 00:01:05.998 | F62: 59.84 | I62: 10 | J62: 00:01:06.270 | K62: 00:01:06.735 | L62: 00:01:06.793
A63: 11 | B63: Marcelo Campos | C63: 27 | D63: 110 | E63: 00:01:05.923 | F63: 59.91 | I63: 11 | J63: 00:01:06.266 | K63: 00:01:06.808 | L63: 00:01:06.533
A64: 11 | B64: Marcelo Campos | C64: 27 | D64: 110 | E64: 00:01:06.270 | F64: 59.59 | I64: 12 | J64: 00:01:05.998 | K64: 00:01:06.944 | L64: 00:01:06.440
A65: 11 | B65: Marcelo Campos | C65: 27 | D65: 110 | E65: 00:01:06.122 | F65: 59.73 | I65: 13 | J65: 00:01:05.923 | K65: 00:01:06.564 | L65: 00:01:06.506
A66: 11 | B66: Marcelo Campos | C66: 27 | D66: 110 | E66: 00:01:06.023 | F66: 59.82 | I66: 14 | J66: 00:01:06.270 | K66: 00:01:06.357 | L66: 00:01:06.783
A67: 11 | B67: Marcelo Campos | C67: 27 | D67: 110 | E67: 00:01:06.819 | F67: 59.1 | I67: 15 | J67: 00:01:06.122 | K67: 00:01:06.599 | L67: 00:01:06.713
A68: 11 | B68: Marcelo Campos | C68: 27 | D68: 110 | E68: 00:01:06.041 | F68: 59.8 | I68: 16 | J68: 00:01:06.023 | K68: 00:01:06.206 | L68: 00:01:06.382
A69: 11 | B69: Marcelo Campos | C69: 27 | D69: 110 | E69: 00:01:06.120 | F69: 59.73 | I69: 17 | J69: 00:01:06.819 | K69: 00:01:06.206 | L69: 00:01:06.433
A70: 11 | B70: Marcelo Campos | C70: 27 | D70: 110 | E70: 00:01:05.786 | F70: 60.03 | I70: 18 | J70: 00:01:06.041 | K70: 00:01:06.159 | L70: 00:01:06.430
A71: 11 | B71: Marcelo Campos | C71: 27 | D71: 110 | E71: 00:01:06.046 | F71: 59.79 | I71: 19 | J71: 00:01:06.120 | K71: 00:01:05.960 | L71: 00:01:06.788
A72: 11 | B72: Marcelo Campos | C72: 27 | D72: 110 | E72: 00:01:07.442 | F72: 58.56 | I72: 20 | J72: 00:01:05.786 | K72: 00:01:05.862 | L72: 00:01:06.231
A73: 11 | B73: Marcelo Campos | C73: 27 | D73: 110 | E73: 00:01:06.680 | F73: 59.23 | I73: 21 | J73: 00:01:06.046 | K73: 00:01:06.052 | L73: 00:01:06.404
A74: 11 | B74: Marcelo Campos | C74: 27 | D74: 110 | E74: 00:01:05.984 | F74: 59.85 | I74: 22 | J74: 00:01:07.442 | K74: 00:01:07.342 | L74: 00:01:07.898
A75: 11 | B75: Marcelo Campos | C75: 27 | D75: 110 | E75: 00:01:06.411 | F75: 59.47 | I75: 23 | J75: 00:01:06.680 | K75: 00:01:06.388 | L75: 00:01:06.858
A76: 11 | B76: Marcelo Campos | C76: 27 | D76: 110 | E76: 00:01:06.536 | F76: 59.35 | I76: 24 | J76: 00:01:05.984 | K76: 00:01:06.281 | L76: 00:01:05.915
A77: 11 | B77: Marcelo Campos | C77: 27 | D77: 110 | E77: 00:01:07.706 | F77: 58.33 | I77: 25 | J77: 00:01:06.411 | K77: 00:01:06.422 | L77: 00:01:06.772
A78: 11 | B78: Marcelo Chagas | C78: 27 | D78: 128 | E78: 00:01:13.260 | F78: 53.91 | I78: 26 | J78: 00:01:06.536 | K78: 00:01:07.021 | L78: 00:01:06.502
A79: 11 | B79: Marcelo Chagas | C79: 27 | D79: 128 | E79: 00:01:07.166 | F79: 58.8 | I79: 27 | J79: 00:01:07.706 | K79: 00:01:07.650 | L79: 00:01:07.893
A80: 11 | B80: Marcelo Chagas | C80: 27 | D80: 128 | E80: 00:01:06.973 | F80: 58.97 | I80: 28
A81: 11 | B81: Marcelo Chagas | C81: 27 | D81: 128 | E81: 00:01:06.640 | F81: 59.26 | I81: 29
A82: 11 | B82: Marcelo Chagas | C82: 27 | D82: 128 | E82: 00:01:06.364 | F82: 59.51 | I82: 30
A83: 11 | B83: Marcelo Chagas | C83: 27 | D83: 128 | E83: 00:01:06.582 | F83: 59.31 | I83: 31
A84: 11 | B84: Marcelo Chagas | C84: 27 | D84: 128 | E84: 00:01:06.645 | F84: 59.26 | I84: 32
A85: 11 | B85: Marcelo Chagas | C85: 27 | D85: 128 | E85: 00:01:06.553 | F85: 59.34 | I85: 33
A86: 11 | B86: Marcelo Chagas | C86: 27 | D86: 128 | E86: 00:01:06.760 | F86: 59.16 | I86: 34
A87: 11 | B87: Marcelo Chagas | C87: 27 | D87: 128 | E87: 00:01:06.735 | F87: 59.18 | I87: 35
A88: 11 | B88: Marcelo Chagas | C88: 27 | D88: 128 | E88: 00:01:06.808 | F88: 59.11 | I88: 36
A89: 11 | B89: Marcelo Chagas | C89: 27 | D89: 128 | E89: 00:01:06.944 | F89: 58.99 | I89: 37
A90: 11 | B90: Marcelo Chagas | C90: 27 | D90: 128 | E90: 00:01:06.564 | F90: 59.33 | I90: 38
A91: 11 | B91: Marcelo Chagas | C91: 27 | D91: 128 | E91: 00:01:06.357 | F91: 59.51 | I91: 39
A92: 11 | B92: Marcelo Chagas | C92: 27 | D92: 128 | E92: 00:01:06.599 | F92: 59.3 | I92: 40
A93: 11 | B93: Marcelo Chagas | C93: 27 | D93: 128 | E93: 00:01:06.206 | F93: 59.65 | I93: 41
A94: 11 | B94: Marcelo Chagas | C94: 27 | D94: 128 | E94: 00:01:06.206 | F94: 59.65 | I94: 42
A95: 11 | B95: Marcelo Chagas | C95: 27 | D95: 128 | E95: 00:01:06.159 | F95: 59.69 | I95: 43
A96: 11 | B96: Marcelo Chagas | C96: 27 | D96: 128 | E96: 00:01:05.960 | F96: 59.87 | I96: 44
A97: 11 | B97: Marcelo Chagas | C97: 27 | D97: 128 | E97: 00:01:05.862 | F97: 59.96 | I97: 45
A98: 11 | B98: Marcelo Chagas | C98: 27 | D98: 128 | E98: 00:01:06.052 | F98: 59.79
A99: 11 | B99: Marcelo Chagas | C99: 27 | D99: 128 | E99: 00:01:07.342 | F99: 58.64
A100: 11 | B100: Marcelo Chagas | C100: 27 | D100: 128 | E100: 00:01:06.388 | F100: 59.49
A101: 11 | B101: Marcelo Chagas | C101: 27 | D101: 128 | E101: 00:01:06.281 | F101: 59.58
A102: 11 | B102: Marcelo Chagas | C102: 27 | D102: 128 | E102: 00:01:06.422 | F102: 59.46
A103: 11 | B103: Marcelo Chagas | C103: 27 | D103: 128 | E103: 00:01:07.021 | F103: 58.92
A104: 11 | B104: Marcelo Chagas | C104: 27 | D104: 128 | E104: 00:01:07.650 | F104: 58.38
A105: 11 | B105: Maurício Júnior | C105: 27 | D105: 103 | E105: 00:01:10.287 | F105: 56.19
A106: 11 | B106: Maurício Júnior | C106: 27 | D106: 103 | E106: 00:01:07.917 | F106: 58.15
A107: 11 | B107: Maurício Júnior | C107: 27 | D107: 103 | E107: 00:01:07.217 | F107: 58.75
A108: 11 | B108: Maurício Júnior | C108: 27 | D108: 103 | E108: 00:01:06.938 | F108: 59
A109: 11 | B109: Maurício Júnior | C109: 27 | D109: 103 | E109: 00:01:06.924 | F109: 59.01
A110: 11 | B110: Maurício Júnior | C110: 27 | D110: 103 | E110: 00:01:06.516 | F110: 59.37
A111: 11 | B111: Maurício Júnior | C111: 27 | D111: 103 | E111: 00:01:06.803 | F111: 59.12
A112: 11 | B112: Maurício Júnior | C112: 27 | D112: 103 | E112: 00:01:06.551 | F112: 59.34
A113: 11 | B113: Maurício Júnior | C113: 27 | D113: 103 | E113: 00:01:06.458 | F113: 59.42
A114: 11 | B114: Maurício Júnior | C114: 27 | D114: 103 | E114: 00:01:06.793 | F114: 59.13
A115: 11 | B115: Maurício Júnior | C115: 27 | D115: 103 | E115: 00:01:06.533 | F115: 59.36
A116: 11 | B116: Maurício Júnior | C116: 27 | D116: 103 | E116: 00:01:06.440 | F116: 59.44
A117: 11 | B117: Maurício Júnior | C117: 27 | D117: 103 | E117: 00:01:06.506 | F117: 59.38
A118: 11 | B118: Maurício Júnior | C118: 27 | D118: 103 | E118: 00:01:06.783 | F118: 59.13
A119: 11 | B119: Maurício Júnior | C119: 27 | D119: 103 | E119: 00:01:06.713 | F119: 59.2
A120: 11 | B120: Maurício Júnior | C120: 27 | D120: 103 | E120: 00:01:06.382 | F120: 59.49
A121: 11 | B121: Maurício Júnior | C121: 27 | D121: 103 | E121: 00:01:06.433 | F121: 59.45
A122: 11 | B122: Maurício Júnior | C122: 27 | D122: 103 | E122: 00:01:06.430 | F122: 59.45
A123: 11 | B123: Maurício Júnior | C123: 27 | D123: 103 | E123: 00:01:06.788 | F123: 59.13
A124: 11 | B124: Maurício Júnior | C124: 27 | D124: 103 | E124: 00:01:06.231 | F124: 59.63
A125: 11 | B125: Maurício Júnior | C125: 27 | D125: 103 | E125: 00:01:06.404 | F125: 59.47
A126: 11 | B126: Maurício Júnior | C126: 27 | D126: 103 | E126: 00:01:07.898 | F126: 58.16
A127: 11 | B127: Maurício Júnior | C127: 27 | D127: 103 | E127: 00:01:06.858 | F127: 59.07
A128: 11 | B128: Maurício Júnior | C128: 27 | D128: 103 | E128: 00:01:05.915 | F128: 59.91
A129: 11 | B129: Maurício Júnior | C129: 27 | D129: 103 | E129: 00:01:06.772 | F129: 59.14
A130: 11 | B130: Maurício Júnior | C130: 27 | D130: 103 | E130: 00:01:06.502 | F130: 59.38
A131: 11 | B131: Maurício Júnior | C131: 27 | D131: 103 | E131: 00:01:07.893 | F131: 58.17
A132: 11 | B132: Marcelo Pereira | C132: 27 | D132: 142 | E132: 00:01:12.976 | F132: 54.12
A133: 11 | B133: Marcelo Pereira | C133: 27 | D133: 142 | E133: 00:01:07.972 | F133: 58.1
A134: 11 | B134: Marcelo Pereira | C134: 27 | D134: 142 | E134: 00:01:07.728 | F134: 58.31
A135: 11 | B135: Marcelo Pereira | C135: 27 | D135: 142 | E135: 00:01:07.133 | F135: 58.83
A136: 11 | B136: Marcelo Pereira | C136: 27 | D136: 142 | E136: 00:01:06.374 | F136: 59.5
A137: 11 | B137: Marcelo Pereira | C137: 27 | D137: 142 | E137: 00:01:06.261 | F137: 59.6
A138: 11 | B138: Marcelo Pereira | C138: 27 | D138: 142 | E138: 00:01:06.390 | F138: 59.48
A139: 11 | B139: Marcelo Pereira | C139: 27 | D139: 142 | E139: 00:01:06.183 | F139: 59.67
A140: 11 | B140: Marcelo Pereira | C140: 27 | D140: 142 | E140: 00:01:06.445 | F140: 59.44
A141: 11 | B141: Marcelo Pereira | C141: 27 | D141: 142 | E141: 00:01:06.484 | F141: 59.4
A142: 11 | B142: Marcelo Pereira | C142: 27 | D142: 142 | E142: 00:01:06.492 | F142: 59.39
A143: 11 | B143: Marcelo Pereira | C143: 27 | D143: 142 | E143: 00:01:06.470 | F143: 59.41
A144: 11 | B144: Marcelo Pereira | C144: 27 | D144: 142 | E144: 00:01:06.398 | F144: 59.48
A145: 11 | B145: Marcelo Pereira | C145: 27 | D145: 142 | E145: 00:01:06.586 | F145: 59.31
A146: 11 | B146: Marcelo Pereira | C146: 27 | D146: 142 | E146: 00:01:06.506 | F146: 59.38
A147: 11 | B147: Marcelo Pereira | C147: 27 | D147: 142 | E147: 00:01:06.462 | F147: 59.42
A148: 11 | B148: Marcelo Pereira | C148: 27 | D148: 142 | E148: 00:01:06.442 | F148: 59.44
A149: 11 | B149: Marcelo Pereira | C149: 27 | D149: 142 | E149: 00:01:06.266 | F149: 59.6
A150: 11 | B150: Marcelo Pereira | C150: 27 | D150: 142 | E150: 00:01:06.211 | F150: 59.65
A151: 11 | B151: Marcelo Pereira | C151: 27 | D151: 142 | E151: 00:01:06.259 | F151: 59.6
A152: 11 | B152: Marcelo Pereira | C152: 27 | D152: 142 | E152: 00:01:06.462 | F152: 59.42
A153: 11 | B153: Marcelo Pereira | C153: 27 | D153: 142 | E153: 00:01:06.287 | F153: 59.58
A154: 11 | B154: Marcelo Pereira | C154: 27 | D154: 142 | E154: 00:01:06.236 | F154: 59.62
A155: 11 | B155: Marcelo Pereira | C155: 27 | D155: 142 | E155: 00:01:06.264 | F155: 59.6
A156: 11 | B156: Marcelo Pereira | C156: 27 | D156: 142 | E156: 00:01:06.150 | F156: 59.7
A157: 11 | B157: Marcelo Pereira | C157: 27 | D157: 142 | E157: 00:01:06.415 | F157: 59.46
A158: 11 | B158: Marcelo Pereira | C158: 27 | D158: 142 | E158: 00:01:06.154 | F158: 59.7
A159: 11 | B159: Wesley Canuto | C159: 27 | D159: 143 | E159: 00:01:12.043 | F159: 54.82
A160: 11 | B160: Wesley Canuto | C160: 27 | D160: 143 | E160: 00:01:07.307 | F160: 58.67
A161: 11 | B161: Wesley Canuto | C161: 27 | D161: 143 | E161: 00:01:07.178 | F161: 58.79
A162: 11 | B162: Wesley Canuto | C162: 27 | D162: 143 | E162: 00:01:06.572 | F162: 59.32
A163: 11 | B163: Wesley Canuto | C163: 27 | D163: 143 | E163: 00:01:06.964 | F163: 58.97
A164: 11 | B164: Wesley Canuto | C164: 27 | D164: 143 | E164: 00:01:06.647 | F164: 59.26
A165: 11 | B165: Wesley Canuto | C165: 27 | D165: 143 | E165: 00:01:06.846 | F165: 59.08
A166: 11 | B166: Wesley Canuto | C166: 27 | D166: 143 | E166: 00:01:06.723 | F166: 59.19
A167: 11 | B167: Wesley Canuto | C167: 27 | D167: 143 | E167: 00:01:06.762 | F167: 59.15
A168: 11 | B168: Wesley Canuto | C168: 27 | D168: 143 | E168: 00:01:06.675 | F168: 59.23
A169: 11 | B169: Wesley Canuto | C169: 27 | D169: 143 | E169: 00:01:07.372 | F169: 58.62
A170: 11 | B170: Wesley Canuto | C170: 27 | D170: 143 | E170: 00:01:07.122 | F170: 58.84
A171: 11 | B171: Wesley Canuto | C171: 27 | D171: 143 | E171: 00:01:06.823 | F171: 59.1
A172: 11 | B172: Wesley Canuto | C172: 27 | D172: 143 | E172: 00:01:06.681 | F172: 59.23
A173: 11 | B173: Wesley Canuto | C173: 27 | D173: 143 | E173: 00:01:06.467 | F173: 59.42
A174: 11 | B174: Wesley Canuto | C174: 27 | D174: 143 | E174: 00:01:06.383 | F174: 59.49
A175: 11 | B175: Wesley Canuto | C175: 27 | D175: 143 | E175: 00:01:06.392 | F175: 59.48
A176: 11 | B176: Wesley Canuto | C176: 27 | D176: 143 | E176: 00:01:06.552 | F176: 59.34
A177: 11 | B177: Wesley Canuto | C177: 27 | D177: 143 | E177: 00:01:06.617 | F177: 59.28
A178: 11 | B178: Wesley Canuto | C178: 27 | D178: 143 | E178: 00:01:06.676 | F178: 59.23
A179: 11 | B179: Wesley Canuto | C179: 27 | D179: 143 | E179: 00:01:07.431 | F179: 58.57
A180: 11 | B180: Wesley Canuto | C180: 27 | D180: 143 | E180: 00:01:06.330 | F180: 59.54
A181: 11 | B181: Wesley Canuto | C181: 27 | D181: 143 | E181: 00:01:06.324 | F181: 59.54
A182: 11 | B182: Wesley Canuto | C182: 27 | D182: 143 | E182: 00:01:06.436 | F182: 59.44
A183: 11 | B183: Wesley Canuto | C183: 27 | D183: 143 | E183: 00:01:06.695 | F183: 59.21
A184: 11 | B184: Wesley Canuto | C184: 27 | D184: 143 | E184: 00:01:06.520 | F184: 59.37
A185: 11 | B185: Wesley Canuto | C185: 27 | D185: 143 | E185: 00:01:07.509 | F185: 58.5
A186: 11 | B186: Eduardo Henrique | C186: 27 | D186: 130 | E186: 00:01:13.227 | F186: 53.93
A187: 11 | B187: Eduardo Henrique | C187: 27 | D187: 130 | E187: 00:01:08.177 | F187: 57.93
A188: 11 | B188: Eduardo Henrique | C188: 27 | D188: 130 | E188: 00:01:07.434 | F188: 58.56
A189: 11 | B189: Eduardo Henrique | C189: 27 | D189: 130 | E189: 00:01:06.795 | F189: 59.12
A190: 11 | B190: Eduardo Henrique | C190: 27 | D190: 130 | E190: 00:01:06.663 | F190: 59.24
A191: 11 | B191: Eduardo Henrique | C191: 27 | D191: 130 | E191: 00:01:07.111 | F191: 58.85
A192: 11 | B192: Eduardo Henrique | C192: 27 | D192: 130 | E192: 00:01:06.603 | F192: 59.29
A193: 11 | B193: Eduardo Henrique | C193: 27 | D193: 130 | E193: 00:01:06.983 | F193: 58.96
A194: 11 | B194: Eduardo Henrique | C194: 27 | D194: 130 | E194: 00:01:07.120 | F194: 58.84
A195: 11 | B195: Eduardo Henrique | C195: 27 | D195: 130 | E195: 00:01:06.520 | F195: 59.37
A196: 11 | B196: Eduardo Henrique | C196: 27 | D196: 130 | E196: 00:01:06.362 | F196: 59.51
A197: 11 | B197: Eduardo Henrique | C197: 27 | D197: 130 | E197: 00:01:06.407 | F197: 59.47
A198: 11 | B198: Eduardo Henrique | C198: 27 | D198: 130 | E198: 00:01:06.557 | F198: 59.34
A199: 11 | B199: Eduardo Henrique | C199: 27 | D199: 130 | E199: 00:01:06.403 | F199: 59.47
A200: 11 | B200: Eduardo Henrique | C200: 27 | D200: 130 | E200: 00:01:06.821 | F200: 59.1
A201: 11 | B201: Eduardo Henrique | C201: 27 | D201: 130 | E201: 00:01:06.250 | F201: 59.61
A202: 11 | B202: Eduardo Henrique | C202: 27 | D202: 130 | E202: 00:01:06.375 | F202: 59.5
A203: 11 | B203: Eduardo Henrique | C203: 27 | D203: 130 | E203: 00:01:06.456 | F203: 59.43
A204: 11 | B204: Eduardo Henrique | C204: 27 | D204: 130 | E204: 00:01:06.139 | F204: 59.71
A205: 11 | B205: Eduardo Henrique | C205: 27 | D205: 130 | E205: 00:01:06.285 | F205: 59.58
A206: 11 | B206: Eduardo Henrique | C206: 27 | D206: 130 | E206: 00:01:06.640 | F206: 59.26
A207: 11 | B207: Eduardo Henrique | C207: 27 | D207: 130 | E207: 00:01:06.544 | F207: 59.35
A208: 11 | B208: Eduardo Henrique | C208: 27 | D208: 130 | E208: 00:01:06.459 | F208: 59.42
A209: 11 | B209: Eduardo Henrique | C209: 27 | D209: 130 | E209: 00:01:06.507 | F209: 59.38
A210: 11 | B210: Eduardo Henrique | C210: 27 | D210: 130 | E210: 00:01:06.734 | F210: 59.18
A211: 11 | B211: Eduardo Henrique | C211: 27 | D211: 130 | E211: 00:01:06.194 | F211: 59.66
A212: 11 | B212: Eduardo Henrique | C212: 27 | D212: 130 | E212: 00:01:07.223 | F212: 58.75
A213: 11 | B213: Guilherme Alves | C213: 27 | D213: 102 | E213: 00:01:14.561 | F213: 52.97
A214: 11 | B214: Guilherme Alves | C214: 27 | D214: 102 | E214: 00:01:07.700 | F214: 58.33
A215: 11 | B215: Guilherme Alves | C215: 27 | D215: 102 | E215: 00:01:07.860 | F215: 58.2
A216: 11 | B216: Guilherme Alves | C216: 27 | D216: 102 | E216: 00:01:08.540 | F216: 57.62
A217: 11 | B217: Guilherme Alves | C217: 27 | D217: 102 | E217: 00:01:06.791 | F217: 59.13
A218: 11 | B218: Guilherme Alves | C218: 27 | D218: 102 | E218: 00:01:06.562 | F218: 59.33
A219: 11 | B219: Guilherme Alves | C219: 27 | D219: 102 | E219: 00:01:06.308 | F219: 59.56
... 560 more rows

Sheet ETAPA 10
A1: Obs.: Selecione até 3 pilotos colocando na frente do seu nome os números 1, 2 e 3. | H1: PILOTO | I1: =J52 -> Marcelo Marcondes | J1: =K52 -> Wesley Canuto | K1: =L52 -> Maurício Júnior
A2: 1 | B2: Marcelo Marcondes | H2: MÉDIA | I2: =AVERAGE(J53:J97) -> 00:00:55.923 | J2: =AVERAGE(K53:K97) -> 00:00:55.988 | K2: =AVERAGE(L53:L97) -> 00:00:56.088
A3: 2 | B3: Wesley Canuto | H3: MAXIMA | I3: =LARGE(J53:J97,1) -> 00:01:01.663 | J3: =LARGE(K53:K97,1) -> 00:01:03.494 | K3: =LARGE(L53:L97,1) -> 00:01:03.837
A4: 3 | B4: Maurício Júnior | H4: MÍNIMA | I4: =SMALL(J53:J97,1) -> 00:00:55.380 | J4: =SMALL(K53:K97,1) -> 00:00:55.403 | K4: =SMALL(L53:L97,1) -> 00:00:55.510
B5: Daniel Nahum | H5: Desvio Padrão | I5: =_xlfn.STDEV.S(J53:J97) -> 00:00:01.082 | J5: =_xlfn.STDEV.S(K53:K97) -> 00:00:01.369 | K5: =_xlfn.STDEV.S(L53:L97) -> 00:00:01.423
B6: Alexandre Melillo | H6: TEMPO TOTAL | I6: =SUM(J53:J97,1) -> 1.021359444 | J6: =SUM(K53:K97,1) -> 1.02138434 | K6: =SUM(L53:L97,1) -> 1.021422442
B7: Marcelo Pereira
B8: Marcelo Campos
B9: Jarbas Reis
B10: Vitor Gatti
B11: Frederico Papatella
B12: Renato Amaral
B13: Rodrigo Ricardo | K13: =SMALL(I4:K4,1)-L13 -> 00:00:55.380
B14: Felipe Bouhid | K14: =LARGE(I3:K3,1)+L13 -> 00:01:03.837
B15: Jucimar Vieira
B16: Hélio Chagas
B17: Marcelo Chagas
A32: 1
A50: ETAPA | B50: PILOTO | C50: NÚMERO VOLTAS | D50: KART | E50: Volta Tm | F50: velocidade Media | J50: =MATCH(J52,$B$51:$B$1500,0) -> 1 | K50: =MATCH(K52,$B$51:$B$1500,0) -> 34 | L50: 67
A51: 10 | B51: Marcelo Marcondes | C51: 33 | D51: 114 | E51: 00:01:01.663 | F51: 57.56 | J51: =VLOOKUP(J$52,$B$50:$F$1500,2,FALSE) -> 33 | K51: =VLOOKUP(K$52,$B$50:$F$1500,2,FALSE) -> 33 | L51: =VLOOKUP(L$52,$B$50:$F$1500,2,FALSE) -> 33
A52: 10 | B52: Marcelo Marcondes | C52: 33 | D52: 114 | E52: 00:00:57.134 | F52: 62.13 | I52: VOLTA | J52: =VLOOKUP(1,$A$2:$B$36,2,FALSE) -> Marcelo Marcondes | K52: =VLOOKUP(2,$A$2:$B$36,2,FALSE) -> Wesley Canuto | L52: =VLOOKUP(3,$A$2:$B$36,2,FALSE) -> Maurício Júnior
A53: 10 | B53: Marcelo Marcondes | C53: 33 | D53: 114 | E53: 00:00:56.383 | F53: 62.96 | I53: 1 | J53: =OFFSET($E$51:$E$1500,J50-1,,J51) -> 00:01:01.663 | K53: =OFFSET($E$51:$E$1500,K50-1,,K51) -> 00:01:03.494 | L53: =OFFSET($E$51:$E$1500,L50-1,,L51) -> 00:01:03.837
A54: 10 | B54: Marcelo Marcondes | C54: 33 | D54: 114 | E54: 00:00:56.460 | F54: 62.87 | I54: 2 | J54: 00:00:57.134 | K54: 00:00:56.219 | L54: 00:00:56.293
A55: 10 | B55: Marcelo Marcondes | C55: 33 | D55: 114 | E55: 00:00:55.872 | F55: 63.53 | I55: 3 | J55: 00:00:56.383 | K55: 00:00:56.388 | L55: 00:00:57.259
A56: 10 | B56: Marcelo Marcondes | C56: 33 | D56: 114 | E56: 00:00:55.841 | F56: 63.57 | I56: 4 | J56: 00:00:56.460 | K56: 00:00:56.359 | L56: 00:00:56.028
A57: 10 | B57: Marcelo Marcondes | C57: 33 | D57: 114 | E57: 00:00:55.642 | F57: 63.79 | I57: 5 | J57: 00:00:55.872 | K57: 00:00:55.834 | L57: 00:00:55.942
A58: 10 | B58: Marcelo Marcondes | C58: 33 | D58: 114 | E58: 00:00:55.650 | F58: 63.78 | I58: 6 | J58: 00:00:55.841 | K58: 00:00:55.843 | L58: 00:00:55.871
A59: 10 | B59: Marcelo Marcondes | C59: 33 | D59: 114 | E59: 00:00:55.629 | F59: 63.81 | I59: 7 | J59: 00:00:55.642 | K59: 00:00:55.643 | L59: 00:00:55.690
A60: 10 | B60: Marcelo Marcondes | C60: 33 | D60: 114 | E60: 00:00:55.731 | F60: 63.69 | I60: 8 | J60: 00:00:55.650 | K60: 00:00:55.647 | L60: 00:00:55.920
A61: 10 | B61: Marcelo Marcondes | C61: 33 | D61: 114 | E61: 00:00:55.643 | F61: 63.79 | I61: 9 | J61: 00:00:55.629 | K61: 00:00:55.628 | L61: 00:00:55.763
A62: 10 | B62: Marcelo Marcondes | C62: 33 | D62: 114 | E62: 00:00:55.618 | F62: 63.82 | I62: 10 | J62: 00:00:55.731 | K62: 00:00:55.736 | L62: 00:00:56.037
A63: 10 | B63: Marcelo Marcondes | C63: 33 | D63: 114 | E63: 00:00:55.799 | F63: 63.61 | I63: 11 | J63: 00:00:55.643 | K63: 00:00:55.639 | L63: 00:00:55.824
A64: 10 | B64: Marcelo Marcondes | C64: 33 | D64: 114 | E64: 00:00:55.560 | F64: 63.89 | I64: 12 | J64: 00:00:55.618 | K64: 00:00:55.629 | L64: 00:00:55.811
A65: 10 | B65: Marcelo Marcondes | C65: 33 | D65: 114 | E65: 00:00:55.454 | F65: 64.01 | I65: 13 | J65: 00:00:55.799 | K65: 00:00:55.789 | L65: 00:00:55.819
A66: 10 | B66: Marcelo Marcondes | C66: 33 | D66: 114 | E66: 00:00:55.512 | F66: 63.94 | I66: 14 | J66: 00:00:55.560 | K66: 00:00:55.578 | L66: 00:00:55.771
A67: 10 | B67: Marcelo Marcondes | C67: 33 | D67: 114 | E67: 00:00:55.680 | F67: 63.75 | I67: 15 | J67: 00:00:55.454 | K67: 00:00:55.436 | L67: 00:00:55.938
A68: 10 | B68: Marcelo Marcondes | C68: 33 | D68: 114 | E68: 00:00:55.578 | F68: 63.87 | I68: 16 | J68: 00:00:55.512 | K68: 00:00:55.510 | L68: 00:00:55.731
A69: 10 | B69: Marcelo Marcondes | C69: 33 | D69: 114 | E69: 00:00:55.640 | F69: 63.8 | I69: 17 | J69: 00:00:55.680 | K69: 00:00:55.682 | L69: 00:00:55.775
A70: 10 | B70: Marcelo Marcondes | C70: 33 | D70: 114 | E70: 00:00:55.571 | F70: 63.88 | I70: 18 | J70: 00:00:55.578 | K70: 00:00:55.584 | L70: 00:00:55.837
A71: 10 | B71: Marcelo Marcondes | C71: 33 | D71: 114 | E71: 00:00:55.622 | F71: 63.82 | I71: 19 | J71: 00:00:55.640 | K71: 00:00:55.720 | L71: 00:00:55.867
A72: 10 | B72: Marcelo Marcondes | C72: 33 | D72: 114 | E72: 00:00:55.645 | F72: 63.79 | I72: 20 | J72: 00:00:55.571 | K72: 00:00:55.487 | L72: 00:00:55.800
A73: 10 | B73: Marcelo Marcondes | C73: 33 | D73: 114 | E73: 00:00:55.618 | F73: 63.82 | I73: 21 | J73: 00:00:55.622 | K73: 00:00:55.650 | L73: 00:00:55.986
A74: 10 | B74: Marcelo Marcondes | C74: 33 | D74: 114 | E74: 00:00:55.380 | F74: 64.1 | I74: 22 | J74: 00:00:55.645 | K74: 00:00:55.618 | L74: 00:00:55.748
A75: 10 | B75: Marcelo Marcondes | C75: 33 | D75: 114 | E75: 00:00:55.539 | F75: 63.91 | I75: 23 | J75: 00:00:55.618 | K75: 00:00:55.615 | L75: 00:00:55.638
A76: 10 | B76: Marcelo Marcondes | C76: 33 | D76: 114 | E76: 00:00:55.500 | F76: 63.96 | I76: 24 | J76: 00:00:55.380 | K76: 00:00:55.403 | L76: 00:00:55.635
A77: 10 | B77: Marcelo Marcondes | C77: 33 | D77: 114 | E77: 00:00:55.690 | F77: 63.74 | I77: 25 | J77: 00:00:55.539 | K77: 00:00:55.539 | L77: 00:00:55.622
A78: 10 | B78: Marcelo Marcondes | C78: 33 | D78: 114 | E78: 00:00:55.791 | F78: 63.62 | I78: 26 | J78: 00:00:55.500 | K78: 00:00:55.622 | L78: 00:00:55.605
A79: 10 | B79: Marcelo Marcondes | C79: 33 | D79: 114 | E79: 00:00:55.723 | F79: 63.7 | I79: 27 | J79: 00:00:55.690 | K79: 00:00:56.121 | L79: 00:00:55.510
A80: 10 | B80: Marcelo Marcondes | C80: 33 | D80: 114 | E80: 00:00:55.673 | F80: 63.76 | I80: 28 | J80: 00:00:55.791 | K80: 00:00:56.002 | L80: 00:00:55.911
A81: 10 | B81: Marcelo Marcondes | C81: 33 | D81: 114 | E81: 00:00:55.707 | F81: 63.72 | I81: 29 | J81: 00:00:55.723 | K81: 00:00:55.939 | L81: 00:00:55.799
A82: 10 | B82: Marcelo Marcondes | C82: 33 | D82: 114 | E82: 00:00:55.855 | F82: 63.55 | I82: 30 | J82: 00:00:55.673 | K82: 00:00:55.850 | L82: 00:00:55.542
A83: 10 | B83: Marcelo Marcondes | C83: 33 | D83: 114 | E83: 00:00:55.653 | F83: 63.78 | I83: 31 | J83: 00:00:55.707 | K83: 00:00:55.787 | L83: 00:00:55.728
A84: 10 | B84: Wesley Canuto | C84: 33 | D84: 111 | E84: 00:01:03.494 | F84: 55.9 | I84: 32 | J84: 00:00:55.855 | K84: 00:00:55.852 | L84: 00:00:55.581
A85: 10 | B85: Wesley Canuto | C85: 33 | D85: 111 | E85: 00:00:56.219 | F85: 63.14 | I85: 33 | J85: 00:00:55.653 | K85: 00:00:55.764 | L85: 00:00:55.781
A86: 10 | B86: Wesley Canuto | C86: 33 | D86: 111 | E86: 00:00:56.388 | F86: 62.95 | I86: 34
A87: 10 | B87: Wesley Canuto | C87: 33 | D87: 111 | E87: 00:00:56.359 | F87: 62.98 | I87: 35
A88: 10 | B88: Wesley Canuto | C88: 33 | D88: 111 | E88: 00:00:55.834 | F88: 63.57 | I88: 36
A89: 10 | B89: Wesley Canuto | C89: 33 | D89: 111 | E89: 00:00:55.843 | F89: 63.56 | I89: 37
A90: 10 | B90: Wesley Canuto | C90: 33 | D90: 111 | E90: 00:00:55.643 | F90: 63.79 | I90: 38
A91: 10 | B91: Wesley Canuto | C91: 33 | D91: 111 | E91: 00:00:55.647 | F91: 63.79 | I91: 39
A92: 10 | B92: Wesley Canuto | C92: 33 | D92: 111 | E92: 00:00:55.628 | F92: 63.81 | I92: 40
A93: 10 | B93: Wesley Canuto | C93: 33 | D93: 111 | E93: 00:00:55.736 | F93: 63.69 | I93: 41
A94: 10 | B94: Wesley Canuto | C94: 33 | D94: 111 | E94: 00:00:55.639 | F94: 63.8 | I94: 42
A95: 10 | B95: Wesley Canuto | C95: 33 | D95: 111 | E95: 00:00:55.629 | F95: 63.81 | I95: 43
A96: 10 | B96: Wesley Canuto | C96: 33 | D96: 111 | E96: 00:00:55.789 | F96: 63.63 | I96: 44
A97: 10 | B97: Wesley Canuto | C97: 33 | D97: 111 | E97: 00:00:55.578 | F97: 63.87 | I97: 45
A98: 10 | B98: Wesley Canuto | C98: 33 | D98: 111 | E98: 00:00:55.436 | F98: 64.03
A99: 10 | B99: Wesley Canuto | C99: 33 | D99: 111 | E99: 00:00:55.510 | F99: 63.95
A100: 10 | B100: Wesley Canuto | C100: 33 | D100: 111 | E100: 00:00:55.682 | F100: 63.75
A101: 10 | B101: Wesley Canuto | C101: 33 | D101: 111 | E101: 00:00:55.584 | F101: 63.86
A102: 10 | B102: Wesley Canuto | C102: 33 | D102: 111 | E102: 00:00:55.720 | F102: 63.7
A103: 10 | B103: Wesley Canuto | C103: 33 | D103: 111 | E103: 00:00:55.487 | F103: 63.97
A104: 10 | B104: Wesley Canuto | C104: 33 | D104: 111 | E104: 00:00:55.650 | F104: 63.78
A105: 10 | B105: Wesley Canuto | C105: 33 | D105: 111 | E105: 00:00:55.618 | F105: 63.82
A106: 10 | B106: Wesley Canuto | C106: 33 | D106: 111 | E106: 00:00:55.615 | F106: 63.82
A107: 10 | B107: Wesley Canuto | C107: 33 | D107: 111 | E107: 00:00:55.403 | F107: 64.07
A108: 10 | B108: Wesley Canuto | C108: 33 | D108: 111 | E108: 00:00:55.539 | F108: 63.91
A109: 10 | B109: Wesley Canuto | C109: 33 | D109: 111 | E109: 00:00:55.622 | F109: 63.82
A110: 10 | B110: Wesley Canuto | C110: 33 | D110: 111 | E110: 00:00:56.121 | F110: 63.25
A111: 10 | B111: Wesley Canuto | C111: 33 | D111: 111 | E111: 00:00:56.002 | F111: 63.38
A112: 10 | B112: Wesley Canuto | C112: 33 | D112: 111 | E112: 00:00:55.939 | F112: 63.45
A113: 10 | B113: Wesley Canuto | C113: 33 | D113: 111 | E113: 00:00:55.850 | F113: 63.56
A114: 10 | B114: Wesley Canuto | C114: 33 | D114: 111 | E114: 00:00:55.787 | F114: 63.63
A115: 10 | B115: Wesley Canuto | C115: 33 | D115: 111 | E115: 00:00:55.852 | F115: 63.55
A116: 10 | B116: Wesley Canuto | C116: 33 | D116: 111 | E116: 00:00:55.764 | F116: 63.65
A117: 10 | B117: Maurício Júnior | C117: 33 | D117: 154 | E117: 00:01:03.837 | F117: 55.6
A118: 10 | B118: Maurício Júnior | C118: 33 | D118: 154 | E118: 00:00:56.293 | F118: 63.06
A119: 10 | B119: Maurício Júnior | C119: 33 | D119: 154 | E119: 00:00:57.259 | F119: 61.99
A120: 10 | B120: Maurício Júnior | C120: 33 | D120: 154 | E120: 00:00:56.028 | F120: 63.35
A121: 10 | B121: Maurício Júnior | C121: 33 | D121: 154 | E121: 00:00:55.942 | F121: 63.45
A122: 10 | B122: Maurício Júnior | C122: 33 | D122: 154 | E122: 00:00:55.871 | F122: 63.53
A123: 10 | B123: Maurício Júnior | C123: 33 | D123: 154 | E123: 00:00:55.690 | F123: 63.74
A124: 10 | B124: Maurício Júnior | C124: 33 | D124: 154 | E124: 00:00:55.920 | F124: 63.48
A125: 10 | B125: Maurício Júnior | C125: 33 | D125: 154 | E125: 00:00:55.763 | F125: 63.66
A126: 10 | B126: Maurício Júnior | C126: 33 | D126: 154 | E126: 00:00:56.037 | F126: 63.34
A127: 10 | B127: Maurício Júnior | C127: 33 | D127: 154 | E127: 00:00:55.824 | F127: 63.59
A128: 10 | B128: Maurício Júnior | C128: 33 | D128: 154 | E128: 00:00:55.811 | F128: 63.6
A129: 10 | B129: Maurício Júnior | C129: 33 | D129: 154 | E129: 00:00:55.819 | F129: 63.59
A130: 10 | B130: Maurício Júnior | C130: 33 | D130: 154 | E130: 00:00:55.771 | F130: 63.65
A131: 10 | B131: Maurício Júnior | C131: 33 | D131: 154 | E131: 00:00:55.938 | F131: 63.46
A132: 10 | B132: Maurício Júnior | C132: 33 | D132: 154 | E132: 00:00:55.731 | F132: 63.69
A133: 10 | B133: Maurício Júnior | C133: 33 | D133: 154 | E133: 00:00:55.775 | F133: 63.64
A134: 10 | B134: Maurício Júnior | C134: 33 | D134: 154 | E134: 00:00:55.837 | F134: 63.57
A135: 10 | B135: Maurício Júnior | C135: 33 | D135: 154 | E135: 00:00:55.867 | F135: 63.54
A136: 10 | B136: Maurício Júnior | C136: 33 | D136: 154 | E136: 00:00:55.800 | F136: 63.61
A137: 10 | B137: Maurício Júnior | C137: 33 | D137: 154 | E137: 00:00:55.986 | F137: 63.4
A138: 10 | B138: Maurício Júnior | C138: 33 | D138: 154 | E138: 00:00:55.748 | F138: 63.67
A139: 10 | B139: Maurício Júnior | C139: 33 | D139: 154 | E139: 00:00:55.638 | F139: 63.8
A140: 10 | B140: Maurício Júnior | C140: 33 | D140: 154 | E140: 00:00:55.635 | F140: 63.8
A141: 10 | B141: Maurício Júnior | C141: 33 | D141: 154 | E141: 00:00:55.622 | F141: 63.82
A142: 10 | B142: Maurício Júnior | C142: 33 | D142: 154 | E142: 00:00:55.605 | F142: 63.84
A143: 10 | B143: Maurício Júnior | C143: 33 | D143: 154 | E143: 00:00:55.510 | F143: 63.95
A144: 10 | B144: Maurício Júnior | C144: 33 | D144: 154 | E144: 00:00:55.911 | F144: 63.49
A145: 10 | B145: Maurício Júnior | C145: 33 | D145: 154 | E145: 00:00:55.799 | F145: 63.61
A146: 10 | B146: Maurício Júnior | C146: 33 | D146: 154 | E146: 00:00:55.542 | F146: 63.91
A147: 10 | B147: Maurício Júnior | C147: 33 | D147: 154 | E147: 00:00:55.728 | F147: 63.7
A148: 10 | B148: Maurício Júnior | C148: 33 | D148: 154 | E148: 00:00:55.581 | F148: 63.86
A149: 10 | B149: Maurício Júnior | C149: 33 | D149: 154 | E149: 00:00:55.781 | F149: 63.63
A150: 10 | B150: Daniel Nahum | C150: 33 | D150: 104 | E150: 00:01:04.382 | F150: 55.13
A151: 10 | B151: Daniel Nahum | C151: 33 | D151: 104 | E151: 00:00:58.201 | F151: 60.99
A152: 10 | B152: Daniel Nahum | C152: 33 | D152: 104 | E152: 00:00:56.952 | F152: 62.33
A153: 10 | B153: Daniel Nahum | C153: 33 | D153: 104 | E153: 00:00:56.638 | F153: 62.67
A154: 10 | B154: Daniel Nahum | C154: 33 | D154: 104 | E154: 00:00:56.416 | F154: 62.92
A155: 10 | B155: Daniel Nahum | C155: 33 | D155: 104 | E155: 00:00:56.094 | F155: 63.28
A156: 10 | B156: Daniel Nahum | C156: 33 | D156: 104 | E156: 00:00:55.886 | F156: 63.52
A157: 10 | B157: Daniel Nahum | C157: 33 | D157: 104 | E157: 00:00:55.650 | F157: 63.78
A158: 10 | B158: Daniel Nahum | C158: 33 | D158: 104 | E158: 00:00:56.401 | F158: 62.94
A159: 10 | B159: Daniel Nahum | C159: 33 | D159: 104 | E159: 00:00:56.964 | F159: 62.31
A160: 10 | B160: Daniel Nahum | C160: 33 | D160: 104 | E160: 00:00:55.798 | F160: 63.62
A161: 10 | B161: Daniel Nahum | C161: 33 | D161: 104 | E161: 00:00:56.003 | F161: 63.38
A162: 10 | B162: Daniel Nahum | C162: 33 | D162: 104 | E162: 00:00:56.067 | F162: 63.31
A163: 10 | B163: Daniel Nahum | C163: 33 | D163: 104 | E163: 00:00:55.874 | F163: 63.53
A164: 10 | B164: Daniel Nahum | C164: 33 | D164: 104 | E164: 00:00:55.919 | F164: 63.48
A165: 10 | B165: Daniel Nahum | C165: 33 | D165: 104 | E165: 00:00:55.894 | F165: 63.51
A166: 10 | B166: Daniel Nahum | C166: 33 | D166: 104 | E166: 00:00:55.982 | F166: 63.41
A167: 10 | B167: Daniel Nahum | C167: 33 | D167: 104 | E167: 00:00:55.662 | F167: 63.77
A168: 10 | B168: Daniel Nahum | C168: 33 | D168: 104 | E168: 00:00:55.673 | F168: 63.76
A169: 10 | B169: Daniel Nahum | C169: 33 | D169: 104 | E169: 00:00:55.647 | F169: 63.79
A170: 10 | B170: Daniel Nahum | C170: 33 | D170: 104 | E170: 00:00:55.547 | F170: 63.9
A171: 10 | B171: Daniel Nahum | C171: 33 | D171: 104 | E171: 00:00:55.520 | F171: 63.93
A172: 10 | B172: Daniel Nahum | C172: 33 | D172: 104 | E172: 00:00:56.069 | F172: 63.31
A173: 10 | B173: Daniel Nahum | C173: 33 | D173: 104 | E173: 00:00:55.895 | F173: 63.5
A174: 10 | B174: Daniel Nahum | C174: 33 | D174: 104 | E174: 00:00:55.638 | F174: 63.8
A175: 10 | B175: Daniel Nahum | C175: 33 | D175: 104 | E175: 00:00:56.099 | F175: 63.27
A176: 10 | B176: Daniel Nahum | C176: 33 | D176: 104 | E176: 00:00:55.763 | F176: 63.66
A177: 10 | B177: Daniel Nahum | C177: 33 | D177: 104 | E177: 00:00:55.746 | F177: 63.67
A178: 10 | B178: Daniel Nahum | C178: 33 | D178: 104 | E178: 00:00:55.677 | F178: 63.75
A179: 10 | B179: Daniel Nahum | C179: 33 | D179: 104 | E179: 00:00:55.937 | F179: 63.46
A180: 10 | B180: Daniel Nahum | C180: 33 | D180: 104 | E180: 00:00:55.695 | F180: 63.73
A181: 10 | B181: Daniel Nahum | C181: 33 | D181: 104 | E181: 00:00:55.883 | F181: 63.52
A182: 10 | B182: Daniel Nahum | C182: 33 | D182: 104 | E182: 00:00:56.050 | F182: 63.33
A183: 10 | B183: Alexandre Melillo | C183: 33 | D183: 101 | E183: 00:01:02.932 | F183: 56.4
A184: 10 | B184: Alexandre Melillo | C184: 33 | D184: 101 | E184: 00:00:57.367 | F184: 61.88
A185: 10 | B185: Alexandre Melillo | C185: 33 | D185: 101 | E185: 00:00:56.847 | F185: 62.44
A186: 10 | B186: Alexandre Melillo | C186: 33 | D186: 101 | E186: 00:00:56.039 | F186: 63.34
A187: 10 | B187: Alexandre Melillo | C187: 33 | D187: 101 | E187: 00:00:56.278 | F187: 63.07
A188: 10 | B188: Alexandre Melillo | C188: 33 | D188: 101 | E188: 00:00:56.042 | F188: 63.34
A189: 10 | B189: Alexandre Melillo | C189: 33 | D189: 101 | E189: 00:00:56.280 | F189: 63.07
A190: 10 | B190: Alexandre Melillo | C190: 33 | D190: 101 | E190: 00:00:56.123 | F190: 63.25
A191: 10 | B191: Alexandre Melillo | C191: 33 | D191: 101 | E191: 00:00:56.978 | F191: 62.3
A192: 10 | B192: Alexandre Melillo | C192: 33 | D192: 101 | E192: 00:00:57.266 | F192: 61.98
A193: 10 | B193: Alexandre Melillo | C193: 33 | D193: 101 | E193: 00:00:56.832 | F193: 62.46
A194: 10 | B194: Alexandre Melillo | C194: 33 | D194: 101 | E194: 00:00:56.028 | F194: 63.35
A195: 10 | B195: Alexandre Melillo | C195: 33 | D195: 101 | E195: 00:00:56.001 | F195: 63.38
A196: 10 | B196: Alexandre Melillo | C196: 33 | D196: 101 | E196: 00:00:55.662 | F196: 63.77
A197: 10 | B197: Alexandre Melillo | C197: 33 | D197: 101 | E197: 00:00:56.032 | F197: 63.35
A198: 10 | B198: Alexandre Melillo | C198: 33 | D198: 101 | E198: 00:00:56.087 | F198: 63.29
A199: 10 | B199: Alexandre Melillo | C199: 33 | D199: 101 | E199: 00:00:55.856 | F199: 63.55
A200: 10 | B200: Alexandre Melillo | C200: 33 | D200: 101 | E200: 00:00:55.708 | F200: 63.72
A201: 10 | B201: Alexandre Melillo | C201: 33 | D201: 101 | E201: 00:00:55.761 | F201: 63.66
A202: 10 | B202: Alexandre Melillo | C202: 33 | D202: 101 | E202: 00:00:55.799 | F202: 63.61
A203: 10 | B203: Alexandre Melillo | C203: 33 | D203: 101 | E203: 00:00:55.778 | F203: 63.64
A204: 10 | B204: Alexandre Melillo | C204: 33 | D204: 101 | E204: 00:00:55.619 | F204: 63.82
A205: 10 | B205: Alexandre Melillo | C205: 33 | D205: 101 | E205: 00:00:55.906 | F205: 63.49
A206: 10 | B206: Alexandre Melillo | C206: 33 | D206: 101 | E206: 00:00:55.935 | F206: 63.46
A207: 10 | B207: Alexandre Melillo | C207: 33 | D207: 101 | E207: 00:00:55.780 | F207: 63.64
A208: 10 | B208: Alexandre Melillo | C208: 33 | D208: 101 | E208: 00:00:55.998 | F208: 63.39
A209: 10 | B209: Alexandre Melillo | C209: 33 | D209: 101 | E209: 00:00:55.796 | F209: 63.62
A210: 10 | B210: Alexandre Melillo | C210: 33 | D210: 101 | E210: 00:00:55.795 | F210: 63.62
A211: 10 | B211: Alexandre Melillo | C211: 33 | D211: 101 | E211: 00:00:55.874 | F211: 63.53
A212: 10 | B212: Alexandre Melillo | C212: 33 | D212: 101 | E212: 00:00:56.034 | F212: 63.35
A213: 10 | B213: Alexandre Melillo | C213: 33 | D213: 101 | E213: 00:00:56.182 | F213: 63.18
A214: 10 | B214: Alexandre Melillo | C214: 33 | D214: 101 | E214: 00:00:56.221 | F214: 63.14
A215: 10 | B215: Alexandre Melillo | C215: 33 | D215: 101 | E215: 00:00:56.171 | F215: 63.19
A216: 10 | B216: Marcelo Pereira | C216: 33 | D216: 125 | E216: 00:01:04.325 | F216: 55.18
A217: 10 | B217: Marcelo Pereira | C217: 33 | D217: 125 | E217: 00:00:57.948 | F217: 61.25
A218: 10 | B218: Marcelo Pereira | C218: 33 | D218: 125 | E218: 00:00:56.878 | F218: 62.41
A219: 10 | B219: Marcelo Pereira | C219: 33 | D219: 125 | E219: 00:00:56.196 | F219: 63.16
A220: 10 | B220: Marcelo Pereira | C220: 33 | D220: 125 | E220: 00:00:56.070 | F220: 63.31
A221: 10 | B221: Marcelo Pereira | C221: 33 | D221: 125 | E221: 00:00:56.280 | F221: 63.07
A222: 10 | B222: Marcelo Pereira | C222: 33 | D222: 125 | E222: 00:00:56.033 | F222: 63.35
A223: 10 | B223: Marcelo Pereira | C223: 33 | D223: 125 | E223: 00:00:56.223 | F223: 63.13
A224: 10 | B224: Marcelo Pereira | C224: 33 | D224: 125 | E224: 00:00:56.812 | F224: 62.48
A225: 10 | B225: Marcelo Pereira | C225: 33 | D225: 125 | E225: 00:00:56.952 | F225: 62.33
A226: 10 | B226: Marcelo Pereira | C226: 33 | D226: 125 | E226: 00:00:56.070 | F226: 63.31
A227: 10 | B227: Marcelo Pereira | C227: 33 | D227: 125 | E227: 00:00:56.007 | F227: 63.38
A228: 10 | B228: Marcelo Pereira | C228: 33 | D228: 125 | E228: 00:00:56.065 | F228: 63.31
A229: 10 | B229: Marcelo Pereira | C229: 33 | D229: 125 | E229: 00:00:55.872 | F229: 63.53
A230: 10 | B230: Marcelo Pereira | C230: 33 | D230: 125 | E230: 00:00:55.930 | F230: 63.47
A231: 10 | B231: Marcelo Pereira | C231: 33 | D231: 125 | E231: 00:00:55.829 | F231: 63.58
... 340 more rows

Sheet ETAPA 9
A1: Obs.: Selecione até 3 pilotos colocando na frente do seu nome os números 1, 2 e 3. | H1: PILOTO | I1: =J52 -> Marcelo Pereira | J1: =K52 -> Eduardo Henrique | K1: =L52 -> Lucca Veloso
A2: 1 | B2: Marcelo Pereira | H2: MÉDIA | I2: =AVERAGE(J53:J97) -> 00:01:01.405 | J2: =AVERAGE(K53:K97) -> 00:01:01.422 | K2: =AVERAGE(L53:L97) -> 00:01:01.786
A3: 2 | B3: Eduardo Henrique | H3: MAXIMA | I3: =LARGE(J53:J97,1) -> 00:01:04.556 | J3: =LARGE(K53:K97,1) -> 00:01:04.234 | K3: =LARGE(L53:L97,1) -> 00:01:05.283
A4: 3 | B4: Lucca Veloso | H4: MÍNIMA | I4: =SMALL(J53:J97,1) -> 00:01:00.917 | J4: =SMALL(K53:K97,1) -> 00:01:00.814 | K4: =SMALL(L53:L97,1) -> 00:01:00.911
B5: Marcelo Campos | H5: Desvio Padrão | I5: =_xlfn.STDEV.S(J53:J97) -> 00:00:00.637 | J5: =_xlfn.STDEV.S(K53:K97) -> 00:00:00.594 | K5: =_xlfn.STDEV.S(L53:L97) -> 00:00:00.878
B6: Daniel Nahum | H6: TEMPO TOTAL | I6: =SUM(J53:J97,1) -> 1.021321134 | J6: =SUM(K53:K97,1) -> 1.021326991 | K6: =SUM(L53:L97,1) -> 1.021453576
B7: Renato Amaral
B8: Alexandre Melillo
B9: Bernardo Gatti
B10: Marcelo Clemente
B11: Jarbas Reis
B12: Vitor Gatti
B13: Rodrigo Ricardo | K13: =SMALL(I4:K4,1)-L13 -> 00:01:00.814
B14: Guilherme Alves | K14: =LARGE(I3:K3,1)+L13 -> 00:01:05.283
B15: Felipe Bouhid
B16: Tati Marcondes
B17: Wesley Bambirra
B18: Reila Ricardo
B19: Wesley Canuto
B20: Maurício Júnior
B21: Marcelo Marcondes
A32: 1
A50: ETAPA | B50: PILOTO | C50: NÚMERO VOLTAS | D50: KART | E50: Volta Tm | F50: velocidade Media | J50: =MATCH(J52,$B$51:$B$1500,0) -> 1 | K50: =MATCH(K52,$B$51:$B$1500,0) -> 31 | L50: 61
A51: 9 | B51: Marcelo Pereira | C51: 30 | D51: 112 | E51: 00:01:04.556 | F51: 58.55 | J51: =VLOOKUP(J$52,$B$50:$F$1500,2,FALSE) -> 30 | K51: =VLOOKUP(K$52,$B$50:$F$1500,2,FALSE) -> 30 | L51: =VLOOKUP(L$52,$B$50:$F$1500,2,FALSE) -> 30
A52: 9 | B52: Marcelo Pereira | C52: 30 | D52: 112 | E52: 00:01:01.648 | F52: 61.32 | I52: VOLTA | J52: =VLOOKUP(1,$A$2:$B$36,2,FALSE) -> Marcelo Pereira | K52: =VLOOKUP(2,$A$2:$B$36,2,FALSE) -> Eduardo Henrique | L52: =VLOOKUP(3,$A$2:$B$36,2,FALSE) -> Lucca Veloso
A53: 9 | B53: Marcelo Pereira | C53: 30 | D53: 112 | E53: 00:01:01.554 | F53: 61.41 | I53: 1 | J53: =OFFSET($E$51:$E$1500,J50-1,,J51) -> 00:01:04.556 | K53: =OFFSET($E$51:$E$1500,K50-1,,K51) -> 00:01:04.234 | L53: =OFFSET($E$51:$E$1500,L50-1,,L51) -> 00:01:05.283
A54: 9 | B54: Marcelo Pereira | C54: 30 | D54: 112 | E54: 00:01:01.438 | F54: 61.53 | I54: 2 | J54: 00:01:01.648 | K54: 00:01:01.672 | L54: 00:01:02.642
A55: 9 | B55: Marcelo Pereira | C55: 30 | D55: 112 | E55: 00:01:01.275 | F55: 61.69 | I55: 3 | J55: 00:01:01.554 | K55: 00:01:01.804 | L55: 00:01:02.015
A56: 9 | B56: Marcelo Pereira | C56: 30 | D56: 112 | E56: 00:01:01.224 | F56: 61.74 | I56: 4 | J56: 00:01:01.438 | K56: 00:01:01.619 | L56: 00:01:01.553
A57: 9 | B57: Marcelo Pereira | C57: 30 | D57: 112 | E57: 00:01:01.264 | F57: 61.7 | I57: 5 | J57: 00:01:01.275 | K57: 00:01:01.331 | L57: 00:01:01.491
A58: 9 | B58: Marcelo Pereira | C58: 30 | D58: 112 | E58: 00:01:00.982 | F58: 61.99 | I58: 6 | J58: 00:01:01.224 | K58: 00:01:01.124 | L58: 00:01:01.767
A59: 9 | B59: Marcelo Pereira | C59: 30 | D59: 112 | E59: 00:01:01.296 | F59: 61.67 | I59: 7 | J59: 00:01:01.264 | K59: 00:01:01.242 | L59: 00:01:03.062
A60: 9 | B60: Marcelo Pereira | C60: 30 | D60: 112 | E60: 00:01:01.351 | F60: 61.61 | I60: 8 | J60: 00:01:00.982 | K60: 00:01:01.106 | L60: 00:01:03.204
A61: 9 | B61: Marcelo Pereira | C61: 30 | D61: 112 | E61: 00:01:01.220 | F61: 61.74 | I61: 9 | J61: 00:01:01.296 | K61: 00:01:01.565 | L61: 00:01:02.225
A62: 9 | B62: Marcelo Pereira | C62: 30 | D62: 112 | E62: 00:01:01.413 | F62: 61.55 | I62: 10 | J62: 00:01:01.351 | K62: 00:01:01.535 | L62: 00:01:01.277
A63: 9 | B63: Marcelo Pereira | C63: 30 | D63: 112 | E63: 00:01:01.344 | F63: 61.62 | I63: 11 | J63: 00:01:01.220 | K63: 00:01:01.097 | L63: 00:01:01.602
A64: 9 | B64: Marcelo Pereira | C64: 30 | D64: 112 | E64: 00:01:01.344 | F64: 61.62 | I64: 12 | J64: 00:01:01.413 | K64: 00:01:01.442 | L64: 00:01:01.533
A65: 9 | B65: Marcelo Pereira | C65: 30 | D65: 112 | E65: 00:01:01.598 | F65: 61.37 | I65: 13 | J65: 00:01:01.344 | K65: 00:01:01.237 | L65: 00:01:02.555
A66: 9 | B66: Marcelo Pereira | C66: 30 | D66: 112 | E66: 00:01:01.104 | F66: 61.86 | I66: 14 | J66: 00:01:01.344 | K66: 00:01:01.496 | L66: 00:01:01.346
A67: 9 | B67: Marcelo Pereira | C67: 30 | D67: 112 | E67: 00:01:00.917 | F67: 62.05 | I67: 15 | J67: 00:01:01.598 | K67: 00:01:01.184 | L67: 00:01:01.426
A68: 9 | B68: Marcelo Pereira | C68: 30 | D68: 112 | E68: 00:01:01.145 | F68: 61.82 | I68: 16 | J68: 00:01:01.104 | K68: 00:01:00.814 | L68: 00:01:00.911
A69: 9 | B69: Marcelo Pereira | C69: 30 | D69: 112 | E69: 00:01:00.947 | F69: 62.02 | I69: 17 | J69: 00:01:00.917 | K69: 00:01:01.163 | L69: 00:01:01.076
A70: 9 | B70: Marcelo Pereira | C70: 30 | D70: 112 | E70: 00:01:01.060 | F70: 61.91 | I70: 18 | J70: 00:01:01.145 | K70: 00:01:01.102 | L70: 00:01:01.355
A71: 9 | B71: Marcelo Pereira | C71: 30 | D71: 112 | E71: 00:01:01.053 | F71: 61.91 | I71: 19 | J71: 00:01:00.947 | K71: 00:01:00.949 | L71: 00:01:01.956
A72: 9 | B72: Marcelo Pereira | C72: 30 | D72: 112 | E72: 00:01:01.222 | F72: 61.74 | I72: 20 | J72: 00:01:01.060 | K72: 00:01:01.415 | L72: 00:01:01.472
A73: 9 | B73: Marcelo Pereira | C73: 30 | D73: 112 | E73: 00:01:01.613 | F73: 61.35 | I73: 21 | J73: 00:01:01.053 | K73: 00:01:01.041 | L73: 00:01:00.970
A74: 9 | B74: Marcelo Pereira | C74: 30 | D74: 112 | E74: 00:01:01.735 | F74: 61.23 | I74: 22 | J74: 00:01:01.222 | K74: 00:01:01.229 | L74: 00:01:01.049
A75: 9 | B75: Marcelo Pereira | C75: 30 | D75: 112 | E75: 00:01:01.414 | F75: 61.55 | I75: 23 | J75: 00:01:01.613 | K75: 00:01:01.346 | L75: 00:01:01.450
A76: 9 | B76: Marcelo Pereira | C76: 30 | D76: 112 | E76: 00:01:01.048 | F76: 61.92 | I76: 24 | J76: 00:01:01.735 | K76: 00:01:01.791 | L76: 00:01:01.843
A77: 9 | B77: Marcelo Pereira | C77: 30 | D77: 112 | E77: 00:01:01.081 | F77: 61.89 | I77: 25 | J77: 00:01:01.414 | K77: 00:01:01.654 | L77: 00:01:01.513
A78: 9 | B78: Marcelo Pereira | C78: 30 | D78: 112 | E78: 00:01:01.249 | F78: 61.72 | I78: 26 | J78: 00:01:01.048 | K78: 00:01:01.061 | L78: 00:01:01.436
A79: 9 | B79: Marcelo Pereira | C79: 30 | D79: 112 | E79: 00:01:01.312 | F79: 61.65 | I79: 27 | J79: 00:01:01.081 | K79: 00:01:01.034 | L79: 00:01:01.940
A80: 9 | B80: Marcelo Pereira | C80: 30 | D80: 112 | E80: 00:01:01.739 | F80: 61.23 | I80: 28 | J80: 00:01:01.249 | K80: 00:01:01.283 | L80: 00:01:01.237
A81: 9 | B81: Eduardo Henrique | C81: 30 | D81: 149 | E81: 00:01:04.234 | F81: 58.85 | I81: 29 | J81: 00:01:01.312 | K81: 00:01:01.264 | L81: 00:01:01.175
A82: 9 | B82: Eduardo Henrique | C82: 30 | D82: 149 | E82: 00:01:01.672 | F82: 61.29 | I82: 30 | J82: 00:01:01.739 | K82: 00:01:01.818 | L82: 00:01:01.225
A83: 9 | B83: Eduardo Henrique | C83: 30 | D83: 149 | E83: 00:01:01.804 | F83: 61.16 | I83: 31
A84: 9 | B84: Eduardo Henrique | C84: 30 | D84: 149 | E84: 00:01:01.619 | F84: 61.34 | I84: 32
A85: 9 | B85: Eduardo Henrique | C85: 30 | D85: 149 | E85: 00:01:01.331 | F85: 61.63 | I85: 33
A86: 9 | B86: Eduardo Henrique | C86: 30 | D86: 149 | E86: 00:01:01.124 | F86: 61.84 | I86: 34
A87: 9 | B87: Eduardo Henrique | C87: 30 | D87: 149 | E87: 00:01:01.242 | F87: 61.72 | I87: 35
A88: 9 | B88: Eduardo Henrique | C88: 30 | D88: 149 | E88: 00:01:01.106 | F88: 61.86 | I88: 36
A89: 9 | B89: Eduardo Henrique | C89: 30 | D89: 149 | E89: 00:01:01.565 | F89: 61.4 | I89: 37
A90: 9 | B90: Eduardo Henrique | C90: 30 | D90: 149 | E90: 00:01:01.535 | F90: 61.43 | I90: 38
A91: 9 | B91: Eduardo Henrique | C91: 30 | D91: 149 | E91: 00:01:01.097 | F91: 61.87 | I91: 39
A92: 9 | B92: Eduardo Henrique | C92: 30 | D92: 149 | E92: 00:01:01.442 | F92: 61.52 | I92: 40
A93: 9 | B93: Eduardo Henrique | C93: 30 | D93: 149 | E93: 00:01:01.237 | F93: 61.73 | I93: 41
A94: 9 | B94: Eduardo Henrique | C94: 30 | D94: 149 | E94: 00:01:01.496 | F94: 61.47 | I94: 42
A95: 9 | B95: Eduardo Henrique | C95: 30 | D95: 149 | E95: 00:01:01.184 | F95: 61.78 | I95: 43
A96: 9 | B96: Eduardo Henrique | C96: 30 | D96: 149 | E96: 00:01:00.814 | F96: 62.16 | I96: 44
A97: 9 | B97: Eduardo Henrique | C97: 30 | D97: 149 | E97: 00:01:01.163 | F97: 61.8 | I97: 45
A98: 9 | B98: Eduardo Henrique | C98: 30 | D98: 149 | E98: 00:01:01.102 | F98: 61.86
A99: 9 | B99: Eduardo Henrique | C99: 30 | D99: 149 | E99: 00:01:00.949 | F99: 62.02
A100: 9 | B100: Eduardo Henrique | C100: 30 | D100: 149 | E100: 00:01:01.415 | F100: 61.55
A101: 9 | B101: Eduardo Henrique | C101: 30 | D101: 149 | E101: 00:01:01.041 | F101: 61.93
A102: 9 | B102: Eduardo Henrique | C102: 30 | D102: 149 | E102: 00:01:01.229 | F102: 61.74
A103: 9 | B103: Eduardo Henrique | C103: 30 | D103: 149 | E103: 00:01:01.346 | F103: 61.62
A104: 9 | B104: Eduardo Henrique | C104: 30 | D104: 149 | E104: 00:01:01.791 | F104: 61.17
A105: 9 | B105: Eduardo Henrique | C105: 30 | D105: 149 | E105: 00:01:01.654 | F105: 61.31
A106: 9 | B106: Eduardo Henrique | C106: 30 | D106: 149 | E106: 00:01:01.061 | F106: 61.91
A107: 9 | B107: Eduardo Henrique | C107: 30 | D107: 149 | E107: 00:01:01.034 | F107: 61.93
A108: 9 | B108: Eduardo Henrique | C108: 30 | D108: 149 | E108: 00:01:01.283 | F108: 61.68
A109: 9 | B109: Eduardo Henrique | C109: 30 | D109: 149 | E109: 00:01:01.264 | F109: 61.7
A110: 9 | B110: Eduardo Henrique | C110: 30 | D110: 149 | E110: 00:01:01.818 | F110: 61.15
A111: 9 | B111: Lucca Veloso | C111: 30 | D111: 103 | E111: 00:01:05.283 | F111: 57.9
A112: 9 | B112: Lucca Veloso | C112: 30 | D112: 103 | E112: 00:01:02.642 | F112: 60.34
A113: 9 | B113: Lucca Veloso | C113: 30 | D113: 103 | E113: 00:01:02.015 | F113: 60.95
A114: 9 | B114: Lucca Veloso | C114: 30 | D114: 103 | E114: 00:01:01.553 | F114: 61.41
A115: 9 | B115: Lucca Veloso | C115: 30 | D115: 103 | E115: 00:01:01.491 | F115: 61.47
A116: 9 | B116: Lucca Veloso | C116: 30 | D116: 103 | E116: 00:01:01.767 | F116: 61.2
A117: 9 | B117: Lucca Veloso | C117: 30 | D117: 103 | E117: 00:01:03.062 | F117: 59.94
A118: 9 | B118: Lucca Veloso | C118: 30 | D118: 103 | E118: 00:01:03.204 | F118: 59.81
A119: 9 | B119: Lucca Veloso | C119: 30 | D119: 103 | E119: 00:01:02.225 | F119: 60.75
A120: 9 | B120: Lucca Veloso | C120: 30 | D120: 103 | E120: 00:01:01.277 | F120: 61.69
A121: 9 | B121: Lucca Veloso | C121: 30 | D121: 103 | E121: 00:01:01.602 | F121: 61.36
A122: 9 | B122: Lucca Veloso | C122: 30 | D122: 103 | E122: 00:01:01.533 | F122: 61.43
A123: 9 | B123: Lucca Veloso | C123: 30 | D123: 103 | E123: 00:01:02.555 | F123: 60.43
A124: 9 | B124: Lucca Veloso | C124: 30 | D124: 103 | E124: 00:01:01.346 | F124: 61.62
A125: 9 | B125: Lucca Veloso | C125: 30 | D125: 103 | E125: 00:01:01.426 | F125: 61.54
A126: 9 | B126: Lucca Veloso | C126: 30 | D126: 103 | E126: 00:01:00.911 | F126: 62.06
A127: 9 | B127: Lucca Veloso | C127: 30 | D127: 103 | E127: 00:01:01.076 | F127: 61.89
A128: 9 | B128: Lucca Veloso | C128: 30 | D128: 103 | E128: 00:01:01.355 | F128: 61.61
A129: 9 | B129: Lucca Veloso | C129: 30 | D129: 103 | E129: 00:01:01.956 | F129: 61.01
A130: 9 | B130: Lucca Veloso | C130: 30 | D130: 103 | E130: 00:01:01.472 | F130: 61.49
A131: 9 | B131: Lucca Veloso | C131: 30 | D131: 103 | E131: 00:01:00.970 | F131: 62
A132: 9 | B132: Lucca Veloso | C132: 30 | D132: 103 | E132: 00:01:01.049 | F132: 61.92
A133: 9 | B133: Lucca Veloso | C133: 30 | D133: 103 | E133: 00:01:01.450 | F133: 61.51
A134: 9 | B134: Lucca Veloso | C134: 30 | D134: 103 | E134: 00:01:01.843 | F134: 61.12
A135: 9 | B135: Lucca Veloso | C135: 30 | D135: 103 | E135: 00:01:01.513 | F135: 61.45
A136: 9 | B136: Lucca Veloso | C136: 30 | D136: 103 | E136: 00:01:01.436 | F136: 61.53
A137: 9 | B137: Lucca Veloso | C137: 30 | D137: 103 | E137: 00:01:01.940 | F137: 61.03
A138: 9 | B138: Lucca Veloso | C138: 30 | D138: 103 | E138: 00:01:01.237 | F138: 61.73
A139: 9 | B139: Lucca Veloso | C139: 30 | D139: 103 | E139: 00:01:01.175 | F139: 61.79
A140: 9 | B140: Lucca Veloso | C140: 30 | D140: 103 | E140: 00:01:01.225 | F140: 61.74
A141: 9 | B141: Marcelo Campos | C141: 30 | D141: 125 | E141: 00:01:05.688 | F141: 57.54
A142: 9 | B142: Marcelo Campos | C142: 30 | D142: 125 | E142: 00:01:02.660 | F142: 60.33
A143: 9 | B143: Marcelo Campos | C143: 30 | D143: 125 | E143: 00:01:01.960 | F143: 61.01
A144: 9 | B144: Marcelo Campos | C144: 30 | D144: 125 | E144: 00:01:01.702 | F144: 61.26
A145: 9 | B145: Marcelo Campos | C145: 30 | D145: 125 | E145: 00:01:01.542 | F145: 61.42
A146: 9 | B146: Marcelo Campos | C146: 30 | D146: 125 | E146: 00:01:01.839 | F146: 61.13
A147: 9 | B147: Marcelo Campos | C147: 30 | D147: 125 | E147: 00:01:03.067 | F147: 59.94
A148: 9 | B148: Marcelo Campos | C148: 30 | D148: 125 | E148: 00:01:02.577 | F148: 60.41
A149: 9 | B149: Marcelo Campos | C149: 30 | D149: 125 | E149: 00:01:02.430 | F149: 60.55
A150: 9 | B150: Marcelo Campos | C150: 30 | D150: 125 | E150: 00:01:01.516 | F150: 61.45
A151: 9 | B151: Marcelo Campos | C151: 30 | D151: 125 | E151: 00:01:01.576 | F151: 61.39
A152: 9 | B152: Marcelo Campos | C152: 30 | D152: 125 | E152: 00:01:01.435 | F152: 61.53
A153: 9 | B153: Marcelo Campos | C153: 30 | D153: 125 | E153: 00:01:01.541 | F153: 61.42
A154: 9 | B154: Marcelo Campos | C154: 30 | D154: 125 | E154: 00:01:01.536 | F154: 61.43
A155: 9 | B155: Marcelo Campos | C155: 30 | D155: 125 | E155: 00:01:01.431 | F155: 61.53
A156: 9 | B156: Marcelo Campos | C156: 30 | D156: 125 | E156: 00:01:01.299 | F156: 61.66
A157: 9 | B157: Marcelo Campos | C157: 30 | D157: 125 | E157: 00:01:01.517 | F157: 61.45
A158: 9 | B158: Marcelo Campos | C158: 30 | D158: 125 | E158: 00:01:01.424 | F158: 61.54
A159: 9 | B159: Marcelo Campos | C159: 30 | D159: 125 | E159: 00:01:01.572 | F159: 61.39
A160: 9 | B160: Marcelo Campos | C160: 30 | D160: 125 | E160: 00:01:01.387 | F160: 61.58
A161: 9 | B161: Marcelo Campos | C161: 30 | D161: 125 | E161: 00:01:01.166 | F161: 61.8
A162: 9 | B162: Marcelo Campos | C162: 30 | D162: 125 | E162: 00:01:01.309 | F162: 61.65
A163: 9 | B163: Marcelo Campos | C163: 30 | D163: 125 | E163: 00:01:01.702 | F163: 61.26
A164: 9 | B164: Marcelo Campos | C164: 30 | D164: 125 | E164: 00:01:01.659 | F164: 61.3
A165: 9 | B165: Marcelo Campos | C165: 30 | D165: 125 | E165: 00:01:01.604 | F165: 61.36
A166: 9 | B166: Marcelo Campos | C166: 30 | D166: 125 | E166: 00:01:01.522 | F166: 61.44
A167: 9 | B167: Marcelo Campos | C167: 30 | D167: 125 | E167: 00:01:02.208 | F167: 60.76
A168: 9 | B168: Marcelo Campos | C168: 30 | D168: 125 | E168: 00:01:01.169 | F168: 61.8
A169: 9 | B169: Marcelo Campos | C169: 30 | D169: 125 | E169: 00:01:01.197 | F169: 61.77
A170: 9 | B170: Marcelo Campos | C170: 30 | D170: 125 | E170: 00:01:01.221 | F170: 61.74
A171: 9 | B171: Daniel Nahum | C171: 30 | D171: 148 | E171: 00:01:06.317 | F171: 57
A172: 9 | B172: Daniel Nahum | C172: 30 | D172: 148 | E172: 00:01:03.040 | F172: 59.96
A173: 9 | B173: Daniel Nahum | C173: 30 | D173: 148 | E173: 00:01:01.940 | F173: 61.03
A174: 9 | B174: Daniel Nahum | C174: 30 | D174: 148 | E174: 00:01:01.672 | F174: 61.29
A175: 9 | B175: Daniel Nahum | C175: 30 | D175: 148 | E175: 00:01:01.924 | F175: 61.04
A176: 9 | B176: Daniel Nahum | C176: 30 | D176: 148 | E176: 00:01:01.468 | F176: 61.5
A177: 9 | B177: Daniel Nahum | C177: 30 | D177: 148 | E177: 00:01:02.790 | F177: 60.2
A178: 9 | B178: Daniel Nahum | C178: 30 | D178: 148 | E178: 00:01:02.905 | F178: 60.09
A179: 9 | B179: Daniel Nahum | C179: 30 | D179: 148 | E179: 00:01:02.594 | F179: 60.39
A180: 9 | B180: Daniel Nahum | C180: 30 | D180: 148 | E180: 00:01:01.567 | F180: 61.4
A181: 9 | B181: Daniel Nahum | C181: 30 | D181: 148 | E181: 00:01:01.379 | F181: 61.58
A182: 9 | B182: Daniel Nahum | C182: 30 | D182: 148 | E182: 00:01:01.460 | F182: 61.5
A183: 9 | B183: Daniel Nahum | C183: 30 | D183: 148 | E183: 00:01:01.739 | F183: 61.23
A184: 9 | B184: Daniel Nahum | C184: 30 | D184: 148 | E184: 00:01:01.484 | F184: 61.48
A185: 9 | B185: Daniel Nahum | C185: 30 | D185: 148 | E185: 00:01:01.280 | F185: 61.68
A186: 9 | B186: Daniel Nahum | C186: 30 | D186: 148 | E186: 00:01:01.071 | F186: 61.9
A187: 9 | B187: Daniel Nahum | C187: 30 | D187: 148 | E187: 00:01:01.308 | F187: 61.66
A188: 9 | B188: Daniel Nahum | C188: 30 | D188: 148 | E188: 00:01:01.427 | F188: 61.54
A189: 9 | B189: Daniel Nahum | C189: 30 | D189: 148 | E189: 00:01:01.938 | F189: 61.03
A190: 9 | B190: Daniel Nahum | C190: 30 | D190: 148 | E190: 00:01:01.785 | F190: 61.18
A191: 9 | B191: Daniel Nahum | C191: 30 | D191: 148 | E191: 00:01:01.036 | F191: 61.93
A192: 9 | B192: Daniel Nahum | C192: 30 | D192: 148 | E192: 00:01:01.134 | F192: 61.83
A193: 9 | B193: Daniel Nahum | C193: 30 | D193: 148 | E193: 00:01:01.426 | F193: 61.54
A194: 9 | B194: Daniel Nahum | C194: 30 | D194: 148 | E194: 00:01:01.788 | F194: 61.18
A195: 9 | B195: Daniel Nahum | C195: 30 | D195: 148 | E195: 00:01:01.621 | F195: 61.34
A196: 9 | B196: Daniel Nahum | C196: 30 | D196: 148 | E196: 00:01:02.230 | F196: 60.74
A197: 9 | B197: Daniel Nahum | C197: 30 | D197: 148 | E197: 00:01:01.610 | F197: 61.35
A198: 9 | B198: Daniel Nahum | C198: 30 | D198: 148 | E198: 00:01:01.218 | F198: 61.75
A199: 9 | B199: Daniel Nahum | C199: 30 | D199: 148 | E199: 00:01:01.164 | F199: 61.8
A200: 9 | B200: Daniel Nahum | C200: 30 | D200: 148 | E200: 00:01:01.239 | F200: 61.73
A201: 9 | B201: Renato Amaral | C201: 30 | D201: 147 | E201: 00:01:06.639 | F201: 56.72
A202: 9 | B202: Renato Amaral | C202: 30 | D202: 147 | E202: 00:01:02.697 | F202: 60.29
A203: 9 | B203: Renato Amaral | C203: 30 | D203: 147 | E203: 00:01:02.694 | F203: 60.29
A204: 9 | B204: Renato Amaral | C204: 30 | D204: 147 | E204: 00:01:01.387 | F204: 61.58
A205: 9 | B205: Renato Amaral | C205: 30 | D205: 147 | E205: 00:01:01.350 | F205: 61.61
A206: 9 | B206: Renato Amaral | C206: 30 | D206: 147 | E206: 00:01:01.624 | F206: 61.34
A207: 9 | B207: Renato Amaral | C207: 30 | D207: 147 | E207: 00:01:01.326 | F207: 61.64
A208: 9 | B208: Renato Amaral | C208: 30 | D208: 147 | E208: 00:01:03.465 | F208: 59.56
A209: 9 | B209: Renato Amaral | C209: 30 | D209: 147 | E209: 00:01:02.637 | F209: 60.35
A210: 9 | B210: Renato Amaral | C210: 30 | D210: 147 | E210: 00:01:01.151 | F210: 61.81
A211: 9 | B211: Renato Amaral | C211: 30 | D211: 147 | E211: 00:01:02.127 | F211: 60.84
A212: 9 | B212: Renato Amaral | C212: 30 | D212: 147 | E212: 00:01:01.380 | F212: 61.58
A213: 9 | B213: Renato Amaral | C213: 30 | D213: 147 | E213: 00:01:01.562 | F213: 61.4
A214: 9 | B214: Renato Amaral | C214: 30 | D214: 147 | E214: 00:01:01.601 | F214: 61.36
A215: 9 | B215: Renato Amaral | C215: 30 | D215: 147 | E215: 00:01:01.994 | F215: 60.97
A216: 9 | B216: Renato Amaral | C216: 30 | D216: 147 | E216: 00:01:01.698 | F216: 61.27
A217: 9 | B217: Renato Amaral | C217: 30 | D217: 147 | E217: 00:01:02.013 | F217: 60.95
A218: 9 | B218: Renato Amaral | C218: 30 | D218: 147 | E218: 00:01:01.023 | F218: 61.94
A219: 9 | B219: Renato Amaral | C219: 30 | D219: 147 | E219: 00:01:00.992 | F219: 61.98
A220: 9 | B220: Renato Amaral | C220: 30 | D220: 147 | E220: 00:01:01.452 | F220: 61.51
A221: 9 | B221: Renato Amaral | C221: 30 | D221: 147 | E221: 00:01:01.064 | F221: 61.9
A222: 9 | B222: Renato Amaral | C222: 30 | D222: 147 | E222: 00:01:01.206 | F222: 61.76
A223: 9 | B223: Renato Amaral | C223: 30 | D223: 147 | E223: 00:01:01.177 | F223: 61.79
A224: 9 | B224: Renato Amaral | C224: 30 | D224: 147 | E224: 00:01:01.687 | F224: 61.28
A225: 9 | B225: Renato Amaral | C225: 30 | D225: 147 | E225: 00:01:02.313 | F225: 60.66
A226: 9 | B226: Renato Amaral | C226: 30 | D226: 147 | E226: 00:01:01.657 | F226: 61.31
A227: 9 | B227: Renato Amaral | C227: 30 | D227: 147 | E227: 00:01:01.411 | F227: 61.55
... 383 more rows

Sheet ETAPA 8
A1: Obs.: Selecione até 3 pilotos colocando na frente do seu nome os números 1, 2 e 3. | H1: PILOTO | I1: =J52 -> Marcelo Clemente | J1: =K52 -> Wesley Bambirra | K1: =L52 -> Wesley Canuto
A2: 1 | B2: Marcelo Clemente | H2: MÉDIA | I2: =AVERAGE(J53:J97) -> 00:01:00.248 | J2: =AVERAGE(K53:K97) -> 00:01:00.524 | K2: =AVERAGE(L53:L97) -> 00:01:00.583
A3: 2 | B3: Wesley Bambirra | H3: MAXIMA | I3: =LARGE(J53:J97,1) -> 00:01:06.171 | J3: =LARGE(K53:K97,1) -> 00:01:06.261 | K3: =LARGE(L53:L97,1) -> 00:01:06.402
A4: 3 | B4: Wesley Canuto | H4: MÍNIMA | I4: =SMALL(J53:J97,1) -> 00:00:59.776 | J4: =SMALL(K53:K97,1) -> 00:00:59.734 | K4: =SMALL(L53:L97,1) -> 00:00:59.908
B5: Guilherme Alves | H5: Desvio Padrão | I5: =_xlfn.STDEV.S(J53:J97) -> 00:00:01.147 | J5: =_xlfn.STDEV.S(K53:K97) -> 00:00:01.125 | K5: =_xlfn.STDEV.S(L53:L97) -> 00:00:01.151
B6: LEO OLIVEIRA | H6: TEMPO TOTAL | I6: =SUM(J53:J97,1) -> 1.02091941 | J6: =SUM(K53:K97,1) -> 1.021015301 | K6: =SUM(L53:L97,1) -> 1.021035799
B7: Marcelo Campos
B8: Lucca Veloso
B9: Daniel Nahum
B10: Lucas Guimarães
B11: Marcelo Pereira
B12: Marcelo Marcondes
B13: Alexandre Melillo | K13: =SMALL(I4:K4,1)-L13 -> 00:00:59.734
B14: Eduardo Henrique | K14: =LARGE(I3:K3,1)+L13 -> 00:01:06.402
B15: Jarbas Reis
B16: DELCIO RAGAZZI
B17: Vitor Gatti
B18: Rodrigo Ricardo
B19: Reila Ricardo
B20: Hélio Chagas
B21: Felipe Bouhid
B22: Jucimar Vieira
B23: FLAVIO MARQUES
B24: Andre Resende
B25: Tati Marcondes
B26: Izabella Rodrigues
B27: Roberta Epifânio
B28: Marcelo Chagas
A32: 1
A50: ETAPA | B50: PILOTO | C50: NÚMERO VOLTAS | D50: KART | E50: Volta Tm | F50: velocidade Media | J50: =MATCH(J52,$B$51:$B$1500,0) -> 1 | K50: =MATCH(K52,$B$51:$B$1500,0) -> 31 | L50: 61
A51: 8 | B51: Marcelo Clemente | C51: 30 | D51: 148 | E51: 00:01:06.171 | F51: 58.87 | J51: =VLOOKUP(J$52,$B$50:$F$1500,2,FALSE) -> 30 | K51: =VLOOKUP(K$52,$B$50:$F$1500,2,FALSE) -> 30 | L51: =VLOOKUP(L$52,$B$50:$F$1500,2,FALSE) -> 30
A52: 8 | B52: Marcelo Clemente | C52: 30 | D52: 148 | E52: 00:01:00.609 | F52: 64.27 | I52: VOLTA | J52: =VLOOKUP(1,$A$2:$B$36,2,FALSE) -> Marcelo Clemente | K52: =VLOOKUP(2,$A$2:$B$36,2,FALSE) -> Wesley Bambirra | L52: =VLOOKUP(3,$A$2:$B$36,2,FALSE) -> Wesley Canuto
A53: 8 | B53: Marcelo Clemente | C53: 30 | D53: 148 | E53: 00:01:00.561 | F53: 64.32 | I53: 1 | J53: =OFFSET($E$51:$E$1500,J50-1,,J51) -> 00:01:06.171 | K53: =OFFSET($E$51:$E$1500,K50-1,,K51) -> 00:01:06.261 | L53: =OFFSET($E$51:$E$1500,L50-1,,L51) -> 00:01:06.402
A54: 8 | B54: Marcelo Clemente | C54: 30 | D54: 148 | E54: 00:01:00.620 | F54: 64.26 | I54: 2 | J54: 00:01:00.609 | K54: 00:01:00.536 | L54: 00:01:01.256
A55: 8 | B55: Marcelo Clemente | C55: 30 | D55: 148 | E55: 00:01:00.312 | F55: 64.58 | I55: 3 | J55: 00:01:00.561 | K55: 00:01:00.788 | L55: 00:01:00.610
A56: 8 | B56: Marcelo Clemente | C56: 30 | D56: 148 | E56: 00:01:00.401 | F56: 64.49 | I56: 4 | J56: 00:01:00.620 | K56: 00:01:00.651 | L56: 00:01:00.333
A57: 8 | B57: Marcelo Clemente | C57: 30 | D57: 148 | E57: 00:01:00.405 | F57: 64.48 | I57: 5 | J57: 00:01:00.312 | K57: 00:01:00.136 | L57: 00:01:00.249
A58: 8 | B58: Marcelo Clemente | C58: 30 | D58: 148 | E58: 00:01:00.246 | F58: 64.65 | I58: 6 | J58: 00:01:00.401 | K58: 00:01:00.209 | L58: 00:01:00.110
A59: 8 | B59: Marcelo Clemente | C59: 30 | D59: 148 | E59: 00:01:00.072 | F59: 64.84 | I59: 7 | J59: 00:01:00.405 | K59: 00:00:59.913 | L59: 00:01:00.903
A60: 8 | B60: Marcelo Clemente | C60: 30 | D60: 148 | E60: 00:01:00.175 | F60: 64.73 | I60: 8 | J60: 00:01:00.246 | K60: 00:01:00.535 | L60: 00:01:00.813
A61: 8 | B61: Marcelo Clemente | C61: 30 | D61: 148 | E61: 00:00:59.981 | F61: 64.94 | I61: 9 | J61: 00:01:00.072 | K61: 00:01:00.132 | L61: 00:01:00.392
A62: 8 | B62: Marcelo Clemente | C62: 30 | D62: 148 | E62: 00:01:00.016 | F62: 64.9 | I62: 10 | J62: 00:01:00.175 | K62: 00:01:00.216 | L62: 00:01:00.398
A63: 8 | B63: Marcelo Clemente | C63: 30 | D63: 148 | E63: 00:00:59.928 | F63: 65 | I63: 11 | J63: 00:00:59.981 | K63: 00:01:00.331 | L63: 00:01:00.265
A64: 8 | B64: Marcelo Clemente | C64: 30 | D64: 148 | E64: 00:00:59.802 | F64: 65.13 | I64: 12 | J64: 00:01:00.016 | K64: 00:01:00.376 | L64: 00:01:00.289
A65: 8 | B65: Marcelo Clemente | C65: 30 | D65: 148 | E65: 00:00:59.833 | F65: 65.1 | I65: 13 | J65: 00:00:59.928 | K65: 00:01:00.161 | L65: 00:01:00.102
A66: 8 | B66: Marcelo Clemente | C66: 30 | D66: 148 | E66: 00:00:59.884 | F66: 65.05 | I66: 14 | J66: 00:00:59.802 | K66: 00:01:00.049 | L66: 00:00:59.908
A67: 8 | B67: Marcelo Clemente | C67: 30 | D67: 148 | E67: 00:00:59.886 | F67: 65.04 | I67: 15 | J67: 00:00:59.833 | K67: 00:01:00.718 | L67: 00:01:00.139
A68: 8 | B68: Marcelo Clemente | C68: 30 | D68: 148 | E68: 00:00:59.857 | F68: 65.08 | I68: 16 | J68: 00:00:59.884 | K68: 00:01:00.184 | L68: 00:01:00.065
A69: 8 | B69: Marcelo Clemente | C69: 30 | D69: 148 | E69: 00:00:59.954 | F69: 64.97 | I69: 17 | J69: 00:00:59.886 | K69: 00:00:59.734 | L69: 00:01:00.076
A70: 8 | B70: Marcelo Clemente | C70: 30 | D70: 148 | E70: 00:00:59.853 | F70: 65.08 | I70: 18 | J70: 00:00:59.857 | K70: 00:01:00.239 | L70: 00:01:00.069
A71: 8 | B71: Marcelo Clemente | C71: 30 | D71: 148 | E71: 00:00:59.776 | F71: 65.16 | I71: 19 | J71: 00:00:59.954 | K71: 00:01:00.461 | L71: 00:01:01.026
A72: 8 | B72: Marcelo Clemente | C72: 30 | D72: 148 | E72: 00:00:59.932 | F72: 64.99 | I72: 20 | J72: 00:00:59.853 | K72: 00:01:00.149 | L72: 00:01:00.228
A73: 8 | B73: Marcelo Clemente | C73: 30 | D73: 148 | E73: 00:00:59.785 | F73: 65.15 | I73: 21 | J73: 00:00:59.776 | K73: 00:01:00.016 | L73: 00:00:59.987
A74: 8 | B74: Marcelo Clemente | C74: 30 | D74: 148 | E74: 00:00:59.940 | F74: 64.98 | I74: 22 | J74: 00:00:59.932 | K74: 00:01:00.205 | L74: 00:01:00.228
A75: 8 | B75: Marcelo Clemente | C75: 30 | D75: 148 | E75: 00:00:59.905 | F75: 65.02 | I75: 23 | J75: 00:00:59.785 | K75: 00:01:00.537 | L75: 00:01:00.517
A76: 8 | B76: Marcelo Clemente | C76: 30 | D76: 148 | E76: 00:00:59.970 | F76: 64.95 | I76: 24 | J76: 00:00:59.940 | K76: 00:01:00.391 | L76: 00:01:00.374
A77: 8 | B77: Marcelo Clemente | C77: 30 | D77: 148 | E77: 00:00:59.991 | F77: 64.93 | I77: 25 | J77: 00:00:59.905 | K77: 00:01:01.300 | L77: 00:01:00.639
A78: 8 | B78: Marcelo Clemente | C78: 30 | D78: 148 | E78: 00:00:59.849 | F78: 65.08 | I78: 26 | J78: 00:00:59.970 | K78: 00:01:00.052 | L78: 00:01:00.174
A79: 8 | B79: Marcelo Clemente | C79: 30 | D79: 148 | E79: 00:00:59.880 | F79: 65.05 | I79: 27 | J79: 00:00:59.991 | K79: 00:01:00.075 | L79: 00:01:00.039
A80: 8 | B80: Marcelo Clemente | C80: 30 | D80: 148 | E80: 00:00:59.843 | F80: 65.09 | I80: 28 | J80: 00:00:59.849 | K80: 00:01:00.457 | L80: 00:01:01.057
A81: 8 | B81: Wesley Bambirra | C81: 30 | D81: 114 | E81: 00:01:06.261 | F81: 58.79 | I81: 29 | J81: 00:00:59.880 | K81: 00:01:00.418 | L81: 00:01:00.354
A82: 8 | B82: Wesley Bambirra | C82: 30 | D82: 114 | E82: 00:01:00.536 | F82: 64.35 | I82: 30 | J82: 00:00:59.843 | K82: 00:01:00.492 | L82: 00:01:00.491
A83: 8 | B83: Wesley Bambirra | C83: 30 | D83: 114 | E83: 00:01:00.788 | F83: 64.08 | I83: 31
A84: 8 | B84: Wesley Bambirra | C84: 30 | D84: 114 | E84: 00:01:00.651 | F84: 64.22 | I84: 32
A85: 8 | B85: Wesley Bambirra | C85: 30 | D85: 114 | E85: 00:01:00.136 | F85: 64.77 | I85: 33
A86: 8 | B86: Wesley Bambirra | C86: 30 | D86: 114 | E86: 00:01:00.209 | F86: 64.69 | I86: 34
A87: 8 | B87: Wesley Bambirra | C87: 30 | D87: 114 | E87: 00:00:59.913 | F87: 65.01 | I87: 35
A88: 8 | B88: Wesley Bambirra | C88: 30 | D88: 114 | E88: 00:01:00.535 | F88: 64.35 | I88: 36
A89: 8 | B89: Wesley Bambirra | C89: 30 | D89: 114 | E89: 00:01:00.132 | F89: 64.78 | I89: 37
A90: 8 | B90: Wesley Bambirra | C90: 30 | D90: 114 | E90: 00:01:00.216 | F90: 64.69 | I90: 38
A91: 8 | B91: Wesley Bambirra | C91: 30 | D91: 114 | E91: 00:01:00.331 | F91: 64.56 | I91: 39
A92: 8 | B92: Wesley Bambirra | C92: 30 | D92: 114 | E92: 00:01:00.376 | F92: 64.52 | I92: 40
A93: 8 | B93: Wesley Bambirra | C93: 30 | D93: 114 | E93: 00:01:00.161 | F93: 64.75 | I93: 41
A94: 8 | B94: Wesley Bambirra | C94: 30 | D94: 114 | E94: 00:01:00.049 | F94: 64.87 | I94: 42
A95: 8 | B95: Wesley Bambirra | C95: 30 | D95: 114 | E95: 00:01:00.718 | F95: 64.15 | I95: 43
A96: 8 | B96: Wesley Bambirra | C96: 30 | D96: 114 | E96: 00:01:00.184 | F96: 64.72 | I96: 44
A97: 8 | B97: Wesley Bambirra | C97: 30 | D97: 114 | E97: 00:00:59.734 | F97: 65.21 | I97: 45
A98: 8 | B98: Wesley Bambirra | C98: 30 | D98: 114 | E98: 00:01:00.239 | F98: 64.66
A99: 8 | B99: Wesley Bambirra | C99: 30 | D99: 114 | E99: 00:01:00.461 | F99: 64.43
A100: 8 | B100: Wesley Bambirra | C100: 30 | D100: 114 | E100: 00:01:00.149 | F100: 64.76
A101: 8 | B101: Wesley Bambirra | C101: 30 | D101: 114 | E101: 00:01:00.016 | F101: 64.9
A102: 8 | B102: Wesley Bambirra | C102: 30 | D102: 114 | E102: 00:01:00.205 | F102: 64.7
A103: 8 | B103: Wesley Bambirra | C103: 30 | D103: 114 | E103: 00:01:00.537 | F103: 64.34
A104: 8 | B104: Wesley Bambirra | C104: 30 | D104: 114 | E104: 00:01:00.391 | F104: 64.5
A105: 8 | B105: Wesley Bambirra | C105: 30 | D105: 114 | E105: 00:01:01.300 | F105: 63.54
A106: 8 | B106: Wesley Bambirra | C106: 30 | D106: 114 | E106: 00:01:00.052 | F106: 64.86
A107: 8 | B107: Wesley Bambirra | C107: 30 | D107: 114 | E107: 00:01:00.075 | F107: 64.84
A108: 8 | B108: Wesley Bambirra | C108: 30 | D108: 114 | E108: 00:01:00.457 | F108: 64.43
A109: 8 | B109: Wesley Bambirra | C109: 30 | D109: 114 | E109: 00:01:00.418 | F109: 64.47
A110: 8 | B110: Wesley Bambirra | C110: 30 | D110: 114 | E110: 00:01:00.492 | F110: 64.39
A111: 8 | B111: Wesley Canuto | C111: 30 | D111: 118 | E111: 00:01:06.402 | F111: 58.66
A112: 8 | B112: Wesley Canuto | C112: 30 | D112: 118 | E112: 00:01:01.256 | F112: 63.59
A113: 8 | B113: Wesley Canuto | C113: 30 | D113: 118 | E113: 00:01:00.610 | F113: 64.27
A114: 8 | B114: Wesley Canuto | C114: 30 | D114: 118 | E114: 00:01:00.333 | F114: 64.56
A115: 8 | B115: Wesley Canuto | C115: 30 | D115: 118 | E115: 00:01:00.249 | F115: 64.65
A116: 8 | B116: Wesley Canuto | C116: 30 | D116: 118 | E116: 00:01:00.110 | F116: 64.8
A117: 8 | B117: Wesley Canuto | C117: 30 | D117: 118 | E117: 00:01:00.903 | F117: 63.96
A118: 8 | B118: Wesley Canuto | C118: 30 | D118: 118 | E118: 00:01:00.813 | F118: 64.05
A119: 8 | B119: Wesley Canuto | C119: 30 | D119: 118 | E119: 00:01:00.392 | F119: 64.5
A120: 8 | B120: Wesley Canuto | C120: 30 | D120: 118 | E120: 00:01:00.398 | F120: 64.49
A121: 8 | B121: Wesley Canuto | C121: 30 | D121: 118 | E121: 00:01:00.265 | F121: 64.63
A122: 8 | B122: Wesley Canuto | C122: 30 | D122: 118 | E122: 00:01:00.289 | F122: 64.61
A123: 8 | B123: Wesley Canuto | C123: 30 | D123: 118 | E123: 00:01:00.102 | F123: 64.81
A124: 8 | B124: Wesley Canuto | C124: 30 | D124: 118 | E124: 00:00:59.908 | F124: 65.02
A125: 8 | B125: Wesley Canuto | C125: 30 | D125: 118 | E125: 00:01:00.139 | F125: 64.77
A126: 8 | B126: Wesley Canuto | C126: 30 | D126: 118 | E126: 00:01:00.065 | F126: 64.85
A127: 8 | B127: Wesley Canuto | C127: 30 | D127: 118 | E127: 00:01:00.076 | F127: 64.84
A128: 8 | B128: Wesley Canuto | C128: 30 | D128: 118 | E128: 00:01:00.069 | F128: 64.85
A129: 8 | B129: Wesley Canuto | C129: 30 | D129: 118 | E129: 00:01:01.026 | F129: 63.83
A130: 8 | B130: Wesley Canuto | C130: 30 | D130: 118 | E130: 00:01:00.228 | F130: 64.67
A131: 8 | B131: Wesley Canuto | C131: 30 | D131: 118 | E131: 00:00:59.987 | F131: 64.93
A132: 8 | B132: Wesley Canuto | C132: 30 | D132: 118 | E132: 00:01:00.228 | F132: 64.67
A133: 8 | B133: Wesley Canuto | C133: 30 | D133: 118 | E133: 00:01:00.517 | F133: 64.37
A134: 8 | B134: Wesley Canuto | C134: 30 | D134: 118 | E134: 00:01:00.374 | F134: 64.52
A135: 8 | B135: Wesley Canuto | C135: 30 | D135: 118 | E135: 00:01:00.639 | F135: 64.24
A136: 8 | B136: Wesley Canuto | C136: 30 | D136: 118 | E136: 00:01:00.174 | F136: 64.73
A137: 8 | B137: Wesley Canuto | C137: 30 | D137: 118 | E137: 00:01:00.039 | F137: 64.88
A138: 8 | B138: Wesley Canuto | C138: 30 | D138: 118 | E138: 00:01:01.057 | F138: 63.8
A139: 8 | B139: Wesley Canuto | C139: 30 | D139: 118 | E139: 00:01:00.354 | F139: 64.54
A140: 8 | B140: Wesley Canuto | C140: 30 | D140: 118 | E140: 00:01:00.491 | F140: 64.39
A141: 8 | B141: Guilherme Alves | C141: 30 | D141: 129 | E141: 00:01:06.614 | F141: 58.47
A142: 8 | B142: Guilherme Alves | C142: 30 | D142: 129 | E142: 00:01:01.366 | F142: 63.47
A143: 8 | B143: Guilherme Alves | C143: 30 | D143: 129 | E143: 00:01:00.638 | F143: 64.24
A144: 8 | B144: Guilherme Alves | C144: 30 | D144: 129 | E144: 00:01:00.324 | F144: 64.57
A145: 8 | B145: Guilherme Alves | C145: 30 | D145: 129 | E145: 00:01:00.249 | F145: 64.65
A146: 8 | B146: Guilherme Alves | C146: 30 | D146: 129 | E146: 00:01:00.133 | F146: 64.78
A147: 8 | B147: Guilherme Alves | C147: 30 | D147: 129 | E147: 00:01:00.881 | F147: 63.98
A148: 8 | B148: Guilherme Alves | C148: 30 | D148: 129 | E148: 00:01:00.339 | F148: 64.56
A149: 8 | B149: Guilherme Alves | C149: 30 | D149: 129 | E149: 00:01:00.799 | F149: 64.07
A150: 8 | B150: Guilherme Alves | C150: 30 | D150: 129 | E150: 00:01:00.446 | F150: 64.44
A151: 8 | B151: Guilherme Alves | C151: 30 | D151: 129 | E151: 00:01:00.262 | F151: 64.64
A152: 8 | B152: Guilherme Alves | C152: 30 | D152: 129 | E152: 00:01:00.320 | F152: 64.58
A153: 8 | B153: Guilherme Alves | C153: 30 | D153: 129 | E153: 00:01:00.088 | F153: 64.82
A154: 8 | B154: Guilherme Alves | C154: 30 | D154: 129 | E154: 00:00:59.920 | F154: 65.01
A155: 8 | B155: Guilherme Alves | C155: 30 | D155: 129 | E155: 00:01:00.143 | F155: 64.77
A156: 8 | B156: Guilherme Alves | C156: 30 | D156: 129 | E156: 00:01:00.063 | F156: 64.85
A157: 8 | B157: Guilherme Alves | C157: 30 | D157: 129 | E157: 00:01:00.072 | F157: 64.84
A158: 8 | B158: Guilherme Alves | C158: 30 | D158: 129 | E158: 00:01:00.074 | F158: 64.84
A159: 8 | B159: Guilherme Alves | C159: 30 | D159: 129 | E159: 00:01:01.015 | F159: 63.84
A160: 8 | B160: Guilherme Alves | C160: 30 | D160: 129 | E160: 00:01:00.152 | F160: 64.76
A161: 8 | B161: Guilherme Alves | C161: 30 | D161: 129 | E161: 00:01:00.050 | F161: 64.87
A162: 8 | B162: Guilherme Alves | C162: 30 | D162: 129 | E162: 00:01:00.222 | F162: 64.68
A163: 8 | B163: Guilherme Alves | C163: 30 | D163: 129 | E163: 00:01:00.509 | F163: 64.37
A164: 8 | B164: Guilherme Alves | C164: 30 | D164: 129 | E164: 00:01:00.355 | F164: 64.54
A165: 8 | B165: Guilherme Alves | C165: 30 | D165: 129 | E165: 00:01:00.694 | F165: 64.18
A166: 8 | B166: Guilherme Alves | C166: 30 | D166: 129 | E166: 00:01:00.171 | F166: 64.74
A167: 8 | B167: Guilherme Alves | C167: 30 | D167: 129 | E167: 00:01:00.042 | F167: 64.87
A168: 8 | B168: Guilherme Alves | C168: 30 | D168: 129 | E168: 00:01:01.020 | F168: 63.83
A169: 8 | B169: Guilherme Alves | C169: 30 | D169: 129 | E169: 00:01:00.392 | F169: 64.5
A170: 8 | B170: Guilherme Alves | C170: 30 | D170: 129 | E170: 00:01:00.598 | F170: 64.28
A171: 8 | B171: LEO OLIVEIRA | C171: 30 | D171: 149 | E171: 00:01:06.257 | F171: 58.79
A172: 8 | B172: LEO OLIVEIRA | C172: 30 | D172: 149 | E172: 00:01:01.836 | F172: 62.99
A173: 8 | B173: LEO OLIVEIRA | C173: 30 | D173: 149 | E173: 00:01:00.516 | F173: 64.37
A174: 8 | B174: LEO OLIVEIRA | C174: 30 | D174: 149 | E174: 00:01:00.646 | F174: 64.23
A175: 8 | B175: LEO OLIVEIRA | C175: 30 | D175: 149 | E175: 00:01:00.796 | F175: 64.07
A176: 8 | B176: LEO OLIVEIRA | C176: 30 | D176: 149 | E176: 00:01:00.630 | F176: 64.25
A177: 8 | B177: LEO OLIVEIRA | C177: 30 | D177: 149 | E177: 00:01:00.283 | F177: 64.62
A178: 8 | B178: LEO OLIVEIRA | C178: 30 | D178: 149 | E178: 00:01:00.375 | F178: 64.52
A179: 8 | B179: LEO OLIVEIRA | C179: 30 | D179: 149 | E179: 00:01:00.159 | F179: 64.75
A180: 8 | B180: LEO OLIVEIRA | C180: 30 | D180: 149 | E180: 00:01:00.383 | F180: 64.51
A181: 8 | B181: LEO OLIVEIRA | C181: 30 | D181: 149 | E181: 00:00:59.828 | F181: 65.11
A182: 8 | B182: LEO OLIVEIRA | C182: 30 | D182: 149 | E182: 00:00:59.898 | F182: 65.03
A183: 8 | B183: LEO OLIVEIRA | C183: 30 | D183: 149 | E183: 00:01:00.041 | F183: 64.88
A184: 8 | B184: LEO OLIVEIRA | C184: 30 | D184: 149 | E184: 00:00:59.971 | F184: 64.95
A185: 8 | B185: LEO OLIVEIRA | C185: 30 | D185: 149 | E185: 00:00:59.933 | F185: 64.99
A186: 8 | B186: LEO OLIVEIRA | C186: 30 | D186: 149 | E186: 00:00:59.967 | F186: 64.96
A187: 8 | B187: LEO OLIVEIRA | C187: 30 | D187: 149 | E187: 00:00:59.885 | F187: 65.04
A188: 8 | B188: LEO OLIVEIRA | C188: 30 | D188: 149 | E188: 00:01:00.481 | F188: 64.4
A189: 8 | B189: LEO OLIVEIRA | C189: 30 | D189: 149 | E189: 00:00:59.727 | F189: 65.22
A190: 8 | B190: LEO OLIVEIRA | C190: 30 | D190: 149 | E190: 00:01:01.280 | F190: 63.56
A191: 8 | B191: LEO OLIVEIRA | C191: 30 | D191: 149 | E191: 00:01:00.070 | F191: 64.84
A192: 8 | B192: LEO OLIVEIRA | C192: 30 | D192: 149 | E192: 00:00:59.876 | F192: 65.05
A193: 8 | B193: LEO OLIVEIRA | C193: 30 | D193: 149 | E193: 00:00:59.907 | F193: 65.02
A194: 8 | B194: LEO OLIVEIRA | C194: 30 | D194: 149 | E194: 00:01:00.153 | F194: 64.75
A195: 8 | B195: LEO OLIVEIRA | C195: 30 | D195: 149 | E195: 00:00:59.958 | F195: 64.97
A196: 8 | B196: LEO OLIVEIRA | C196: 30 | D196: 149 | E196: 00:00:59.765 | F196: 65.18
A197: 8 | B197: LEO OLIVEIRA | C197: 30 | D197: 149 | E197: 00:00:59.726 | F197: 65.22
A198: 8 | B198: LEO OLIVEIRA | C198: 30 | D198: 149 | E198: 00:00:59.916 | F198: 65.01
A199: 8 | B199: LEO OLIVEIRA | C199: 30 | D199: 149 | E199: 00:00:59.941 | F199: 64.98
A200: 8 | B200: LEO OLIVEIRA | C200: 30 | D200: 149 | E200: 00:00:59.699 | F200: 65.25
A201: 8 | B201: Marcelo Campos | C201: 30 | D201: 116 | E201: 00:01:10.166 | F201: 55.51
A202: 8 | B202: Marcelo Campos | C202: 30 | D202: 116 | E202: 00:01:02.232 | F202: 62.59
A203: 8 | B203: Marcelo Campos | C203: 30 | D203: 116 | E203: 00:01:00.766 | F203: 64.1
A204: 8 | B204: Marcelo Campos | C204: 30 | D204: 116 | E204: 00:01:02.147 | F204: 62.68
A205: 8 | B205: Marcelo Campos | C205: 30 | D205: 116 | E205: 00:01:00.435 | F205: 64.45
A206: 8 | B206: Marcelo Campos | C206: 30 | D206: 116 | E206: 00:01:00.692 | F206: 64.18
A207: 8 | B207: Marcelo Campos | C207: 30 | D207: 116 | E207: 00:01:00.588 | F207: 64.29
A208: 8 | B208: Marcelo Campos | C208: 30 | D208: 116 | E208: 00:00:59.889 | F208: 65.04
A209: 8 | B209: Marcelo Campos | C209: 30 | D209: 116 | E209: 00:00:59.904 | F209: 65.02
A210: 8 | B210: Marcelo Campos | C210: 30 | D210: 116 | E210: 00:01:00.076 | F210: 64.84
A211: 8 | B211: Marcelo Campos | C211: 30 | D211: 116 | E211: 00:00:59.821 | F211: 65.11
A212: 8 | B212: Marcelo Campos | C212: 30 | D212: 116 | E212: 00:00:59.906 | F212: 65.02
A213: 8 | B213: Marcelo Campos | C213: 30 | D213: 116 | E213: 00:01:00.039 | F213: 64.88
A214: 8 | B214: Marcelo Campos | C214: 30 | D214: 116 | E214: 00:00:59.943 | F214: 64.98
A215: 8 | B215: Marcelo Campos | C215: 30 | D215: 116 | E215: 00:00:59.958 | F215: 64.97
A216: 8 | B216: Marcelo Campos | C216: 30 | D216: 116 | E216: 00:00:59.970 | F216: 64.95
A217: 8 | B217: Marcelo Campos | C217: 30 | D217: 116 | E217: 00:00:59.888 | F217: 65.04
A218: 8 | B218: Marcelo Campos | C218: 30 | D218: 116 | E218: 00:00:59.864 | F218: 65.07
A219: 8 | B219: Marcelo Campos | C219: 30 | D219: 116 | E219: 00:01:00.124 | F219: 64.79
A220: 8 | B220: Marcelo Campos | C220: 30 | D220: 116 | E220: 00:01:02.476 | F220: 62.35
... 622 more rows

Sheet ETAPA 7
A1: Obs.: Selecione até 3 pilotos colocando na frente do seu nome os números 1, 2 e 3. | H1: PILOTO | I1: =J52 -> Marcelo Clemente | J1: =K52 -> Marcelo Campos | K1: =L52 -> Daniel Nahum
A2: 1 | B2: Marcelo Clemente | H2: MÉDIA | I2: =AVERAGE(J53:J97) -> 00:01:10.203 | J2: =AVERAGE(K53:K97) -> 00:01:10.178 | K2: =AVERAGE(L53:L97) -> 00:01:10.492
A3: 2 | B3: Marcelo Campos | H3: MAXIMA | I3: =LARGE(J53:J97,1) -> 00:01:15.591 | J3: =LARGE(K53:K97,1) -> 00:01:16.604 | K3: =LARGE(L53:L97,1) -> 00:01:19.783
A4: 3 | B4: Daniel Nahum | H4: MÍNIMA | I4: =SMALL(J53:J97,1) -> 00:01:09.457 | J4: =SMALL(K53:K97,1) -> 00:01:09.308 | K4: =SMALL(L53:L97,1) -> 00:01:09.400
B5: Marcelo Pereira | H5: Desvio Padrão | I5: =_xlfn.STDEV.S(J53:J97) -> 00:00:01.210 | J5: =_xlfn.STDEV.S(K53:K97) -> 00:00:01.404 | K5: =_xlfn.STDEV.S(L53:L97) -> 00:00:02.001
B6: Alexandre Melillo | H6: TEMPO TOTAL | I6: =SUM(J53:J97,1) -> 1.021125914 | J6: =SUM(K53:K97,1) -> 1.02111831 | K6: =SUM(L53:L97,1) -> 1.021212766
B7: Guilherme Alves
B8: Maurício Júnior
B9: Rodrigo Mercadante
B10: Wesley Canuto
B11: Eduardo Henrique
B12: Lucas Guimarães
B13: Jarbas Reis | K13: =SMALL(I4:K4,1)-L13 -> 00:01:09.308
B14: Wesley Bambirra | K14: =LARGE(I3:K3,1)+L13 -> 00:01:19.783
B15: Marcelo Chagas
B16: Cláudio Naves
B17: Hélio Chagas
B18: Izabella Rodrigues
B19: Jucimar Vieira
B20: Wesley Camargos
B21: Roberta Epifânio
B22: Leandro Malias
A32: 1
A50: ETAPA | B50: PILOTO | C50: NÚMERO VOLTAS | D50: KART | E50: Volta Tm | F50: velocidade Media | J50: =MATCH(J52,$B$51:$B$1500,0) -> 1 | K50: =MATCH(K52,$B$51:$B$1500,0) -> 27 | L50: 53
A51: 7 | B51: Marcelo Clemente | C51: 26 | D51: 106 | E51: 00:01:15.591 | F51: 57.15 | J51: =VLOOKUP(J$52,$B$50:$F$1500,2,FALSE) -> 26 | K51: =VLOOKUP(K$52,$B$50:$F$1500,2,FALSE) -> 26 | L51: =VLOOKUP(L$52,$B$50:$F$1500,2,FALSE) -> 26
A52: 7 | B52: Marcelo Clemente | C52: 26 | D52: 106 | E52: 00:01:11.712 | F52: 60.24 | I52: VOLTA | J52: =VLOOKUP(1,$A$2:$B$36,2,FALSE) -> Marcelo Clemente | K52: =VLOOKUP(2,$A$2:$B$36,2,FALSE) -> Marcelo Campos | L52: =VLOOKUP(3,$A$2:$B$36,2,FALSE) -> Daniel Nahum
A53: 7 | B53: Marcelo Clemente | C53: 26 | D53: 106 | E53: 00:01:11.099 | F53: 60.76 | I53: 1 | J53: =OFFSET($E$51:$E$1500,J50-1,,J51) -> 00:01:15.591 | K53: =OFFSET($E$51:$E$1500,K50-1,,K51) -> 00:01:16.604 | L53: =OFFSET($E$51:$E$1500,L50-1,,L51) -> 00:01:19.783
A54: 7 | B54: Marcelo Clemente | C54: 26 | D54: 106 | E54: 00:01:10.442 | F54: 61.33 | I54: 2 | J54: 00:01:11.712 | K54: 00:01:10.765 | L54: 00:01:11.181
A55: 7 | B55: Marcelo Clemente | C55: 26 | D55: 106 | E55: 00:01:10.265 | F55: 61.48 | I55: 3 | J55: 00:01:11.099 | K55: 00:01:11.018 | L55: 00:01:10.252
A56: 7 | B56: Marcelo Clemente | C56: 26 | D56: 106 | E56: 00:01:10.214 | F56: 61.53 | I56: 4 | J56: 00:01:10.442 | K56: 00:01:10.765 | L56: 00:01:11.047
A57: 7 | B57: Marcelo Clemente | C57: 26 | D57: 106 | E57: 00:01:09.992 | F57: 61.72 | I57: 5 | J57: 00:01:10.265 | K57: 00:01:10.877 | L57: 00:01:11.186
A58: 7 | B58: Marcelo Clemente | C58: 26 | D58: 106 | E58: 00:01:09.950 | F58: 61.76 | I58: 6 | J58: 00:01:10.214 | K58: 00:01:10.802 | L58: 00:01:10.855
A59: 7 | B59: Marcelo Clemente | C59: 26 | D59: 106 | E59: 00:01:10.059 | F59: 61.66 | I59: 7 | J59: 00:01:09.992 | K59: 00:01:09.891 | L59: 00:01:11.281
A60: 7 | B60: Marcelo Clemente | C60: 26 | D60: 106 | E60: 00:01:09.662 | F60: 62.01 | I60: 8 | J60: 00:01:09.950 | K60: 00:01:09.710 | L60: 00:01:09.839
A61: 7 | B61: Marcelo Clemente | C61: 26 | D61: 106 | E61: 00:01:09.769 | F61: 61.92 | I61: 9 | J61: 00:01:10.059 | K61: 00:01:09.876 | L61: 00:01:09.410
A62: 7 | B62: Marcelo Clemente | C62: 26 | D62: 106 | E62: 00:01:10.090 | F62: 61.64 | I62: 10 | J62: 00:01:09.662 | K62: 00:01:09.869 | L62: 00:01:09.900
A63: 7 | B63: Marcelo Clemente | C63: 26 | D63: 106 | E63: 00:01:09.646 | F63: 62.03 | I63: 11 | J63: 00:01:09.769 | K63: 00:01:09.649 | L63: 00:01:09.937
A64: 7 | B64: Marcelo Clemente | C64: 26 | D64: 106 | E64: 00:01:09.680 | F64: 62 | I64: 12 | J64: 00:01:10.090 | K64: 00:01:09.617 | L64: 00:01:09.400
A65: 7 | B65: Marcelo Clemente | C65: 26 | D65: 106 | E65: 00:01:09.844 | F65: 61.85 | I65: 13 | J65: 00:01:09.646 | K65: 00:01:09.310 | L65: 00:01:09.454
A66: 7 | B66: Marcelo Clemente | C66: 26 | D66: 106 | E66: 00:01:10.516 | F66: 61.26 | I66: 14 | J66: 00:01:09.680 | K66: 00:01:09.308 | L66: 00:01:10.386
A67: 7 | B67: Marcelo Clemente | C67: 26 | D67: 106 | E67: 00:01:09.883 | F67: 61.82 | I67: 15 | J67: 00:01:09.844 | K67: 00:01:09.422 | L67: 00:01:11.267
A68: 7 | B68: Marcelo Clemente | C68: 26 | D68: 106 | E68: 00:01:09.650 | F68: 62.02 | I68: 16 | J68: 00:01:10.516 | K68: 00:01:10.138 | L68: 00:01:09.793
A69: 7 | B69: Marcelo Clemente | C69: 26 | D69: 106 | E69: 00:01:09.457 | F69: 62.2 | I69: 17 | J69: 00:01:09.883 | K69: 00:01:09.594 | L69: 00:01:10.463
A70: 7 | B70: Marcelo Clemente | C70: 26 | D70: 106 | E70: 00:01:09.797 | F70: 61.89 | I70: 18 | J70: 00:01:09.650 | K70: 00:01:09.608 | L70: 00:01:10.099
A71: 7 | B71: Marcelo Clemente | C71: 26 | D71: 106 | E71: 00:01:09.723 | F71: 61.96 | I71: 19 | J71: 00:01:09.457 | K71: 00:01:09.534 | L71: 00:01:10.169
A72: 7 | B72: Marcelo Clemente | C72: 26 | D72: 106 | E72: 00:01:09.482 | F72: 62.17 | I72: 20 | J72: 00:01:09.797 | K72: 00:01:09.560 | L72: 00:01:09.729
A73: 7 | B73: Marcelo Clemente | C73: 26 | D73: 106 | E73: 00:01:09.838 | F73: 61.86 | I73: 21 | J73: 00:01:09.723 | K73: 00:01:09.741 | L73: 00:01:09.452
A74: 7 | B74: Marcelo Clemente | C74: 26 | D74: 106 | E74: 00:01:09.766 | F74: 61.92 | I74: 22 | J74: 00:01:09.482 | K74: 00:01:09.819 | L74: 00:01:09.457
A75: 7 | B75: Marcelo Clemente | C75: 26 | D75: 106 | E75: 00:01:09.609 | F75: 62.06 | I75: 23 | J75: 00:01:09.838 | K75: 00:01:10.008 | L75: 00:01:09.553
A76: 7 | B76: Marcelo Clemente | C76: 26 | D76: 106 | E76: 00:01:09.543 | F76: 62.12 | I76: 24 | J76: 00:01:09.766 | K76: 00:01:09.954 | L76: 00:01:09.539
A77: 7 | B77: Marcelo Campos | C77: 26 | D77: 130 | E77: 00:01:16.604 | F77: 56.39 | I77: 25 | J77: 00:01:09.609 | K77: 00:01:09.615 | L77: 00:01:09.685
A78: 7 | B78: Marcelo Campos | C78: 26 | D78: 130 | E78: 00:01:10.765 | F78: 61.05 | I78: 26 | J78: 00:01:09.543 | K78: 00:01:09.568 | L78: 00:01:09.666
A79: 7 | B79: Marcelo Campos | C79: 26 | D79: 130 | E79: 00:01:11.018 | F79: 60.83 | I79: 27
A80: 7 | B80: Marcelo Campos | C80: 26 | D80: 130 | E80: 00:01:10.765 | F80: 61.05 | I80: 28
A81: 7 | B81: Marcelo Campos | C81: 26 | D81: 130 | E81: 00:01:10.877 | F81: 60.95 | I81: 29
A82: 7 | B82: Marcelo Campos | C82: 26 | D82: 130 | E82: 00:01:10.802 | F82: 61.02 | I82: 30
A83: 7 | B83: Marcelo Campos | C83: 26 | D83: 130 | E83: 00:01:09.891 | F83: 61.81 | I83: 31
A84: 7 | B84: Marcelo Campos | C84: 26 | D84: 130 | E84: 00:01:09.710 | F84: 61.97 | I84: 32
A85: 7 | B85: Marcelo Campos | C85: 26 | D85: 130 | E85: 00:01:09.876 | F85: 61.82 | I85: 33
A86: 7 | B86: Marcelo Campos | C86: 26 | D86: 130 | E86: 00:01:09.869 | F86: 61.83 | I86: 34
A87: 7 | B87: Marcelo Campos | C87: 26 | D87: 130 | E87: 00:01:09.649 | F87: 62.03 | I87: 35
A88: 7 | B88: Marcelo Campos | C88: 26 | D88: 130 | E88: 00:01:09.617 | F88: 62.05 | I88: 36
A89: 7 | B89: Marcelo Campos | C89: 26 | D89: 130 | E89: 00:01:09.310 | F89: 62.33 | I89: 37
A90: 7 | B90: Marcelo Campos | C90: 26 | D90: 130 | E90: 00:01:09.308 | F90: 62.33 | I90: 38
A91: 7 | B91: Marcelo Campos | C91: 26 | D91: 130 | E91: 00:01:09.422 | F91: 62.23 | I91: 39
A92: 7 | B92: Marcelo Campos | C92: 26 | D92: 130 | E92: 00:01:10.138 | F92: 61.59 | I92: 40
A93: 7 | B93: Marcelo Campos | C93: 26 | D93: 130 | E93: 00:01:09.594 | F93: 62.07 | I93: 41
A94: 7 | B94: Marcelo Campos | C94: 26 | D94: 130 | E94: 00:01:09.608 | F94: 62.06 | I94: 42
A95: 7 | B95: Marcelo Campos | C95: 26 | D95: 130 | E95: 00:01:09.534 | F95: 62.13 | I95: 43
A96: 7 | B96: Marcelo Campos | C96: 26 | D96: 130 | E96: 00:01:09.560 | F96: 62.1 | I96: 44
A97: 7 | B97: Marcelo Campos | C97: 26 | D97: 130 | E97: 00:01:09.741 | F97: 61.94 | I97: 45
A98: 7 | B98: Marcelo Campos | C98: 26 | D98: 130 | E98: 00:01:09.819 | F98: 61.87
A99: 7 | B99: Marcelo Campos | C99: 26 | D99: 130 | E99: 00:01:10.008 | F99: 61.71
A100: 7 | B100: Marcelo Campos | C100: 26 | D100: 130 | E100: 00:01:09.954 | F100: 61.75
A101: 7 | B101: Marcelo Campos | C101: 26 | D101: 130 | E101: 00:01:09.615 | F101: 62.06
A102: 7 | B102: Marcelo Campos | C102: 26 | D102: 130 | E102: 00:01:09.568 | F102: 62.1
A103: 7 | B103: Daniel Nahum | C103: 26 | D103: 134 | E103: 00:01:19.783 | F103: 54.15
A104: 7 | B104: Daniel Nahum | C104: 26 | D104: 134 | E104: 00:01:11.181 | F104: 60.69
A105: 7 | B105: Daniel Nahum | C105: 26 | D105: 134 | E105: 00:01:10.252 | F105: 61.49
A106: 7 | B106: Daniel Nahum | C106: 26 | D106: 134 | E106: 00:01:11.047 | F106: 60.8
A107: 7 | B107: Daniel Nahum | C107: 26 | D107: 134 | E107: 00:01:11.186 | F107: 60.69
A108: 7 | B108: Daniel Nahum | C108: 26 | D108: 134 | E108: 00:01:10.855 | F108: 60.97
A109: 7 | B109: Daniel Nahum | C109: 26 | D109: 134 | E109: 00:01:11.281 | F109: 60.61
A110: 7 | B110: Daniel Nahum | C110: 26 | D110: 134 | E110: 00:01:09.839 | F110: 61.86
A111: 7 | B111: Daniel Nahum | C111: 26 | D111: 134 | E111: 00:01:09.410 | F111: 62.24
A112: 7 | B112: Daniel Nahum | C112: 26 | D112: 134 | E112: 00:01:09.900 | F112: 61.8
A113: 7 | B113: Daniel Nahum | C113: 26 | D113: 134 | E113: 00:01:09.937 | F113: 61.77
A114: 7 | B114: Daniel Nahum | C114: 26 | D114: 134 | E114: 00:01:09.400 | F114: 62.25
A115: 7 | B115: Daniel Nahum | C115: 26 | D115: 134 | E115: 00:01:09.454 | F115: 62.2
A116: 7 | B116: Daniel Nahum | C116: 26 | D116: 134 | E116: 00:01:10.386 | F116: 61.38
A117: 7 | B117: Daniel Nahum | C117: 26 | D117: 134 | E117: 00:01:11.267 | F117: 60.62
A118: 7 | B118: Daniel Nahum | C118: 26 | D118: 134 | E118: 00:01:09.793 | F118: 61.9
A119: 7 | B119: Daniel Nahum | C119: 26 | D119: 134 | E119: 00:01:10.463 | F119: 61.31
A120: 7 | B120: Daniel Nahum | C120: 26 | D120: 134 | E120: 00:01:10.099 | F120: 61.63
A121: 7 | B121: Daniel Nahum | C121: 26 | D121: 134 | E121: 00:01:10.169 | F121: 61.57
A122: 7 | B122: Daniel Nahum | C122: 26 | D122: 134 | E122: 00:01:09.729 | F122: 61.95
A123: 7 | B123: Daniel Nahum | C123: 26 | D123: 134 | E123: 00:01:09.452 | F123: 62.2
A124: 7 | B124: Daniel Nahum | C124: 26 | D124: 134 | E124: 00:01:09.457 | F124: 62.2
A125: 7 | B125: Daniel Nahum | C125: 26 | D125: 134 | E125: 00:01:09.553 | F125: 62.11
A126: 7 | B126: Daniel Nahum | C126: 26 | D126: 134 | E126: 00:01:09.539 | F126: 62.12
A127: 7 | B127: Daniel Nahum | C127: 26 | D127: 134 | E127: 00:01:09.685 | F127: 61.99
A128: 7 | B128: Daniel Nahum | C128: 26 | D128: 134 | E128: 00:01:09.666 | F128: 62.01
A129: 7 | B129: Marcelo Pereira | C129: 26 | D129: 132 | E129: 00:01:16.890 | F129: 56.18
A130: 7 | B130: Marcelo Pereira | C130: 26 | D130: 132 | E130: 00:01:11.373 | F130: 60.53
A131: 7 | B131: Marcelo Pereira | C131: 26 | D131: 132 | E131: 00:01:10.330 | F131: 61.42
A132: 7 | B132: Marcelo Pereira | C132: 26 | D132: 132 | E132: 00:01:10.682 | F132: 61.12
A133: 7 | B133: Marcelo Pereira | C133: 26 | D133: 132 | E133: 00:01:10.557 | F133: 61.23
A134: 7 | B134: Marcelo Pereira | C134: 26 | D134: 132 | E134: 00:01:10.183 | F134: 61.55
A135: 7 | B135: Marcelo Pereira | C135: 26 | D135: 132 | E135: 00:01:10.485 | F135: 61.29
A136: 7 | B136: Marcelo Pereira | C136: 26 | D136: 132 | E136: 00:01:10.414 | F136: 61.35
A137: 7 | B137: Marcelo Pereira | C137: 26 | D137: 132 | E137: 00:01:10.348 | F137: 61.41
A138: 7 | B138: Marcelo Pereira | C138: 26 | D138: 132 | E138: 00:01:09.958 | F138: 61.75
A139: 7 | B139: Marcelo Pereira | C139: 26 | D139: 132 | E139: 00:01:10.048 | F139: 61.67
A140: 7 | B140: Marcelo Pereira | C140: 26 | D140: 132 | E140: 00:01:10.677 | F140: 61.12
A141: 7 | B141: Marcelo Pereira | C141: 26 | D141: 132 | E141: 00:01:09.458 | F141: 62.2
A142: 7 | B142: Marcelo Pereira | C142: 26 | D142: 132 | E142: 00:01:10.154 | F142: 61.58
A143: 7 | B143: Marcelo Pereira | C143: 26 | D143: 132 | E143: 00:01:10.757 | F143: 61.05
A144: 7 | B144: Marcelo Pereira | C144: 26 | D144: 132 | E144: 00:01:09.737 | F144: 61.95
A145: 7 | B145: Marcelo Pereira | C145: 26 | D145: 132 | E145: 00:01:09.901 | F145: 61.8
A146: 7 | B146: Marcelo Pereira | C146: 26 | D146: 132 | E146: 00:01:10.687 | F146: 61.11
A147: 7 | B147: Marcelo Pereira | C147: 26 | D147: 132 | E147: 00:01:10.219 | F147: 61.52
A148: 7 | B148: Marcelo Pereira | C148: 26 | D148: 132 | E148: 00:01:10.339 | F148: 61.42
A149: 7 | B149: Marcelo Pereira | C149: 26 | D149: 132 | E149: 00:01:09.439 | F149: 62.21
A150: 7 | B150: Marcelo Pereira | C150: 26 | D150: 132 | E150: 00:01:09.690 | F150: 61.99
A151: 7 | B151: Marcelo Pereira | C151: 26 | D151: 132 | E151: 00:01:09.451 | F151: 62.2
A152: 7 | B152: Marcelo Pereira | C152: 26 | D152: 132 | E152: 00:01:09.597 | F152: 62.07
A153: 7 | B153: Marcelo Pereira | C153: 26 | D153: 132 | E153: 00:01:09.922 | F153: 61.78
A154: 7 | B154: Marcelo Pereira | C154: 26 | D154: 132 | E154: 00:01:09.938 | F154: 61.77
A155: 7 | B155: Alexandre Melillo | C155: 26 | D155: 125 | E155: 00:01:15.849 | F155: 56.96
A156: 7 | B156: Alexandre Melillo | C156: 26 | D156: 125 | E156: 00:01:11.732 | F156: 60.22
A157: 7 | B157: Alexandre Melillo | C157: 26 | D157: 125 | E157: 00:01:11.048 | F157: 60.8
A158: 7 | B158: Alexandre Melillo | C158: 26 | D158: 125 | E158: 00:01:10.550 | F158: 61.23
A159: 7 | B159: Alexandre Melillo | C159: 26 | D159: 125 | E159: 00:01:10.908 | F159: 60.92
A160: 7 | B160: Alexandre Melillo | C160: 26 | D160: 125 | E160: 00:01:11.299 | F160: 60.59
A161: 7 | B161: Alexandre Melillo | C161: 26 | D161: 125 | E161: 00:01:10.185 | F161: 61.55
A162: 7 | B162: Alexandre Melillo | C162: 26 | D162: 125 | E162: 00:01:09.922 | F162: 61.78
A163: 7 | B163: Alexandre Melillo | C163: 26 | D163: 125 | E163: 00:01:10.197 | F163: 61.54
A164: 7 | B164: Alexandre Melillo | C164: 26 | D164: 125 | E164: 00:01:10.244 | F164: 61.5
A165: 7 | B165: Alexandre Melillo | C165: 26 | D165: 125 | E165: 00:01:10.017 | F165: 61.7
A166: 7 | B166: Alexandre Melillo | C166: 26 | D166: 125 | E166: 00:01:09.943 | F166: 61.76
A167: 7 | B167: Alexandre Melillo | C167: 26 | D167: 125 | E167: 00:01:11.241 | F167: 60.64
A168: 7 | B168: Alexandre Melillo | C168: 26 | D168: 125 | E168: 00:01:10.492 | F168: 61.28
A169: 7 | B169: Alexandre Melillo | C169: 26 | D169: 125 | E169: 00:01:10.332 | F169: 61.42
A170: 7 | B170: Alexandre Melillo | C170: 26 | D170: 125 | E170: 00:01:09.980 | F170: 61.73
A171: 7 | B171: Alexandre Melillo | C171: 26 | D171: 125 | E171: 00:01:10.435 | F171: 61.33
A172: 7 | B172: Alexandre Melillo | C172: 26 | D172: 125 | E172: 00:01:11.070 | F172: 60.79
A173: 7 | B173: Alexandre Melillo | C173: 26 | D173: 125 | E173: 00:01:10.331 | F173: 61.42
A174: 7 | B174: Alexandre Melillo | C174: 26 | D174: 125 | E174: 00:01:10.410 | F174: 61.35
A175: 7 | B175: Alexandre Melillo | C175: 26 | D175: 125 | E175: 00:01:09.990 | F175: 61.72
A176: 7 | B176: Alexandre Melillo | C176: 26 | D176: 125 | E176: 00:01:10.013 | F176: 61.7
A177: 7 | B177: Alexandre Melillo | C177: 26 | D177: 125 | E177: 00:01:11.139 | F177: 60.73
A178: 7 | B178: Alexandre Melillo | C178: 26 | D178: 125 | E178: 00:01:10.895 | F178: 60.94
A179: 7 | B179: Alexandre Melillo | C179: 26 | D179: 125 | E179: 00:01:10.478 | F179: 61.3
A180: 7 | B180: Alexandre Melillo | C180: 26 | D180: 125 | E180: 00:01:11.545 | F180: 60.38
A181: 7 | B181: Guilherme Alves | C181: 26 | D181: 108 | E181: 00:01:17.543 | F181: 55.71
A182: 7 | B182: Guilherme Alves | C182: 26 | D182: 108 | E182: 00:01:11.688 | F182: 60.26
A183: 7 | B183: Guilherme Alves | C183: 26 | D183: 108 | E183: 00:01:10.495 | F183: 61.28
A184: 7 | B184: Guilherme Alves | C184: 26 | D184: 108 | E184: 00:01:10.432 | F184: 61.34
A185: 7 | B185: Guilherme Alves | C185: 26 | D185: 108 | E185: 00:01:11.277 | F185: 60.61
A186: 7 | B186: Guilherme Alves | C186: 26 | D186: 108 | E186: 00:01:10.685 | F186: 61.12
A187: 7 | B187: Guilherme Alves | C187: 26 | D187: 108 | E187: 00:01:11.471 | F187: 60.44
A188: 7 | B188: Guilherme Alves | C188: 26 | D188: 108 | E188: 00:01:09.727 | F188: 61.96
A189: 7 | B189: Guilherme Alves | C189: 26 | D189: 108 | E189: 00:01:09.424 | F189: 62.23
A190: 7 | B190: Guilherme Alves | C190: 26 | D190: 108 | E190: 00:01:09.944 | F190: 61.76
A191: 7 | B191: Guilherme Alves | C191: 26 | D191: 108 | E191: 00:01:10.118 | F191: 61.61
A192: 7 | B192: Guilherme Alves | C192: 26 | D192: 108 | E192: 00:01:10.131 | F192: 61.6
A193: 7 | B193: Guilherme Alves | C193: 26 | D193: 108 | E193: 00:01:09.736 | F193: 61.95
A194: 7 | B194: Guilherme Alves | C194: 26 | D194: 108 | E194: 00:01:09.904 | F194: 61.8
A195: 7 | B195: Guilherme Alves | C195: 26 | D195: 108 | E195: 00:01:10.592 | F195: 61.2
A196: 7 | B196: Guilherme Alves | C196: 26 | D196: 108 | E196: 00:01:09.555 | F196: 62.11
A197: 7 | B197: Guilherme Alves | C197: 26 | D197: 108 | E197: 00:01:10.518 | F197: 61.26
A198: 7 | B198: Guilherme Alves | C198: 26 | D198: 108 | E198: 00:01:10.704 | F198: 61.1
A199: 7 | B199: Guilherme Alves | C199: 26 | D199: 108 | E199: 00:01:09.849 | F199: 61.85
A200: 7 | B200: Guilherme Alves | C200: 26 | D200: 108 | E200: 00:01:10.396 | F200: 61.37
A201: 7 | B201: Guilherme Alves | C201: 26 | D201: 108 | E201: 00:01:09.616 | F201: 62.05
A202: 7 | B202: Guilherme Alves | C202: 26 | D202: 108 | E202: 00:01:10.099 | F202: 61.63
A203: 7 | B203: Guilherme Alves | C203: 26 | D203: 108 | E203: 00:01:11.144 | F203: 60.72
A204: 7 | B204: Guilherme Alves | C204: 26 | D204: 108 | E204: 00:01:11.158 | F204: 60.71
A205: 7 | B205: Guilherme Alves | C205: 26 | D205: 108 | E205: 00:01:09.973 | F205: 61.74
A206: 7 | B206: Guilherme Alves | C206: 26 | D206: 108 | E206: 00:01:11.674 | F206: 60.27
A207: 7 | B207: Maurício Júnior | C207: 26 | D207: 131 | E207: 00:01:16.161 | F207: 56.72
A208: 7 | B208: Maurício Júnior | C208: 26 | D208: 131 | E208: 00:01:10.965 | F208: 60.88
A209: 7 | B209: Maurício Júnior | C209: 26 | D209: 131 | E209: 00:01:12.103 | F209: 59.91
A210: 7 | B210: Maurício Júnior | C210: 26 | D210: 131 | E210: 00:01:11.625 | F210: 60.31
A211: 7 | B211: Maurício Júnior | C211: 26 | D211: 131 | E211: 00:01:11.267 | F211: 60.62
A212: 7 | B212: Maurício Júnior | C212: 26 | D212: 131 | E212: 00:01:11.059 | F212: 60.79
A213: 7 | B213: Maurício Júnior | C213: 26 | D213: 131 | E213: 00:01:11.541 | F213: 60.38
A214: 7 | B214: Maurício Júnior | C214: 26 | D214: 131 | E214: 00:01:09.988 | F214: 61.72
A215: 7 | B215: Maurício Júnior | C215: 26 | D215: 131 | E215: 00:01:09.634 | F215: 62.04
A216: 7 | B216: Maurício Júnior | C216: 26 | D216: 131 | E216: 00:01:09.746 | F216: 61.94
A217: 7 | B217: Maurício Júnior | C217: 26 | D217: 131 | E217: 00:01:10.004 | F217: 61.71
A218: 7 | B218: Maurício Júnior | C218: 26 | D218: 131 | E218: 00:01:09.782 | F218: 61.91
A219: 7 | B219: Maurício Júnior | C219: 26 | D219: 131 | E219: 00:01:10.324 | F219: 61.43
A220: 7 | B220: Maurício Júnior | C220: 26 | D220: 131 | E220: 00:01:10.117 | F220: 61.61
A221: 7 | B221: Maurício Júnior | C221: 26 | D221: 131 | E221: 00:01:10.025 | F221: 61.69
A222: 7 | B222: Maurício Júnior | C222: 26 | D222: 131 | E222: 00:01:09.592 | F222: 62.08
A223: 7 | B223: Maurício Júnior | C223: 26 | D223: 131 | E223: 00:01:10.503 | F223: 61.27
A224: 7 | B224: Maurício Júnior | C224: 26 | D224: 131 | E224: 00:01:10.555 | F224: 61.23
A225: 7 | B225: Maurício Júnior | C225: 26 | D225: 131 | E225: 00:01:10.090 | F225: 61.64
A226: 7 | B226: Maurício Júnior | C226: 26 | D226: 131 | E226: 00:01:10.637 | F226: 61.16
... 360 more rows

Sheet ETAPA 6
A1: Obs.: Selecione até 3 pilotos colocando na frente do seu nome os números 1, 2 e 3. | H1: PILOTO | I1: =J52 -> Wesley Bambirra | J1: =K52 -> Alexandre Melillo | K1: =L52 -> Daniel Nahum
A2: 1 | B2: Wesley Bambirra | H2: MÉDIA | I2: =AVERAGE(J53:J97) -> 00:00:50.064 | J2: =AVERAGE(K53:K97) -> 00:00:50.094 | K2: =AVERAGE(L53:L97) -> 00:00:50.140
A3: 2 | B3: Alexandre Melillo | H3: MAXIMA | I3: =LARGE(J53:J97,1) -> 00:00:55.307 | J3: =LARGE(K53:K97,1) -> 00:00:55.106 | K3: =LARGE(L53:L97,1) -> 00:00:55.523
A4: 3 | B4: Daniel Nahum | H4: MÍNIMA | I4: =SMALL(J53:J97,1) -> 00:00:49.262 | J4: =SMALL(K53:K97,1) -> 00:00:49.263 | K4: =SMALL(L53:L97,1) -> 00:00:49.383
B5: Eduardo Henrique | H5: Desvio Padrão | I5: =_xlfn.STDEV.S(J53:J97) -> 00:00:00.981 | J5: =_xlfn.STDEV.S(K53:K97) -> 00:00:00.975 | K5: =_xlfn.STDEV.S(L53:L97) -> 00:00:01.416
B6: Marcelo Surerus | H6: TEMPO TOTAL | I6: =SUM(J53:J97,1) -> 1.020859792 | J6: =SUM(K53:K97,1) -> 1.020872431 | K6: =SUM(L53:L97,1) -> 1.02089169
B7: Guilherme Alves
B8: Marcelo Marcondes
B9: Wesley Canuto
B10: Marcelo Sant'anna
B11: Rodrigo Mercadante
B12: Jarbas Reis
B13: Maurício Júnior | K13: =SMALL(I4:K4,1)-L13 -> 00:00:49.262
B14: Marcelo Clemente | K14: =LARGE(I3:K3,1)+L13 -> 00:00:55.523
B15: Marcelo Chagas
B16: Reila Ricardo
B17: JOSEPH SCHIOPPO
B18: Bernardo Freitas
B19: Rodrigo Ricardo
B20: Cláudio Naves
B21: Hélio Chagas
B22: Pedro Mello
B23: Jucimar Vieira
B24: Roberta Epifânio
B25: Tati Marcondes
B26: Marcelo Campos
B27: Leandro Malias
A32: 1
A50: ETAPA | B50: PILOTO | C50: NÚMERO VOLTAS | D50: KART | E50: Volta Tm | F50: velocidade Media | J50: =MATCH(J52,$B$51:$B$1500,0) -> 1 | K50: =MATCH(K52,$B$51:$B$1500,0) -> 37 | L50: 73
A51: 6 | B51: Wesley Bambirra | C51: 36 | D51: 104 | E51: 00:00:55.307 | F51: 51.36 | J51: =VLOOKUP(J$52,$B$50:$F$1500,2,FALSE) -> 36 | K51: =VLOOKUP(K$52,$B$50:$F$1500,2,FALSE) -> 36 | L51: =VLOOKUP(L$52,$B$50:$F$1500,2,FALSE) -> 36
A52: 6 | B52: Wesley Bambirra | C52: 36 | D52: 104 | E52: 00:00:51.182 | F52: 55.5 | I52: VOLTA | J52: =VLOOKUP(1,$A$2:$B$36,2,FALSE) -> Wesley Bambirra | K52: =VLOOKUP(2,$A$2:$B$36,2,FALSE) -> Alexandre Melillo | L52: =VLOOKUP(3,$A$2:$B$36,2,FALSE) -> Daniel Nahum
A53: 6 | B53: Wesley Bambirra | C53: 36 | D53: 104 | E53: 00:00:50.613 | F53: 56.12 | I53: 1 | J53: =OFFSET($E$51:$E$1500,J50-1,,J51) -> 00:00:55.307 | K53: =OFFSET($E$51:$E$1500,K50-1,,K51) -> 00:00:55.106 | L53: =OFFSET($E$51:$E$1500,L50-1,,L51) -> 00:00:54.531
A54: 6 | B54: Wesley Bambirra | C54: 36 | D54: 104 | E54: 00:00:50.053 | F54: 56.75 | I54: 2 | J54: 00:00:51.182 | K54: 00:00:50.854 | L54: 00:00:50.769
A55: 6 | B55: Wesley Bambirra | C55: 36 | D55: 104 | E55: 00:00:50.105 | F55: 56.69 | I55: 3 | J55: 00:00:50.613 | K55: 00:00:51.032 | L55: 00:00:50.057
A56: 6 | B56: Wesley Bambirra | C56: 36 | D56: 104 | E56: 00:00:49.812 | F56: 57.02 | I56: 4 | J56: 00:00:50.053 | K56: 00:00:50.465 | L56: 00:00:49.976
A57: 6 | B57: Wesley Bambirra | C57: 36 | D57: 104 | E57: 00:00:49.737 | F57: 57.11 | I57: 5 | J57: 00:00:50.105 | K57: 00:00:49.995 | L57: 00:00:50.075
A58: 6 | B58: Wesley Bambirra | C58: 36 | D58: 104 | E58: 00:00:49.679 | F58: 57.18 | I58: 6 | J58: 00:00:49.812 | K58: 00:00:49.910 | L58: 00:00:49.852
A59: 6 | B59: Wesley Bambirra | C59: 36 | D59: 104 | E59: 00:00:50.745 | F59: 55.97 | I59: 7 | J59: 00:00:49.737 | K59: 00:00:50.022 | L59: 00:00:49.625
A60: 6 | B60: Wesley Bambirra | C60: 36 | D60: 104 | E60: 00:00:49.935 | F60: 56.88 | I60: 8 | J60: 00:00:49.679 | K60: 00:00:49.758 | L60: 00:00:49.612
A61: 6 | B61: Wesley Bambirra | C61: 36 | D61: 104 | E61: 00:00:49.846 | F61: 56.98 | I61: 9 | J61: 00:00:50.745 | K61: 00:00:50.555 | L61: 00:00:49.390
A62: 6 | B62: Wesley Bambirra | C62: 36 | D62: 104 | E62: 00:00:50.388 | F62: 56.37 | I62: 10 | J62: 00:00:49.935 | K62: 00:00:50.061 | L62: 00:00:49.743
A63: 6 | B63: Wesley Bambirra | C63: 36 | D63: 104 | E63: 00:00:49.862 | F63: 56.97 | I63: 11 | J63: 00:00:49.846 | K63: 00:00:50.443 | L63: 00:00:49.945
A64: 6 | B64: Wesley Bambirra | C64: 36 | D64: 104 | E64: 00:00:49.850 | F64: 56.98 | I64: 12 | J64: 00:00:50.388 | K64: 00:00:51.008 | L64: 00:00:49.513
A65: 6 | B65: Wesley Bambirra | C65: 36 | D65: 104 | E65: 00:00:49.831 | F65: 57 | I65: 13 | J65: 00:00:49.862 | K65: 00:00:49.630 | L65: 00:00:49.445
A66: 6 | B66: Wesley Bambirra | C66: 36 | D66: 104 | E66: 00:00:49.950 | F66: 56.86 | I66: 14 | J66: 00:00:49.850 | K66: 00:00:50.354 | L66: 00:00:49.436
A67: 6 | B67: Wesley Bambirra | C67: 36 | D67: 104 | E67: 00:00:49.878 | F67: 56.95 | I67: 15 | J67: 00:00:49.831 | K67: 00:00:49.627 | L67: 00:00:49.638
A68: 6 | B68: Wesley Bambirra | C68: 36 | D68: 104 | E68: 00:00:49.484 | F68: 57.4 | I68: 16 | J68: 00:00:49.950 | K68: 00:00:49.658 | L68: 00:00:49.817
A69: 6 | B69: Wesley Bambirra | C69: 36 | D69: 104 | E69: 00:00:49.846 | F69: 56.98 | I69: 17 | J69: 00:00:49.878 | K69: 00:00:49.795 | L69: 00:00:49.874
A70: 6 | B70: Wesley Bambirra | C70: 36 | D70: 104 | E70: 00:00:49.748 | F70: 57.1 | I70: 18 | J70: 00:00:49.484 | K70: 00:00:49.540 | L70: 00:00:49.484
A71: 6 | B71: Wesley Bambirra | C71: 36 | D71: 104 | E71: 00:00:49.747 | F71: 57.1 | I71: 19 | J71: 00:00:49.846 | K71: 00:00:49.689 | L71: 00:00:49.685
A72: 6 | B72: Wesley Bambirra | C72: 36 | D72: 104 | E72: 00:00:49.573 | F72: 57.3 | I72: 20 | J72: 00:00:49.748 | K72: 00:00:49.684 | L72: 00:00:49.621
A73: 6 | B73: Wesley Bambirra | C73: 36 | D73: 104 | E73: 00:00:49.482 | F73: 57.4 | I73: 21 | J73: 00:00:49.747 | K73: 00:00:49.692 | L73: 00:00:49.383
A74: 6 | B74: Wesley Bambirra | C74: 36 | D74: 104 | E74: 00:00:49.262 | F74: 57.66 | I74: 22 | J74: 00:00:49.573 | K74: 00:00:49.445 | L74: 00:00:49.778
A75: 6 | B75: Wesley Bambirra | C75: 36 | D75: 104 | E75: 00:00:49.499 | F75: 57.38 | I75: 23 | J75: 00:00:49.482 | K75: 00:00:49.548 | L75: 00:00:55.523
A76: 6 | B76: Wesley Bambirra | C76: 36 | D76: 104 | E76: 00:00:49.724 | F76: 57.12 | I76: 24 | J76: 00:00:49.262 | K76: 00:00:49.263 | L76: 00:00:49.746
A77: 6 | B77: Wesley Bambirra | C77: 36 | D77: 104 | E77: 00:00:49.791 | F77: 57.05 | I77: 25 | J77: 00:00:49.499 | K77: 00:00:49.592 | L77: 00:00:50.258
A78: 6 | B78: Wesley Bambirra | C78: 36 | D78: 104 | E78: 00:00:50.104 | F78: 56.69 | I78: 26 | J78: 00:00:49.724 | K78: 00:00:49.874 | L78: 00:00:49.851
A79: 6 | B79: Wesley Bambirra | C79: 36 | D79: 104 | E79: 00:00:50.640 | F79: 56.09 | I79: 27 | J79: 00:00:49.791 | K79: 00:00:49.574 | L79: 00:00:49.540
A80: 6 | B80: Wesley Bambirra | C80: 36 | D80: 104 | E80: 00:00:50.199 | F80: 56.58 | I80: 28 | J80: 00:00:50.104 | K80: 00:00:49.724 | L80: 00:00:53.848
A81: 6 | B81: Wesley Bambirra | C81: 36 | D81: 104 | E81: 00:00:49.646 | F81: 57.21 | I81: 29 | J81: 00:00:50.640 | K81: 00:00:50.680 | L81: 00:00:49.814
A82: 6 | B82: Wesley Bambirra | C82: 36 | D82: 104 | E82: 00:00:49.621 | F82: 57.24 | I82: 30 | J82: 00:00:50.199 | K82: 00:00:50.395 | L82: 00:00:49.931
A83: 6 | B83: Wesley Bambirra | C83: 36 | D83: 104 | E83: 00:00:49.625 | F83: 57.24 | I83: 31 | J83: 00:00:49.646 | K83: 00:00:49.733 | L83: 00:00:49.610
A84: 6 | B84: Wesley Bambirra | C84: 36 | D84: 104 | E84: 00:00:49.674 | F84: 57.18 | I84: 32 | J84: 00:00:49.621 | K84: 00:00:49.820 | L84: 00:00:49.446
A85: 6 | B85: Wesley Bambirra | C85: 36 | D85: 104 | E85: 00:00:50.140 | F85: 56.65 | I85: 33 | J85: 00:00:49.625 | K85: 00:00:49.505 | L85: 00:00:49.417
A86: 6 | B86: Wesley Bambirra | C86: 36 | D86: 104 | E86: 00:00:49.708 | F86: 57.14 | I86: 34 | J86: 00:00:49.674 | K86: 00:00:49.556 | L86: 00:00:49.599
A87: 6 | B87: Alexandre Melillo | C87: 36 | D87: 126 | E87: 00:00:55.106 | F87: 51.54 | I87: 35 | J87: 00:00:50.140 | K87: 00:00:50.181 | L87: 00:00:49.529
A88: 6 | B88: Alexandre Melillo | C88: 36 | D88: 126 | E88: 00:00:50.854 | F88: 55.85 | I88: 36 | J88: 00:00:49.708 | K88: 00:00:49.610 | L88: 00:00:49.681
A89: 6 | B89: Alexandre Melillo | C89: 36 | D89: 126 | E89: 00:00:51.032 | F89: 55.66 | I89: 37
A90: 6 | B90: Alexandre Melillo | C90: 36 | D90: 126 | E90: 00:00:50.465 | F90: 56.28 | I90: 38
A91: 6 | B91: Alexandre Melillo | C91: 36 | D91: 126 | E91: 00:00:49.995 | F91: 56.81 | I91: 39
A92: 6 | B92: Alexandre Melillo | C92: 36 | D92: 126 | E92: 00:00:49.910 | F92: 56.91 | I92: 40
A93: 6 | B93: Alexandre Melillo | C93: 36 | D93: 126 | E93: 00:00:50.022 | F93: 56.78 | I93: 41
A94: 6 | B94: Alexandre Melillo | C94: 36 | D94: 126 | E94: 00:00:49.758 | F94: 57.08 | I94: 42
A95: 6 | B95: Alexandre Melillo | C95: 36 | D95: 126 | E95: 00:00:50.555 | F95: 56.18 | I95: 43
A96: 6 | B96: Alexandre Melillo | C96: 36 | D96: 126 | E96: 00:00:50.061 | F96: 56.74 | I96: 44
A97: 6 | B97: Alexandre Melillo | C97: 36 | D97: 126 | E97: 00:00:50.443 | F97: 56.31 | I97: 45
A98: 6 | B98: Alexandre Melillo | C98: 36 | D98: 126 | E98: 00:00:51.008 | F98: 55.69
A99: 6 | B99: Alexandre Melillo | C99: 36 | D99: 126 | E99: 00:00:49.630 | F99: 57.23
A100: 6 | B100: Alexandre Melillo | C100: 36 | D100: 126 | E100: 00:00:50.354 | F100: 56.41
A101: 6 | B101: Alexandre Melillo | C101: 36 | D101: 126 | E101: 00:00:49.627 | F101: 57.23
A102: 6 | B102: Alexandre Melillo | C102: 36 | D102: 126 | E102: 00:00:49.658 | F102: 57.2
A103: 6 | B103: Alexandre Melillo | C103: 36 | D103: 126 | E103: 00:00:49.795 | F103: 57.04
A104: 6 | B104: Alexandre Melillo | C104: 36 | D104: 126 | E104: 00:00:49.540 | F104: 57.34
A105: 6 | B105: Alexandre Melillo | C105: 36 | D105: 126 | E105: 00:00:49.689 | F105: 57.16
A106: 6 | B106: Alexandre Melillo | C106: 36 | D106: 126 | E106: 00:00:49.684 | F106: 57.17
A107: 6 | B107: Alexandre Melillo | C107: 36 | D107: 126 | E107: 00:00:49.692 | F107: 57.16
A108: 6 | B108: Alexandre Melillo | C108: 36 | D108: 126 | E108: 00:00:49.445 | F108: 57.45
A109: 6 | B109: Alexandre Melillo | C109: 36 | D109: 126 | E109: 00:00:49.548 | F109: 57.33
A110: 6 | B110: Alexandre Melillo | C110: 36 | D110: 126 | E110: 00:00:49.263 | F110: 57.66
A111: 6 | B111: Alexandre Melillo | C111: 36 | D111: 126 | E111: 00:00:49.592 | F111: 57.28
A112: 6 | B112: Alexandre Melillo | C112: 36 | D112: 126 | E112: 00:00:49.874 | F112: 56.95
A113: 6 | B113: Alexandre Melillo | C113: 36 | D113: 126 | E113: 00:00:49.574 | F113: 57.3
A114: 6 | B114: Alexandre Melillo | C114: 36 | D114: 126 | E114: 00:00:49.724 | F114: 57.12
A115: 6 | B115: Alexandre Melillo | C115: 36 | D115: 126 | E115: 00:00:50.680 | F115: 56.05
A116: 6 | B116: Alexandre Melillo | C116: 36 | D116: 126 | E116: 00:00:50.395 | F116: 56.36
A117: 6 | B117: Alexandre Melillo | C117: 36 | D117: 126 | E117: 00:00:49.733 | F117: 57.11
A118: 6 | B118: Alexandre Melillo | C118: 36 | D118: 126 | E118: 00:00:49.820 | F118: 57.01
A119: 6 | B119: Alexandre Melillo | C119: 36 | D119: 126 | E119: 00:00:49.505 | F119: 57.38
A120: 6 | B120: Alexandre Melillo | C120: 36 | D120: 126 | E120: 00:00:49.556 | F120: 57.32
A121: 6 | B121: Alexandre Melillo | C121: 36 | D121: 126 | E121: 00:00:50.181 | F121: 56.6
A122: 6 | B122: Alexandre Melillo | C122: 36 | D122: 126 | E122: 00:00:49.610 | F122: 57.25
A123: 6 | B123: Daniel Nahum | C123: 36 | D123: 149 | E123: 00:00:54.531 | F123: 52.09
A124: 6 | B124: Daniel Nahum | C124: 36 | D124: 149 | E124: 00:00:50.769 | F124: 55.95
A125: 6 | B125: Daniel Nahum | C125: 36 | D125: 149 | E125: 00:00:50.057 | F125: 56.74
A126: 6 | B126: Daniel Nahum | C126: 36 | D126: 149 | E126: 00:00:49.976 | F126: 56.84
A127: 6 | B127: Daniel Nahum | C127: 36 | D127: 149 | E127: 00:00:50.075 | F127: 56.72
A128: 6 | B128: Daniel Nahum | C128: 36 | D128: 149 | E128: 00:00:49.852 | F128: 56.98
A129: 6 | B129: Daniel Nahum | C129: 36 | D129: 149 | E129: 00:00:49.625 | F129: 57.24
A130: 6 | B130: Daniel Nahum | C130: 36 | D130: 149 | E130: 00:00:49.612 | F130: 57.25
A131: 6 | B131: Daniel Nahum | C131: 36 | D131: 149 | E131: 00:00:49.390 | F131: 57.51
A132: 6 | B132: Daniel Nahum | C132: 36 | D132: 149 | E132: 00:00:49.743 | F132: 57.1
A133: 6 | B133: Daniel Nahum | C133: 36 | D133: 149 | E133: 00:00:49.945 | F133: 56.87
A134: 6 | B134: Daniel Nahum | C134: 36 | D134: 149 | E134: 00:00:49.513 | F134: 57.37
A135: 6 | B135: Daniel Nahum | C135: 36 | D135: 149 | E135: 00:00:49.445 | F135: 57.45
A136: 6 | B136: Daniel Nahum | C136: 36 | D136: 149 | E136: 00:00:49.436 | F136: 57.46
A137: 6 | B137: Daniel Nahum | C137: 36 | D137: 149 | E137: 00:00:49.638 | F137: 57.22
A138: 6 | B138: Daniel Nahum | C138: 36 | D138: 149 | E138: 00:00:49.817 | F138: 57.02
A139: 6 | B139: Daniel Nahum | C139: 36 | D139: 149 | E139: 00:00:49.874 | F139: 56.95
A140: 6 | B140: Daniel Nahum | C140: 36 | D140: 149 | E140: 00:00:49.484 | F140: 57.4
A141: 6 | B141: Daniel Nahum | C141: 36 | D141: 149 | E141: 00:00:49.685 | F141: 57.17
A142: 6 | B142: Daniel Nahum | C142: 36 | D142: 149 | E142: 00:00:49.621 | F142: 57.24
A143: 6 | B143: Daniel Nahum | C143: 36 | D143: 149 | E143: 00:00:49.383 | F143: 57.52
A144: 6 | B144: Daniel Nahum | C144: 36 | D144: 149 | E144: 00:00:49.778 | F144: 57.06
A145: 6 | B145: Daniel Nahum | C145: 36 | D145: 149 | E145: 00:00:55.523 | F145: 51.16
A146: 6 | B146: Daniel Nahum | C146: 36 | D146: 149 | E146: 00:00:49.746 | F146: 57.1
A147: 6 | B147: Daniel Nahum | C147: 36 | D147: 149 | E147: 00:00:50.258 | F147: 56.52
A148: 6 | B148: Daniel Nahum | C148: 36 | D148: 149 | E148: 00:00:49.851 | F148: 56.98
A149: 6 | B149: Daniel Nahum | C149: 36 | D149: 149 | E149: 00:00:49.540 | F149: 57.34
A150: 6 | B150: Daniel Nahum | C150: 36 | D150: 149 | E150: 00:00:53.848 | F150: 52.75
A151: 6 | B151: Daniel Nahum | C151: 36 | D151: 149 | E151: 00:00:49.814 | F151: 57.02
A152: 6 | B152: Daniel Nahum | C152: 36 | D152: 149 | E152: 00:00:49.931 | F152: 56.89
A153: 6 | B153: Daniel Nahum | C153: 36 | D153: 149 | E153: 00:00:49.610 | F153: 57.25
A154: 6 | B154: Daniel Nahum | C154: 36 | D154: 149 | E154: 00:00:49.446 | F154: 57.44
A155: 6 | B155: Daniel Nahum | C155: 36 | D155: 149 | E155: 00:00:49.417 | F155: 57.48
A156: 6 | B156: Daniel Nahum | C156: 36 | D156: 149 | E156: 00:00:49.599 | F156: 57.27
A157: 6 | B157: Daniel Nahum | C157: 36 | D157: 149 | E157: 00:00:49.529 | F157: 57.35
A158: 6 | B158: Daniel Nahum | C158: 36 | D158: 149 | E158: 00:00:49.681 | F158: 57.17
A159: 6 | B159: Eduardo Henrique | C159: 36 | D159: 113 | E159: 00:00:55.083 | F159: 51.57
A160: 6 | B160: Eduardo Henrique | C160: 36 | D160: 113 | E160: 00:00:51.456 | F160: 55.2
A161: 6 | B161: Eduardo Henrique | C161: 36 | D161: 113 | E161: 00:00:51.687 | F161: 54.95
A162: 6 | B162: Eduardo Henrique | C162: 36 | D162: 113 | E162: 00:00:51.492 | F162: 55.16
A163: 6 | B163: Eduardo Henrique | C163: 36 | D163: 113 | E163: 00:00:50.661 | F163: 56.07
A164: 6 | B164: Eduardo Henrique | C164: 36 | D164: 113 | E164: 00:00:50.499 | F164: 56.25
A165: 6 | B165: Eduardo Henrique | C165: 36 | D165: 113 | E165: 00:00:50.225 | F165: 56.55
A166: 6 | B166: Eduardo Henrique | C166: 36 | D166: 113 | E166: 00:00:49.869 | F166: 56.96
A167: 6 | B167: Eduardo Henrique | C167: 36 | D167: 113 | E167: 00:00:49.900 | F167: 56.92
A168: 6 | B168: Eduardo Henrique | C168: 36 | D168: 113 | E168: 00:00:49.778 | F168: 57.06
A169: 6 | B169: Eduardo Henrique | C169: 36 | D169: 113 | E169: 00:00:49.860 | F169: 56.97
A170: 6 | B170: Eduardo Henrique | C170: 36 | D170: 113 | E170: 00:00:49.704 | F170: 57.15
A171: 6 | B171: Eduardo Henrique | C171: 36 | D171: 113 | E171: 00:00:49.929 | F171: 56.89
A172: 6 | B172: Eduardo Henrique | C172: 36 | D172: 113 | E172: 00:00:49.770 | F172: 57.07
A173: 6 | B173: Eduardo Henrique | C173: 36 | D173: 113 | E173: 00:00:50.055 | F173: 56.75
A174: 6 | B174: Eduardo Henrique | C174: 36 | D174: 113 | E174: 00:00:49.701 | F174: 57.15
A175: 6 | B175: Eduardo Henrique | C175: 36 | D175: 113 | E175: 00:00:49.599 | F175: 57.27
A176: 6 | B176: Eduardo Henrique | C176: 36 | D176: 113 | E176: 00:00:49.785 | F176: 57.05
A177: 6 | B177: Eduardo Henrique | C177: 36 | D177: 113 | E177: 00:00:50.167 | F177: 56.62
A178: 6 | B178: Eduardo Henrique | C178: 36 | D178: 113 | E178: 00:00:50.030 | F178: 56.77
A179: 6 | B179: Eduardo Henrique | C179: 36 | D179: 113 | E179: 00:00:49.796 | F179: 57.04
A180: 6 | B180: Eduardo Henrique | C180: 36 | D180: 113 | E180: 00:00:49.732 | F180: 57.11
A181: 6 | B181: Eduardo Henrique | C181: 36 | D181: 113 | E181: 00:00:49.823 | F181: 57.01
A182: 6 | B182: Eduardo Henrique | C182: 36 | D182: 113 | E182: 00:00:49.898 | F182: 56.92
A183: 6 | B183: Eduardo Henrique | C183: 36 | D183: 113 | E183: 00:00:49.696 | F183: 57.16
A184: 6 | B184: Eduardo Henrique | C184: 36 | D184: 113 | E184: 00:00:49.797 | F184: 57.04
A185: 6 | B185: Eduardo Henrique | C185: 36 | D185: 113 | E185: 00:00:50.334 | F185: 56.43
A186: 6 | B186: Eduardo Henrique | C186: 36 | D186: 113 | E186: 00:00:49.887 | F186: 56.94
A187: 6 | B187: Eduardo Henrique | C187: 36 | D187: 113 | E187: 00:00:50.031 | F187: 56.77
A188: 6 | B188: Eduardo Henrique | C188: 36 | D188: 113 | E188: 00:00:50.762 | F188: 55.96
A189: 6 | B189: Eduardo Henrique | C189: 36 | D189: 113 | E189: 00:00:49.973 | F189: 56.84
A190: 6 | B190: Eduardo Henrique | C190: 36 | D190: 113 | E190: 00:00:49.752 | F190: 57.09
A191: 6 | B191: Eduardo Henrique | C191: 36 | D191: 113 | E191: 00:00:49.863 | F191: 56.96
A192: 6 | B192: Eduardo Henrique | C192: 36 | D192: 113 | E192: 00:00:49.822 | F192: 57.01
A193: 6 | B193: Eduardo Henrique | C193: 36 | D193: 113 | E193: 00:00:49.822 | F193: 57.01
A194: 6 | B194: Eduardo Henrique | C194: 36 | D194: 113 | E194: 00:00:49.888 | F194: 56.94
A195: 6 | B195: Marcelo Surerus | C195: 36 | D195: 102 | E195: 00:00:57.358 | F195: 49.52
A196: 6 | B196: Marcelo Surerus | C196: 36 | D196: 102 | E196: 00:00:50.895 | F196: 55.81
A197: 6 | B197: Marcelo Surerus | C197: 36 | D197: 102 | E197: 00:00:51.643 | F197: 55
A198: 6 | B198: Marcelo Surerus | C198: 36 | D198: 102 | E198: 00:00:50.956 | F198: 55.74
A199: 6 | B199: Marcelo Surerus | C199: 36 | D199: 102 | E199: 00:00:50.309 | F199: 56.46
A200: 6 | B200: Marcelo Surerus | C200: 36 | D200: 102 | E200: 00:00:50.364 | F200: 56.4
A201: 6 | B201: Marcelo Surerus | C201: 36 | D201: 102 | E201: 00:00:50.181 | F201: 56.6
A202: 6 | B202: Marcelo Surerus | C202: 36 | D202: 102 | E202: 00:00:50.001 | F202: 56.81
A203: 6 | B203: Marcelo Surerus | C203: 36 | D203: 102 | E203: 00:00:50.125 | F203: 56.67
A204: 6 | B204: Marcelo Surerus | C204: 36 | D204: 102 | E204: 00:00:50.121 | F204: 56.67
A205: 6 | B205: Marcelo Surerus | C205: 36 | D205: 102 | E205: 00:00:49.891 | F205: 56.93
A206: 6 | B206: Marcelo Surerus | C206: 36 | D206: 102 | E206: 00:00:49.655 | F206: 57.2
A207: 6 | B207: Marcelo Surerus | C207: 36 | D207: 102 | E207: 00:00:49.766 | F207: 57.08
A208: 6 | B208: Marcelo Surerus | C208: 36 | D208: 102 | E208: 00:00:50.078 | F208: 56.72
A209: 6 | B209: Marcelo Surerus | C209: 36 | D209: 102 | E209: 00:00:49.805 | F209: 57.03
A210: 6 | B210: Marcelo Surerus | C210: 36 | D210: 102 | E210: 00:00:49.720 | F210: 57.13
A211: 6 | B211: Marcelo Surerus | C211: 36 | D211: 102 | E211: 00:00:50.318 | F211: 56.45
A212: 6 | B212: Marcelo Surerus | C212: 36 | D212: 102 | E212: 00:00:49.820 | F212: 57.01
A213: 6 | B213: Marcelo Surerus | C213: 36 | D213: 102 | E213: 00:00:50.187 | F213: 56.6
A214: 6 | B214: Marcelo Surerus | C214: 36 | D214: 102 | E214: 00:00:50.126 | F214: 56.67
A215: 6 | B215: Marcelo Surerus | C215: 36 | D215: 102 | E215: 00:00:50.142 | F215: 56.65
A216: 6 | B216: Marcelo Surerus | C216: 36 | D216: 102 | E216: 00:00:49.881 | F216: 56.94
A217: 6 | B217: Marcelo Surerus | C217: 36 | D217: 102 | E217: 00:00:49.882 | F217: 56.94
A218: 6 | B218: Marcelo Surerus | C218: 36 | D218: 102 | E218: 00:00:50.398 | F218: 56.36
A219: 6 | B219: Marcelo Surerus | C219: 36 | D219: 102 | E219: 00:00:50.664 | F219: 56.06
A220: 6 | B220: Marcelo Surerus | C220: 36 | D220: 102 | E220: 00:00:50.688 | F220: 56.04
A221: 6 | B221: Marcelo Surerus | C221: 36 | D221: 102 | E221: 00:00:50.155 | F221: 56.63
... 704 more rows

Sheet ETAPA 5
A1: Obs.: Selecione até 3 pilotos colocando na frente do seu nome os números 1, 2 e 3. | H1: PILOTO | I1: =J52 -> Marcelo Clemente | J1: =K52 -> Wesley Bambirra | K1: =L52 -> Eduardo Henrique
A2: 1 | B2: Marcelo Clemente | H2: MÉDIA | I2: =AVERAGE(J53:J97) -> 00:00:57.036 | J2: =AVERAGE(K53:K97) -> 00:00:57.239 | K2: =AVERAGE(L53:L97) -> 00:00:57.645
A3: 2 | B3: Wesley Bambirra | H3: MAXIMA | I3: =LARGE(J53:J97,1) -> 00:01:03.008 | J3: =LARGE(K53:K97,1) -> 00:01:02.496 | K3: =LARGE(L53:L97,1) -> 00:01:05.162
A4: 3 | B4: Eduardo Henrique | H4: MÍNIMA | I4: =SMALL(J53:J97,1) -> 00:00:56.340 | J4: =SMALL(K53:K97,1) -> 00:00:56.599 | K4: =SMALL(L53:L97,1) -> 00:00:56.821
B5: Jarbas Reis | H5: Desvio Padrão | I5: =_xlfn.STDEV.S(J53:J97) -> 00:00:01.166 | J5: =_xlfn.STDEV.S(K53:K97) -> 00:00:01.019 | K5: =_xlfn.STDEV.S(L53:L97) -> 00:00:01.436
B6: Marcelo Campos | H6: TEMPO TOTAL | I6: =SUM(J53:J97,1) -> 1.021124317 | J6: =SUM(K53:K97,1) -> 1.021199549 | K6: =SUM(L53:L97,1) -> 1.021349896
B7: Alexandre Melillo
B8: Lucas Guimarães
B9: Marcelo Chagas
B10: Marcelo Surerus
B11: Rodrigo Mercadante
B12: Wesley Canuto
B13: Guilherme Alves | K13: =SMALL(I4:K4,1)-L13 -> 00:00:56.340
B14: Maurício Júnior | K14: =LARGE(I3:K3,1)+L13 -> 00:01:05.162
B15: Marcelo Pereira
B16: Rodrigo Ricardo
B17: Bernardo Freitas
B18: DELCIO OLIVEIRA
B19: Renato Amaral
B20: Jucimar Vieira
B21: Tati Marcondes
B22: Hélio Chagas
B23: JOSEPH SCHIOPPO
B24: Daniel Nahum
B25: Cláudio Naves
B26: Marcelo Marcondes
B27: Cláudio Dumont
A32: 1
A50: ETAPA | B50: PILOTO | C50: NÚMERO VOLTAS | D50: KART | E50: Volta Tm | F50: velocidade Media | J50: =MATCH(J52,$B$51:$B$1500,0) -> 1 | K50: =MATCH(K52,$B$51:$B$1500,0) -> 33 | L50: 65
A51: 5 | B51: Marcelo Clemente | C51: 32 | D51: 136 | E51: 00:01:03.008 | F51: 55.94 | J51: =VLOOKUP(J$52,$B$50:$F$1500,2,FALSE) -> 32 | K51: =VLOOKUP(K$52,$B$50:$F$1500,2,FALSE) -> 32 | L51: =VLOOKUP(L$52,$B$50:$F$1500,2,FALSE) -> 32
A52: 5 | B52: Marcelo Clemente | C52: 32 | D52: 136 | E52: 00:00:58.090 | F52: 60.67 | I52: VOLTA | J52: =VLOOKUP(1,$A$2:$B$36,2,FALSE) -> Marcelo Clemente | K52: =VLOOKUP(2,$A$2:$B$36,2,FALSE) -> Wesley Bambirra | L52: =VLOOKUP(3,$A$2:$B$36,2,FALSE) -> Eduardo Henrique
A53: 5 | B53: Marcelo Clemente | C53: 32 | D53: 136 | E53: 00:00:57.162 | F53: 61.66 | I53: 1 | J53: =OFFSET($E$51:$E$1500,J50-1,,J51) -> 00:01:03.008 | K53: =OFFSET($E$51:$E$1500,K50-1,,K51) -> 00:01:02.496 | L53: =OFFSET($E$51:$E$1500,L50-1,,L51) -> 00:01:05.162
A54: 5 | B54: Marcelo Clemente | C54: 32 | D54: 136 | E54: 00:00:58.106 | F54: 60.65 | I54: 2 | J54: 00:00:58.090 | K54: 00:00:57.946 | L54: 00:00:59.169
A55: 5 | B55: Marcelo Clemente | C55: 32 | D55: 136 | E55: 00:00:57.131 | F55: 61.69 | I55: 3 | J55: 00:00:57.162 | K55: 00:00:58.071 | L55: 00:00:58.486
A56: 5 | B56: Marcelo Clemente | C56: 32 | D56: 136 | E56: 00:00:56.900 | F56: 61.94 | I56: 4 | J56: 00:00:58.106 | K56: 00:00:57.352 | L56: 00:00:57.646
A57: 5 | B57: Marcelo Clemente | C57: 32 | D57: 136 | E57: 00:00:56.340 | F57: 62.56 | I57: 5 | J57: 00:00:57.131 | K57: 00:00:57.188 | L57: 00:00:57.604
A58: 5 | B58: Marcelo Clemente | C58: 32 | D58: 136 | E58: 00:00:57.030 | F58: 61.8 | I58: 6 | J58: 00:00:56.900 | K58: 00:00:56.709 | L58: 00:00:57.291
A59: 5 | B59: Marcelo Clemente | C59: 32 | D59: 136 | E59: 00:00:56.602 | F59: 62.27 | I59: 7 | J59: 00:00:56.340 | K59: 00:00:57.191 | L59: 00:00:57.405
A60: 5 | B60: Marcelo Clemente | C60: 32 | D60: 136 | E60: 00:00:56.631 | F60: 62.23 | I60: 8 | J60: 00:00:57.030 | K60: 00:00:57.430 | L60: 00:00:57.309
A61: 5 | B61: Marcelo Clemente | C61: 32 | D61: 136 | E61: 00:00:56.759 | F61: 62.09 | I61: 9 | J61: 00:00:56.602 | K61: 00:00:57.250 | L61: 00:00:57.172
A62: 5 | B62: Marcelo Clemente | C62: 32 | D62: 136 | E62: 00:00:56.624 | F62: 62.24 | I62: 10 | J62: 00:00:56.631 | K62: 00:00:57.333 | L62: 00:00:57.353
A63: 5 | B63: Marcelo Clemente | C63: 32 | D63: 136 | E63: 00:00:56.683 | F63: 62.18 | I63: 11 | J63: 00:00:56.759 | K63: 00:00:56.763 | L63: 00:00:57.176
A64: 5 | B64: Marcelo Clemente | C64: 32 | D64: 136 | E64: 00:00:56.781 | F64: 62.07 | I64: 12 | J64: 00:00:56.624 | K64: 00:00:56.761 | L64: 00:00:57.431
A65: 5 | B65: Marcelo Clemente | C65: 32 | D65: 136 | E65: 00:00:56.492 | F65: 62.39 | I65: 13 | J65: 00:00:56.683 | K65: 00:00:56.669 | L65: 00:00:57.718
A66: 5 | B66: Marcelo Clemente | C66: 32 | D66: 136 | E66: 00:00:57.042 | F66: 61.79 | I66: 14 | J66: 00:00:56.781 | K66: 00:00:56.678 | L66: 00:00:56.821
A67: 5 | B67: Marcelo Clemente | C67: 32 | D67: 136 | E67: 00:00:56.872 | F67: 61.97 | I67: 15 | J67: 00:00:56.492 | K67: 00:00:56.599 | L67: 00:00:57.203
A68: 5 | B68: Marcelo Clemente | C68: 32 | D68: 136 | E68: 00:00:57.571 | F68: 61.22 | I68: 16 | J68: 00:00:57.042 | K68: 00:00:56.698 | L68: 00:00:57.139
A69: 5 | B69: Marcelo Clemente | C69: 32 | D69: 136 | E69: 00:00:56.842 | F69: 62 | I69: 17 | J69: 00:00:56.872 | K69: 00:00:56.887 | L69: 00:00:57.361
A70: 5 | B70: Marcelo Clemente | C70: 32 | D70: 136 | E70: 00:00:56.881 | F70: 61.96 | I70: 18 | J70: 00:00:57.571 | K70: 00:00:57.326 | L70: 00:00:57.332
A71: 5 | B71: Marcelo Clemente | C71: 32 | D71: 136 | E71: 00:00:56.575 | F71: 62.3 | I71: 19 | J71: 00:00:56.842 | K71: 00:00:57.091 | L71: 00:00:57.160
A72: 5 | B72: Marcelo Clemente | C72: 32 | D72: 136 | E72: 00:00:56.651 | F72: 62.21 | I72: 20 | J72: 00:00:56.881 | K72: 00:00:57.458 | L72: 00:00:57.183
A73: 5 | B73: Marcelo Clemente | C73: 32 | D73: 136 | E73: 00:00:56.371 | F73: 62.52 | I73: 21 | J73: 00:00:56.575 | K73: 00:00:56.923 | L73: 00:00:57.192
A74: 5 | B74: Marcelo Clemente | C74: 32 | D74: 136 | E74: 00:00:56.642 | F74: 62.22 | I74: 22 | J74: 00:00:56.651 | K74: 00:00:56.774 | L74: 00:00:57.469
A75: 5 | B75: Marcelo Clemente | C75: 32 | D75: 136 | E75: 00:00:56.666 | F75: 62.2 | I75: 23 | J75: 00:00:56.371 | K75: 00:00:56.798 | L75: 00:00:57.373
A76: 5 | B76: Marcelo Clemente | C76: 32 | D76: 136 | E76: 00:00:56.656 | F76: 62.21 | I76: 24 | J76: 00:00:56.642 | K76: 00:00:57.024 | L76: 00:00:57.305
A77: 5 | B77: Marcelo Clemente | C77: 32 | D77: 136 | E77: 00:00:56.478 | F77: 62.4 | I77: 25 | J77: 00:00:56.666 | K77: 00:00:56.802 | L77: 00:00:57.607
A78: 5 | B78: Marcelo Clemente | C78: 32 | D78: 136 | E78: 00:00:56.521 | F78: 62.36 | I78: 26 | J78: 00:00:56.656 | K78: 00:00:56.928 | L78: 00:00:57.246
A79: 5 | B79: Marcelo Clemente | C79: 32 | D79: 136 | E79: 00:00:56.754 | F79: 62.1 | I79: 27 | J79: 00:00:56.478 | K79: 00:00:57.013 | L79: 00:00:57.337
A80: 5 | B80: Marcelo Clemente | C80: 32 | D80: 136 | E80: 00:00:56.987 | F80: 61.85 | I80: 28 | J80: 00:00:56.521 | K80: 00:00:57.101 | L80: 00:00:57.260
A81: 5 | B81: Marcelo Clemente | C81: 32 | D81: 136 | E81: 00:00:56.504 | F81: 62.37 | I81: 29 | J81: 00:00:56.754 | K81: 00:00:57.081 | L81: 00:00:57.392
A82: 5 | B82: Marcelo Clemente | C82: 32 | D82: 136 | E82: 00:00:56.789 | F82: 62.06 | I82: 30 | J82: 00:00:56.987 | K82: 00:00:57.175 | L82: 00:00:57.172
A83: 5 | B83: Wesley Bambirra | C83: 32 | D83: 112 | E83: 00:01:02.496 | F83: 56.39 | I83: 31 | J83: 00:00:56.504 | K83: 00:00:56.948 | L83: 00:00:57.178
A84: 5 | B84: Wesley Bambirra | C84: 32 | D84: 112 | E84: 00:00:57.946 | F84: 60.82 | I84: 32 | J84: 00:00:56.789 | K84: 00:00:57.178 | L84: 00:00:56.979
A85: 5 | B85: Wesley Bambirra | C85: 32 | D85: 112 | E85: 00:00:58.071 | F85: 60.69 | I85: 33
A86: 5 | B86: Wesley Bambirra | C86: 32 | D86: 112 | E86: 00:00:57.352 | F86: 61.45 | I86: 34
A87: 5 | B87: Wesley Bambirra | C87: 32 | D87: 112 | E87: 00:00:57.188 | F87: 61.63 | I87: 35
A88: 5 | B88: Wesley Bambirra | C88: 32 | D88: 112 | E88: 00:00:56.709 | F88: 62.15 | I88: 36
A89: 5 | B89: Wesley Bambirra | C89: 32 | D89: 112 | E89: 00:00:57.191 | F89: 61.63 | I89: 37
A90: 5 | B90: Wesley Bambirra | C90: 32 | D90: 112 | E90: 00:00:57.430 | F90: 61.37 | I90: 38
A91: 5 | B91: Wesley Bambirra | C91: 32 | D91: 112 | E91: 00:00:57.250 | F91: 61.56 | I91: 39
A92: 5 | B92: Wesley Bambirra | C92: 32 | D92: 112 | E92: 00:00:57.333 | F92: 61.47 | I92: 40
A93: 5 | B93: Wesley Bambirra | C93: 32 | D93: 112 | E93: 00:00:56.763 | F93: 62.09 | I93: 41
A94: 5 | B94: Wesley Bambirra | C94: 32 | D94: 112 | E94: 00:00:56.761 | F94: 62.09 | I94: 42
A95: 5 | B95: Wesley Bambirra | C95: 32 | D95: 112 | E95: 00:00:56.669 | F95: 62.19 | I95: 43
A96: 5 | B96: Wesley Bambirra | C96: 32 | D96: 112 | E96: 00:00:56.678 | F96: 62.18 | I96: 44
A97: 5 | B97: Wesley Bambirra | C97: 32 | D97: 112 | E97: 00:00:56.599 | F97: 62.27 | I97: 45
A98: 5 | B98: Wesley Bambirra | C98: 32 | D98: 112 | E98: 00:00:56.698 | F98: 62.16
A99: 5 | B99: Wesley Bambirra | C99: 32 | D99: 112 | E99: 00:00:56.887 | F99: 61.95
A100: 5 | B100: Wesley Bambirra | C100: 32 | D100: 112 | E100: 00:00:57.326 | F100: 61.48
A101: 5 | B101: Wesley Bambirra | C101: 32 | D101: 112 | E101: 00:00:57.091 | F101: 61.73
A102: 5 | B102: Wesley Bambirra | C102: 32 | D102: 112 | E102: 00:00:57.458 | F102: 61.34
A103: 5 | B103: Wesley Bambirra | C103: 32 | D103: 112 | E103: 00:00:56.923 | F103: 61.92
A104: 5 | B104: Wesley Bambirra | C104: 32 | D104: 112 | E104: 00:00:56.774 | F104: 62.08
A105: 5 | B105: Wesley Bambirra | C105: 32 | D105: 112 | E105: 00:00:56.798 | F105: 62.05
A106: 5 | B106: Wesley Bambirra | C106: 32 | D106: 112 | E106: 00:00:57.024 | F106: 61.81
A107: 5 | B107: Wesley Bambirra | C107: 32 | D107: 112 | E107: 00:00:56.802 | F107: 62.05
A108: 5 | B108: Wesley Bambirra | C108: 32 | D108: 112 | E108: 00:00:56.928 | F108: 61.91
A109: 5 | B109: Wesley Bambirra | C109: 32 | D109: 112 | E109: 00:00:57.013 | F109: 61.82
A110: 5 | B110: Wesley Bambirra | C110: 32 | D110: 112 | E110: 00:00:57.101 | F110: 61.72
A111: 5 | B111: Wesley Bambirra | C111: 32 | D111: 112 | E111: 00:00:57.081 | F111: 61.74
A112: 5 | B112: Wesley Bambirra | C112: 32 | D112: 112 | E112: 00:00:57.175 | F112: 61.64
A113: 5 | B113: Wesley Bambirra | C113: 32 | D113: 112 | E113: 00:00:56.948 | F113: 61.89
A114: 5 | B114: Wesley Bambirra | C114: 32 | D114: 112 | E114: 00:00:57.178 | F114: 61.64
A115: 5 | B115: Eduardo Henrique | C115: 32 | D115: 131 | E115: 00:01:05.162 | F115: 54.09
A116: 5 | B116: Eduardo Henrique | C116: 32 | D116: 131 | E116: 00:00:59.169 | F116: 59.56
A117: 5 | B117: Eduardo Henrique | C117: 32 | D117: 131 | E117: 00:00:58.486 | F117: 60.26
A118: 5 | B118: Eduardo Henrique | C118: 32 | D118: 131 | E118: 00:00:57.646 | F118: 61.14
A119: 5 | B119: Eduardo Henrique | C119: 32 | D119: 131 | E119: 00:00:57.604 | F119: 61.18
A120: 5 | B120: Eduardo Henrique | C120: 32 | D120: 131 | E120: 00:00:57.291 | F120: 61.52
A121: 5 | B121: Eduardo Henrique | C121: 32 | D121: 131 | E121: 00:00:57.405 | F121: 61.4
A122: 5 | B122: Eduardo Henrique | C122: 32 | D122: 131 | E122: 00:00:57.309 | F122: 61.5
A123: 5 | B123: Eduardo Henrique | C123: 32 | D123: 131 | E123: 00:00:57.172 | F123: 61.65
A124: 5 | B124: Eduardo Henrique | C124: 32 | D124: 131 | E124: 00:00:57.353 | F124: 61.45
A125: 5 | B125: Eduardo Henrique | C125: 32 | D125: 131 | E125: 00:00:57.176 | F125: 61.64
A126: 5 | B126: Eduardo Henrique | C126: 32 | D126: 131 | E126: 00:00:57.431 | F126: 61.37
A127: 5 | B127: Eduardo Henrique | C127: 32 | D127: 131 | E127: 00:00:57.718 | F127: 61.06
A128: 5 | B128: Eduardo Henrique | C128: 32 | D128: 131 | E128: 00:00:56.821 | F128: 62.03
A129: 5 | B129: Eduardo Henrique | C129: 32 | D129: 131 | E129: 00:00:57.203 | F129: 61.61
A130: 5 | B130: Eduardo Henrique | C130: 32 | D130: 131 | E130: 00:00:57.139 | F130: 61.68
A131: 5 | B131: Eduardo Henrique | C131: 32 | D131: 131 | E131: 00:00:57.361 | F131: 61.44
A132: 5 | B132: Eduardo Henrique | C132: 32 | D132: 131 | E132: 00:00:57.332 | F132: 61.47
A133: 5 | B133: Eduardo Henrique | C133: 32 | D133: 131 | E133: 00:00:57.160 | F133: 61.66
A134: 5 | B134: Eduardo Henrique | C134: 32 | D134: 131 | E134: 00:00:57.183 | F134: 61.63
A135: 5 | B135: Eduardo Henrique | C135: 32 | D135: 131 | E135: 00:00:57.192 | F135: 61.62
A136: 5 | B136: Eduardo Henrique | C136: 32 | D136: 131 | E136: 00:00:57.469 | F136: 61.33
A137: 5 | B137: Eduardo Henrique | C137: 32 | D137: 131 | E137: 00:00:57.373 | F137: 61.43
A138: 5 | B138: Eduardo Henrique | C138: 32 | D138: 131 | E138: 00:00:57.305 | F138: 61.5
A139: 5 | B139: Eduardo Henrique | C139: 32 | D139: 131 | E139: 00:00:57.607 | F139: 61.18
A140: 5 | B140: Eduardo Henrique | C140: 32 | D140: 131 | E140: 00:00:57.246 | F140: 61.57
A141: 5 | B141: Eduardo Henrique | C141: 32 | D141: 131 | E141: 00:00:57.337 | F141: 61.47
A142: 5 | B142: Eduardo Henrique | C142: 32 | D142: 131 | E142: 00:00:57.260 | F142: 61.55
A143: 5 | B143: Eduardo Henrique | C143: 32 | D143: 131 | E143: 00:00:57.392 | F143: 61.41
A144: 5 | B144: Eduardo Henrique | C144: 32 | D144: 131 | E144: 00:00:57.172 | F144: 61.65
A145: 5 | B145: Eduardo Henrique | C145: 32 | D145: 131 | E145: 00:00:57.178 | F145: 61.64
A146: 5 | B146: Eduardo Henrique | C146: 32 | D146: 131 | E146: 00:00:56.979 | F146: 61.85
A147: 5 | B147: Jarbas Reis | C147: 32 | D147: 106 | E147: 00:01:07.035 | F147: 52.58
A148: 5 | B148: Jarbas Reis | C148: 32 | D148: 106 | E148: 00:00:59.004 | F148: 59.73
A149: 5 | B149: Jarbas Reis | C149: 32 | D149: 106 | E149: 00:00:58.372 | F149: 60.38
A150: 5 | B150: Jarbas Reis | C150: 32 | D150: 106 | E150: 00:00:58.653 | F150: 60.09
A151: 5 | B151: Jarbas Reis | C151: 32 | D151: 106 | E151: 00:00:57.631 | F151: 61.15
A152: 5 | B152: Jarbas Reis | C152: 32 | D152: 106 | E152: 00:00:58.896 | F152: 59.84
A153: 5 | B153: Jarbas Reis | C153: 32 | D153: 106 | E153: 00:00:57.485 | F153: 61.31
A154: 5 | B154: Jarbas Reis | C154: 32 | D154: 106 | E154: 00:00:57.522 | F154: 61.27
A155: 5 | B155: Jarbas Reis | C155: 32 | D155: 106 | E155: 00:00:57.837 | F155: 60.94
A156: 5 | B156: Jarbas Reis | C156: 32 | D156: 106 | E156: 00:00:58.030 | F156: 60.73
A157: 5 | B157: Jarbas Reis | C157: 32 | D157: 106 | E157: 00:00:57.516 | F157: 61.28
A158: 5 | B158: Jarbas Reis | C158: 32 | D158: 106 | E158: 00:00:57.329 | F158: 61.48
A159: 5 | B159: Jarbas Reis | C159: 32 | D159: 106 | E159: 00:00:57.263 | F159: 61.55
A160: 5 | B160: Jarbas Reis | C160: 32 | D160: 106 | E160: 00:00:57.047 | F160: 61.78
A161: 5 | B161: Jarbas Reis | C161: 32 | D161: 106 | E161: 00:00:57.090 | F161: 61.73
A162: 5 | B162: Jarbas Reis | C162: 32 | D162: 106 | E162: 00:00:56.854 | F162: 61.99
A163: 5 | B163: Jarbas Reis | C163: 32 | D163: 106 | E163: 00:00:56.951 | F163: 61.88
A164: 5 | B164: Jarbas Reis | C164: 32 | D164: 106 | E164: 00:00:56.995 | F164: 61.84
A165: 5 | B165: Jarbas Reis | C165: 32 | D165: 106 | E165: 00:00:56.983 | F165: 61.85
A166: 5 | B166: Jarbas Reis | C166: 32 | D166: 106 | E166: 00:00:56.817 | F166: 62.03
A167: 5 | B167: Jarbas Reis | C167: 32 | D167: 106 | E167: 00:00:56.755 | F167: 62.1
A168: 5 | B168: Jarbas Reis | C168: 32 | D168: 106 | E168: 00:00:58.158 | F168: 60.6
A169: 5 | B169: Jarbas Reis | C169: 32 | D169: 106 | E169: 00:00:57.411 | F169: 61.39
A170: 5 | B170: Jarbas Reis | C170: 32 | D170: 106 | E170: 00:00:56.960 | F170: 61.88
A171: 5 | B171: Jarbas Reis | C171: 32 | D171: 106 | E171: 00:00:56.789 | F171: 62.06
A172: 5 | B172: Jarbas Reis | C172: 32 | D172: 106 | E172: 00:00:57.502 | F172: 61.29
A173: 5 | B173: Jarbas Reis | C173: 32 | D173: 106 | E173: 00:00:57.472 | F173: 61.32
A174: 5 | B174: Jarbas Reis | C174: 32 | D174: 106 | E174: 00:00:57.080 | F174: 61.74
A175: 5 | B175: Jarbas Reis | C175: 32 | D175: 106 | E175: 00:00:57.039 | F175: 61.79
A176: 5 | B176: Jarbas Reis | C176: 32 | D176: 106 | E176: 00:00:56.955 | F176: 61.88
A177: 5 | B177: Jarbas Reis | C177: 32 | D177: 106 | E177: 00:00:57.132 | F177: 61.69
A178: 5 | B178: Jarbas Reis | C178: 32 | D178: 106 | E178: 00:00:56.938 | F178: 61.9
A179: 5 | B179: Marcelo Campos | C179: 32 | D179: 109 | E179: 00:01:03.948 | F179: 55.11
A180: 5 | B180: Marcelo Campos | C180: 32 | D180: 109 | E180: 00:00:59.515 | F180: 59.22
A181: 5 | B181: Marcelo Campos | C181: 32 | D181: 109 | E181: 00:00:57.971 | F181: 60.8
A182: 5 | B182: Marcelo Campos | C182: 32 | D182: 109 | E182: 00:00:57.684 | F182: 61.1
A183: 5 | B183: Marcelo Campos | C183: 32 | D183: 109 | E183: 00:00:57.415 | F183: 61.38
A184: 5 | B184: Marcelo Campos | C184: 32 | D184: 109 | E184: 00:00:57.574 | F184: 61.22
A185: 5 | B185: Marcelo Campos | C185: 32 | D185: 109 | E185: 00:00:57.338 | F185: 61.47
A186: 5 | B186: Marcelo Campos | C186: 32 | D186: 109 | E186: 00:00:57.134 | F186: 61.69
A187: 5 | B187: Marcelo Campos | C187: 32 | D187: 109 | E187: 00:00:57.661 | F187: 61.12
A188: 5 | B188: Marcelo Campos | C188: 32 | D188: 109 | E188: 00:00:57.404 | F188: 61.4
A189: 5 | B189: Marcelo Campos | C189: 32 | D189: 109 | E189: 00:00:57.176 | F189: 61.64
A190: 5 | B190: Marcelo Campos | C190: 32 | D190: 109 | E190: 00:00:58.747 | F190: 59.99
A191: 5 | B191: Marcelo Campos | C191: 32 | D191: 109 | E191: 00:00:57.433 | F191: 61.37
A192: 5 | B192: Marcelo Campos | C192: 32 | D192: 109 | E192: 00:00:57.235 | F192: 61.58
A193: 5 | B193: Marcelo Campos | C193: 32 | D193: 109 | E193: 00:00:57.539 | F193: 61.25
A194: 5 | B194: Marcelo Campos | C194: 32 | D194: 109 | E194: 00:00:57.057 | F194: 61.77
A195: 5 | B195: Marcelo Campos | C195: 32 | D195: 109 | E195: 00:00:57.454 | F195: 61.34
A196: 5 | B196: Marcelo Campos | C196: 32 | D196: 109 | E196: 00:00:57.945 | F196: 60.82
A197: 5 | B197: Marcelo Campos | C197: 32 | D197: 109 | E197: 00:00:57.152 | F197: 61.67
A198: 5 | B198: Marcelo Campos | C198: 32 | D198: 109 | E198: 00:00:56.982 | F198: 61.85
A199: 5 | B199: Marcelo Campos | C199: 32 | D199: 109 | E199: 00:00:57.090 | F199: 61.73
A200: 5 | B200: Marcelo Campos | C200: 32 | D200: 109 | E200: 00:00:57.870 | F200: 60.9
A201: 5 | B201: Marcelo Campos | C201: 32 | D201: 109 | E201: 00:00:57.709 | F201: 61.07
A202: 5 | B202: Marcelo Campos | C202: 32 | D202: 109 | E202: 00:00:58.069 | F202: 60.69
A203: 5 | B203: Marcelo Campos | C203: 32 | D203: 109 | E203: 00:00:57.115 | F203: 61.71
A204: 5 | B204: Marcelo Campos | C204: 32 | D204: 109 | E204: 00:00:57.537 | F204: 61.25
A205: 5 | B205: Marcelo Campos | C205: 32 | D205: 109 | E205: 00:00:58.386 | F205: 60.36
A206: 5 | B206: Marcelo Campos | C206: 32 | D206: 109 | E206: 00:00:57.090 | F206: 61.73
A207: 5 | B207: Marcelo Campos | C207: 32 | D207: 109 | E207: 00:00:57.023 | F207: 61.81
A208: 5 | B208: Marcelo Campos | C208: 32 | D208: 109 | E208: 00:00:57.058 | F208: 61.77
A209: 5 | B209: Marcelo Campos | C209: 32 | D209: 109 | E209: 00:00:56.919 | F209: 61.92
A210: 5 | B210: Marcelo Campos | C210: 32 | D210: 109 | E210: 00:00:57.244 | F210: 61.57
A211: 5 | B211: Alexandre Melillo | C211: 32 | D211: 149 | E211: 00:01:02.295 | F211: 56.58
A212: 5 | B212: Alexandre Melillo | C212: 32 | D212: 149 | E212: 00:00:58.348 | F212: 60.4
A213: 5 | B213: Alexandre Melillo | C213: 32 | D213: 149 | E213: 00:00:58.654 | F213: 60.09
A214: 5 | B214: Alexandre Melillo | C214: 32 | D214: 149 | E214: 00:00:57.412 | F214: 61.39
A215: 5 | B215: Alexandre Melillo | C215: 32 | D215: 149 | E215: 00:00:57.602 | F215: 61.19
A216: 5 | B216: Alexandre Melillo | C216: 32 | D216: 149 | E216: 00:00:57.772 | F216: 61.01
A217: 5 | B217: Alexandre Melillo | C217: 32 | D217: 149 | E217: 00:00:57.306 | F217: 61.5
A218: 5 | B218: Alexandre Melillo | C218: 32 | D218: 149 | E218: 00:00:57.786 | F218: 60.99
A219: 5 | B219: Alexandre Melillo | C219: 32 | D219: 149 | E219: 00:00:57.538 | F219: 61.25
A220: 5 | B220: Alexandre Melillo | C220: 32 | D220: 149 | E220: 00:00:57.849 | F220: 60.92
A221: 5 | B221: Alexandre Melillo | C221: 32 | D221: 149 | E221: 00:00:58.474 | F221: 60.27
... 623 more rows

Sheet ETAPA 3
A1: Obs.: Selecione até 3 pilotos colocando na frente do seu nome os números 1, 2 e 3. | H1: PILOTO | I1: =J52 -> Marcelo Campos | J1: =K52 -> Daniel Nahum | K1: =L52 -> Alexandre Melillo
B2: Marcelo Marcondes | H2: MÉDIA | I2: =AVERAGE(J53:J97) -> 00:01:01.911 | J2: =AVERAGE(K53:K97) -> 00:01:01.937 | K2: =AVERAGE(L53:L97) -> 00:01:03.034
B3: Marcelo Pereira | H3: MAXIMA | I3: =LARGE(J53:J97,1) -> 00:01:07.743 | J3: =LARGE(K53:K97,1) -> 00:01:13.973 | K3: =LARGE(L53:L97,1) -> 00:01:17.503
B4: Wesley Bambirra | H4: MÍNIMA | I4: =SMALL(J53:J97,1) -> 00:01:01.041 | J4: =SMALL(K53:K97,1) -> 00:01:00.750 | K4: =SMALL(L53:L97,1) -> 00:01:01.186
A5: 1 | B5: Marcelo Campos | H5: Desvio Padrão | I5: =_xlfn.STDEV.S(J53:J97) -> 00:00:01.224 | J5: =_xlfn.STDEV.S(K53:K97) -> 00:00:02.402 | K5: =_xlfn.STDEV.S(L53:L97) -> 00:00:03.639
A6: 2 | B6: Daniel Nahum | H6: TEMPO TOTAL | I6: =SUM(J53:J97,1) -> 1.021497037 | J6: =SUM(K53:K97,1) -> 1.021505729 | K6: =SUM(L53:L97,1) -> 1.021886644
B7: Bernardo Freitas
B8: Marcelo Surerus
B9: Marcelo Chagas
B10: Maurício Júnior
B11: Guilherme Alves
B12: Marcelo Clemente
B13: Renato Amaral | K13: =SMALL(I4:K4,1)-L13 -> 00:01:00.750
B14: Wesley Canuto | K14: =LARGE(I3:K3,1)+L13 -> 00:01:17.503
B15: Rodrigo Ricardo
B16: Eduardo Henrique
B17: Cláudio Dumont
B18: Luciano Robervine
B19: Frederico Papatella
A20: 3 | B20: Alexandre Melillo
B21: Raphael Reis
B22: GUILHERME RUAS
B23: Tati Marcondes
B24: Jarbas Reis
B25: Hélio Chagas
B26: Cláudio Naves
B27: Izabella Rodrigues
B28: Marcelo Sant'anna
B29: JOSEPH SCHIOPPO
B30: Jucimar Vieira
B31: Reila Ricardo
A32: 1 | B32: Roberta Epifânio
A50: ETAPA | B50: PILOTO | C50: NÚMERO VOLTAS | D50: KART | E50: Volta Tm | F50: velocidade Media | J50: =MATCH(J52,$B$51:$B$1500,0) -> 91 | K50: =MATCH(K52,$B$51:$B$1500,0) -> 121 | L50: 541
A51: 3 | B51: Marcelo Marcondes | C51: 30 | D51: 109 | E51: 00:01:05.748 | F51: 57.49 | J51: =VLOOKUP(J$52,$B$50:$F$1500,2,FALSE) -> 30 | K51: =VLOOKUP(K$52,$B$50:$F$1500,2,FALSE) -> 30 | L51: =VLOOKUP(L$52,$B$50:$F$1500,2,FALSE) -> 30
A52: 3 | B52: Marcelo Marcondes | C52: 30 | D52: 109 | E52: 00:01:01.612 | F52: 61.35 | I52: VOLTA | J52: =VLOOKUP(1,$A$2:$B$36,2,FALSE) -> Marcelo Campos | K52: =VLOOKUP(2,$A$2:$B$36,2,FALSE) -> Daniel Nahum | L52: =VLOOKUP(3,$A$2:$B$36,2,FALSE) -> Alexandre Melillo
A53: 3 | B53: Marcelo Marcondes | C53: 30 | D53: 109 | E53: 00:01:01.494 | F53: 61.47 | I53: 1 | J53: =OFFSET($E$51:$E$1500,J50-1,,J51) -> 00:01:07.743 | K53: =OFFSET($E$51:$E$1500,K50-1,,K51) -> 00:01:13.973 | L53: =OFFSET($E$51:$E$1500,L50-1,,L51) -> 00:01:14.567
A54: 3 | B54: Marcelo Marcondes | C54: 30 | D54: 109 | E54: 00:01:01.438 | F54: 61.53 | I54: 2 | J54: 00:01:02.199 | K54: 00:01:03.534 | L54: 00:01:17.503
A55: 3 | B55: Marcelo Marcondes | C55: 30 | D55: 109 | E55: 00:01:01.178 | F55: 61.79 | I55: 3 | J55: 00:01:02.602 | K55: 00:01:02.338 | L55: 00:01:04.424
A56: 3 | B56: Marcelo Marcondes | C56: 30 | D56: 109 | E56: 00:01:01.113 | F56: 61.85 | I56: 4 | J56: 00:01:01.489 | K56: 00:01:01.754 | L56: 00:01:02.119
A57: 3 | B57: Marcelo Marcondes | C57: 30 | D57: 109 | E57: 00:01:01.137 | F57: 61.83 | I57: 5 | J57: 00:01:02.032 | K57: 00:01:02.115 | L57: 00:01:01.809
A58: 3 | B58: Marcelo Marcondes | C58: 30 | D58: 109 | E58: 00:01:01.211 | F58: 61.75 | I58: 6 | J58: 00:01:01.886 | K58: 00:01:01.062 | L58: 00:01:02.197
A59: 3 | B59: Marcelo Marcondes | C59: 30 | D59: 109 | E59: 00:01:01.146 | F59: 61.82 | I59: 7 | J59: 00:01:01.711 | K59: 00:01:01.225 | L59: 00:01:02.402
A60: 3 | B60: Marcelo Marcondes | C60: 30 | D60: 109 | E60: 00:01:01.170 | F60: 61.79 | I60: 8 | J60: 00:01:01.703 | K60: 00:01:01.089 | L60: 00:01:01.789
A61: 3 | B61: Marcelo Marcondes | C61: 30 | D61: 109 | E61: 00:01:01.066 | F61: 61.9 | I61: 9 | J61: 00:01:01.613 | K61: 00:01:00.956 | L61: 00:01:01.806
A62: 3 | B62: Marcelo Marcondes | C62: 30 | D62: 109 | E62: 00:01:01.088 | F62: 61.88 | I62: 10 | J62: 00:01:01.258 | K62: 00:01:01.328 | L62: 00:01:01.576
A63: 3 | B63: Marcelo Marcondes | C63: 30 | D63: 109 | E63: 00:01:01.188 | F63: 61.78 | I63: 11 | J63: 00:01:01.278 | K63: 00:01:00.975 | L63: 00:01:01.732
A64: 3 | B64: Marcelo Marcondes | C64: 30 | D64: 109 | E64: 00:01:00.878 | F64: 62.09 | I64: 12 | J64: 00:01:01.214 | K64: 00:01:01.189 | L64: 00:01:01.567
A65: 3 | B65: Marcelo Marcondes | C65: 30 | D65: 109 | E65: 00:01:00.954 | F65: 62.01 | I65: 13 | J65: 00:01:02.262 | K65: 00:01:01.096 | L65: 00:01:01.608
A66: 3 | B66: Marcelo Marcondes | C66: 30 | D66: 109 | E66: 00:01:00.989 | F66: 61.98 | I66: 14 | J66: 00:01:01.823 | K66: 00:01:01.290 | L66: 00:01:02.606
A67: 3 | B67: Marcelo Marcondes | C67: 30 | D67: 109 | E67: 00:01:00.694 | F67: 62.28 | I67: 15 | J67: 00:01:01.547 | K67: 00:01:01.211 | L67: 00:01:02.553
A68: 3 | B68: Marcelo Marcondes | C68: 30 | D68: 109 | E68: 00:01:01.436 | F68: 61.53 | I68: 16 | J68: 00:01:01.575 | K68: 00:01:01.498 | L68: 00:01:01.928
A69: 3 | B69: Marcelo Marcondes | C69: 30 | D69: 109 | E69: 00:01:01.231 | F69: 61.73 | I69: 17 | J69: 00:01:01.601 | K69: 00:01:00.750 | L69: 00:01:01.579
A70: 3 | B70: Marcelo Marcondes | C70: 30 | D70: 109 | E70: 00:01:01.052 | F70: 61.91 | I70: 18 | J70: 00:01:01.041 | K70: 00:01:00.773 | L70: 00:01:01.221
A71: 3 | B71: Marcelo Marcondes | C71: 30 | D71: 109 | E71: 00:01:01.099 | F71: 61.87 | I71: 19 | J71: 00:01:02.031 | K71: 00:01:01.612 | L71: 00:01:01.808
A72: 3 | B72: Marcelo Marcondes | C72: 30 | D72: 109 | E72: 00:01:01.009 | F72: 61.96 | I72: 20 | J72: 00:01:01.156 | K72: 00:01:01.069 | L72: 00:01:01.186
A73: 3 | B73: Marcelo Marcondes | C73: 30 | D73: 109 | E73: 00:01:00.777 | F73: 62.19 | I73: 21 | J73: 00:01:01.202 | K73: 00:01:01.128 | L73: 00:01:01.405
A74: 3 | B74: Marcelo Marcondes | C74: 30 | D74: 109 | E74: 00:01:01.743 | F74: 61.22 | I74: 22 | J74: 00:01:01.063 | K74: 00:01:01.326 | L74: 00:01:02.291
A75: 3 | B75: Marcelo Marcondes | C75: 30 | D75: 109 | E75: 00:01:01.478 | F75: 61.49 | I75: 23 | J75: 00:01:01.166 | K75: 00:01:00.820 | L75: 00:01:01.265
A76: 3 | B76: Marcelo Marcondes | C76: 30 | D76: 109 | E76: 00:01:01.353 | F76: 61.61 | I76: 24 | J76: 00:01:03.533 | K76: 00:01:03.511 | L76: 00:01:01.395
A77: 3 | B77: Marcelo Marcondes | C77: 30 | D77: 109 | E77: 00:01:01.519 | F77: 61.44 | I77: 25 | J77: 00:01:01.473 | K77: 00:01:02.744 | L77: 00:01:02.731
A78: 3 | B78: Marcelo Marcondes | C78: 30 | D78: 109 | E78: 00:01:01.223 | F78: 61.74 | I78: 26 | J78: 00:01:01.831 | K78: 00:01:01.351 | L78: 00:01:02.179
A79: 3 | B79: Marcelo Marcondes | C79: 30 | D79: 109 | E79: 00:01:01.203 | F79: 61.76 | I79: 27 | J79: 00:01:01.519 | K79: 00:01:01.145 | L79: 00:01:02.154
A80: 3 | B80: Marcelo Marcondes | C80: 30 | D80: 109 | E80: 00:01:01.691 | F80: 61.27 | I80: 28 | J80: 00:01:01.305 | K80: 00:01:00.923 | L80: 00:01:04.239
A81: 3 | B81: Marcelo Pereira | C81: 30 | D81: 140 | E81: 00:01:17.758 | F81: 48.61 | I81: 29 | J81: 00:01:02.233 | K81: 00:01:01.168 | L81: 00:01:01.971
A82: 3 | B82: Marcelo Pereira | C82: 30 | D82: 140 | E82: 00:01:01.806 | F82: 61.16 | I82: 30 | J82: 00:01:02.255 | K82: 00:01:03.142 | L82: 00:01:03.396
A83: 3 | B83: Marcelo Pereira | C83: 30 | D83: 140 | E83: 00:01:01.840 | F83: 61.13 | I83: 31
A84: 3 | B84: Marcelo Pereira | C84: 30 | D84: 140 | E84: 00:01:01.323 | F84: 61.64 | I84: 32
A85: 3 | B85: Marcelo Pereira | C85: 30 | D85: 140 | E85: 00:01:01.705 | F85: 61.26 | I85: 33
A86: 3 | B86: Marcelo Pereira | C86: 30 | D86: 140 | E86: 00:01:01.385 | F86: 61.58 | I86: 34
A87: 3 | B87: Marcelo Pereira | C87: 30 | D87: 140 | E87: 00:01:01.034 | F87: 61.93 | I87: 35
A88: 3 | B88: Marcelo Pereira | C88: 30 | D88: 140 | E88: 00:01:01.490 | F88: 61.47 | I88: 36
A89: 3 | B89: Marcelo Pereira | C89: 30 | D89: 140 | E89: 00:01:00.780 | F89: 62.19 | I89: 37
A90: 3 | B90: Marcelo Pereira | C90: 30 | D90: 140 | E90: 00:01:00.812 | F90: 62.16 | I90: 38
A91: 3 | B91: Marcelo Pereira | C91: 30 | D91: 140 | E91: 00:01:00.760 | F91: 62.21 | I91: 39
A92: 3 | B92: Marcelo Pereira | C92: 30 | D92: 140 | E92: 00:01:01.492 | F92: 61.47 | I92: 40
A93: 3 | B93: Marcelo Pereira | C93: 30 | D93: 140 | E93: 00:01:00.656 | F93: 62.32 | I93: 41
A94: 3 | B94: Marcelo Pereira | C94: 30 | D94: 140 | E94: 00:01:00.573 | F94: 62.4 | I94: 42
A95: 3 | B95: Marcelo Pereira | C95: 30 | D95: 140 | E95: 00:01:00.944 | F95: 62.02 | I95: 43
A96: 3 | B96: Marcelo Pereira | C96: 30 | D96: 140 | E96: 00:01:01.223 | F96: 61.74 | I96: 44
A97: 3 | B97: Marcelo Pereira | C97: 30 | D97: 140 | E97: 00:01:00.620 | F97: 62.36 | I97: 45
A98: 3 | B98: Marcelo Pereira | C98: 30 | D98: 140 | E98: 00:01:00.560 | F98: 62.42
A99: 3 | B99: Marcelo Pereira | C99: 30 | D99: 140 | E99: 00:01:01.295 | F99: 61.67
A100: 3 | B100: Marcelo Pereira | C100: 30 | D100: 140 | E100: 00:01:01.035 | F100: 61.93
A101: 3 | B101: Marcelo Pereira | C101: 30 | D101: 140 | E101: 00:01:00.898 | F101: 62.07
A102: 3 | B102: Marcelo Pereira | C102: 30 | D102: 140 | E102: 00:01:00.967 | F102: 62
A103: 3 | B103: Marcelo Pereira | C103: 30 | D103: 140 | E103: 00:01:00.938 | F103: 62.03
A104: 3 | B104: Marcelo Pereira | C104: 30 | D104: 140 | E104: 00:01:01.039 | F104: 61.93
A105: 3 | B105: Marcelo Pereira | C105: 30 | D105: 140 | E105: 00:01:01.299 | F105: 61.66
A106: 3 | B106: Marcelo Pereira | C106: 30 | D106: 140 | E106: 00:01:01.215 | F106: 61.75
A107: 3 | B107: Marcelo Pereira | C107: 30 | D107: 140 | E107: 00:01:01.229 | F107: 61.74
A108: 3 | B108: Marcelo Pereira | C108: 30 | D108: 140 | E108: 00:01:00.972 | F108: 62
A109: 3 | B109: Marcelo Pereira | C109: 30 | D109: 140 | E109: 00:01:01.013 | F109: 61.95
A110: 3 | B110: Marcelo Pereira | C110: 30 | D110: 140 | E110: 00:01:01.394 | F110: 61.57
A111: 3 | B111: Wesley Bambirra | C111: 30 | D111: 130 | E111: 00:01:09.419 | F111: 54.45
A112: 3 | B112: Wesley Bambirra | C112: 30 | D112: 130 | E112: 00:01:02.196 | F112: 60.78
A113: 3 | B113: Wesley Bambirra | C113: 30 | D113: 130 | E113: 00:01:02.304 | F113: 60.67
A114: 3 | B114: Wesley Bambirra | C114: 30 | D114: 130 | E114: 00:01:01.671 | F114: 61.29
A115: 3 | B115: Wesley Bambirra | C115: 30 | D115: 130 | E115: 00:01:01.728 | F115: 61.24
A116: 3 | B116: Wesley Bambirra | C116: 30 | D116: 130 | E116: 00:01:02.207 | F116: 60.76
A117: 3 | B117: Wesley Bambirra | C117: 30 | D117: 130 | E117: 00:01:01.407 | F117: 61.56
A118: 3 | B118: Wesley Bambirra | C118: 30 | D118: 130 | E118: 00:01:01.472 | F118: 61.49
A119: 3 | B119: Wesley Bambirra | C119: 30 | D119: 130 | E119: 00:01:01.328 | F119: 61.64
A120: 3 | B120: Wesley Bambirra | C120: 30 | D120: 130 | E120: 00:01:01.438 | F120: 61.53
A121: 3 | B121: Wesley Bambirra | C121: 30 | D121: 130 | E121: 00:01:01.153 | F121: 61.81
A122: 3 | B122: Wesley Bambirra | C122: 30 | D122: 130 | E122: 00:01:00.928 | F122: 62.04
A123: 3 | B123: Wesley Bambirra | C123: 30 | D123: 130 | E123: 00:01:01.809 | F123: 61.16
A124: 3 | B124: Wesley Bambirra | C124: 30 | D124: 130 | E124: 00:01:01.581 | F124: 61.38
A125: 3 | B125: Wesley Bambirra | C125: 30 | D125: 130 | E125: 00:01:01.519 | F125: 61.44
A126: 3 | B126: Wesley Bambirra | C126: 30 | D126: 130 | E126: 00:01:01.565 | F126: 61.4
A127: 3 | B127: Wesley Bambirra | C127: 30 | D127: 130 | E127: 00:01:01.519 | F127: 61.44
A128: 3 | B128: Wesley Bambirra | C128: 30 | D128: 130 | E128: 00:01:01.325 | F128: 61.64
A129: 3 | B129: Wesley Bambirra | C129: 30 | D129: 130 | E129: 00:01:01.596 | F129: 61.37
A130: 3 | B130: Wesley Bambirra | C130: 30 | D130: 130 | E130: 00:01:01.679 | F130: 61.29
A131: 3 | B131: Wesley Bambirra | C131: 30 | D131: 130 | E131: 00:01:01.127 | F131: 61.84
A132: 3 | B132: Wesley Bambirra | C132: 30 | D132: 130 | E132: 00:01:01.169 | F132: 61.8
A133: 3 | B133: Wesley Bambirra | C133: 30 | D133: 130 | E133: 00:01:01.168 | F133: 61.8
A134: 3 | B134: Wesley Bambirra | C134: 30 | D134: 130 | E134: 00:01:01.950 | F134: 61.02
A135: 3 | B135: Wesley Bambirra | C135: 30 | D135: 130 | E135: 00:01:01.655 | F135: 61.31
A136: 3 | B136: Wesley Bambirra | C136: 30 | D136: 130 | E136: 00:01:01.867 | F136: 61.1
A137: 3 | B137: Wesley Bambirra | C137: 30 | D137: 130 | E137: 00:01:01.981 | F137: 60.99
A138: 3 | B138: Wesley Bambirra | C138: 30 | D138: 130 | E138: 00:01:01.820 | F138: 61.15
A139: 3 | B139: Wesley Bambirra | C139: 30 | D139: 130 | E139: 00:01:01.829 | F139: 61.14
A140: 3 | B140: Wesley Bambirra | C140: 30 | D140: 130 | E140: 00:01:03.028 | F140: 59.97
A141: 3 | B141: Marcelo Campos | C141: 30 | D141: 153 | E141: 00:01:07.743 | F141: 55.8
A142: 3 | B142: Marcelo Campos | C142: 30 | D142: 153 | E142: 00:01:02.199 | F142: 60.77
A143: 3 | B143: Marcelo Campos | C143: 30 | D143: 153 | E143: 00:01:02.602 | F143: 60.38
A144: 3 | B144: Marcelo Campos | C144: 30 | D144: 153 | E144: 00:01:01.489 | F144: 61.47
A145: 3 | B145: Marcelo Campos | C145: 30 | D145: 153 | E145: 00:01:02.032 | F145: 60.94
A146: 3 | B146: Marcelo Campos | C146: 30 | D146: 153 | E146: 00:01:01.886 | F146: 61.08
A147: 3 | B147: Marcelo Campos | C147: 30 | D147: 153 | E147: 00:01:01.711 | F147: 61.25
A148: 3 | B148: Marcelo Campos | C148: 30 | D148: 153 | E148: 00:01:01.703 | F148: 61.26
A149: 3 | B149: Marcelo Campos | C149: 30 | D149: 153 | E149: 00:01:01.613 | F149: 61.35
A150: 3 | B150: Marcelo Campos | C150: 30 | D150: 153 | E150: 00:01:01.258 | F150: 61.71
A151: 3 | B151: Marcelo Campos | C151: 30 | D151: 153 | E151: 00:01:01.278 | F151: 61.69
A152: 3 | B152: Marcelo Campos | C152: 30 | D152: 153 | E152: 00:01:01.214 | F152: 61.75
A153: 3 | B153: Marcelo Campos | C153: 30 | D153: 153 | E153: 00:01:02.262 | F153: 60.71
A154: 3 | B154: Marcelo Campos | C154: 30 | D154: 153 | E154: 00:01:01.823 | F154: 61.14
A155: 3 | B155: Marcelo Campos | C155: 30 | D155: 153 | E155: 00:01:01.547 | F155: 61.42
A156: 3 | B156: Marcelo Campos | C156: 30 | D156: 153 | E156: 00:01:01.575 | F156: 61.39
A157: 3 | B157: Marcelo Campos | C157: 30 | D157: 153 | E157: 00:01:01.601 | F157: 61.36
A158: 3 | B158: Marcelo Campos | C158: 30 | D158: 153 | E158: 00:01:01.041 | F158: 61.93
A159: 3 | B159: Marcelo Campos | C159: 30 | D159: 153 | E159: 00:01:02.031 | F159: 60.94
A160: 3 | B160: Marcelo Campos | C160: 30 | D160: 153 | E160: 00:01:01.156 | F160: 61.81
A161: 3 | B161: Marcelo Campos | C161: 30 | D161: 153 | E161: 00:01:01.202 | F161: 61.76
A162: 3 | B162: Marcelo Campos | C162: 30 | D162: 153 | E162: 00:01:01.063 | F162: 61.9
A163: 3 | B163: Marcelo Campos | C163: 30 | D163: 153 | E163: 00:01:01.166 | F163: 61.8
A164: 3 | B164: Marcelo Campos | C164: 30 | D164: 153 | E164: 00:01:03.533 | F164: 59.5
A165: 3 | B165: Marcelo Campos | C165: 30 | D165: 153 | E165: 00:01:01.473 | F165: 61.49
A166: 3 | B166: Marcelo Campos | C166: 30 | D166: 153 | E166: 00:01:01.831 | F166: 61.13
A167: 3 | B167: Marcelo Campos | C167: 30 | D167: 153 | E167: 00:01:01.519 | F167: 61.44
A168: 3 | B168: Marcelo Campos | C168: 30 | D168: 153 | E168: 00:01:01.305 | F168: 61.66
A169: 3 | B169: Marcelo Campos | C169: 30 | D169: 153 | E169: 00:01:02.233 | F169: 60.74
A170: 3 | B170: Marcelo Campos | C170: 30 | D170: 153 | E170: 00:01:02.255 | F170: 60.72
A171: 3 | B171: Daniel Nahum | C171: 30 | D171: 143 | E171: 00:01:13.973 | F171: 51.1
A172: 3 | B172: Daniel Nahum | C172: 30 | D172: 143 | E172: 00:01:03.534 | F172: 59.5
A173: 3 | B173: Daniel Nahum | C173: 30 | D173: 143 | E173: 00:01:02.338 | F173: 60.64
A174: 3 | B174: Daniel Nahum | C174: 30 | D174: 143 | E174: 00:01:01.754 | F174: 61.21
A175: 3 | B175: Daniel Nahum | C175: 30 | D175: 143 | E175: 00:01:02.115 | F175: 60.85
A176: 3 | B176: Daniel Nahum | C176: 30 | D176: 143 | E176: 00:01:01.062 | F176: 61.9
A177: 3 | B177: Daniel Nahum | C177: 30 | D177: 143 | E177: 00:01:01.225 | F177: 61.74
A178: 3 | B178: Daniel Nahum | C178: 30 | D178: 143 | E178: 00:01:01.089 | F178: 61.88
A179: 3 | B179: Daniel Nahum | C179: 30 | D179: 143 | E179: 00:01:00.956 | F179: 62.01
A180: 3 | B180: Daniel Nahum | C180: 30 | D180: 143 | E180: 00:01:01.328 | F180: 61.64
A181: 3 | B181: Daniel Nahum | C181: 30 | D181: 143 | E181: 00:01:00.975 | F181: 61.99
A182: 3 | B182: Daniel Nahum | C182: 30 | D182: 143 | E182: 00:01:01.189 | F182: 61.78
A183: 3 | B183: Daniel Nahum | C183: 30 | D183: 143 | E183: 00:01:01.096 | F183: 61.87
A184: 3 | B184: Daniel Nahum | C184: 30 | D184: 143 | E184: 00:01:01.290 | F184: 61.67
A185: 3 | B185: Daniel Nahum | C185: 30 | D185: 143 | E185: 00:01:01.211 | F185: 61.75
A186: 3 | B186: Daniel Nahum | C186: 30 | D186: 143 | E186: 00:01:01.498 | F186: 61.47
A187: 3 | B187: Daniel Nahum | C187: 30 | D187: 143 | E187: 00:01:00.750 | F187: 62.22
A188: 3 | B188: Daniel Nahum | C188: 30 | D188: 143 | E188: 00:01:00.773 | F188: 62.2
A189: 3 | B189: Daniel Nahum | C189: 30 | D189: 143 | E189: 00:01:01.612 | F189: 61.35
A190: 3 | B190: Daniel Nahum | C190: 30 | D190: 143 | E190: 00:01:01.069 | F190: 61.9
A191: 3 | B191: Daniel Nahum | C191: 30 | D191: 143 | E191: 00:01:01.128 | F191: 61.84
A192: 3 | B192: Daniel Nahum | C192: 30 | D192: 143 | E192: 00:01:01.326 | F192: 61.64
A193: 3 | B193: Daniel Nahum | C193: 30 | D193: 143 | E193: 00:01:00.820 | F193: 62.15
A194: 3 | B194: Daniel Nahum | C194: 30 | D194: 143 | E194: 00:01:03.511 | F194: 59.52
A195: 3 | B195: Daniel Nahum | C195: 30 | D195: 143 | E195: 00:01:02.744 | F195: 60.24
A196: 3 | B196: Daniel Nahum | C196: 30 | D196: 143 | E196: 00:01:01.351 | F196: 61.61
A197: 3 | B197: Daniel Nahum | C197: 30 | D197: 143 | E197: 00:01:01.145 | F197: 61.82
A198: 3 | B198: Daniel Nahum | C198: 30 | D198: 143 | E198: 00:01:00.923 | F198: 62.05
A199: 3 | B199: Daniel Nahum | C199: 30 | D199: 143 | E199: 00:01:01.168 | F199: 61.8
A200: 3 | B200: Daniel Nahum | C200: 30 | D200: 143 | E200: 00:01:03.142 | F200: 59.87
A201: 3 | B201: Bernardo Freitas | C201: 30 | D201: 127 | E201: 00:01:07.247 | F201: 56.21
A202: 3 | B202: Bernardo Freitas | C202: 30 | D202: 127 | E202: 00:01:02.703 | F202: 60.28
A203: 3 | B203: Bernardo Freitas | C203: 30 | D203: 127 | E203: 00:01:01.702 | F203: 61.26
A204: 3 | B204: Bernardo Freitas | C204: 30 | D204: 127 | E204: 00:01:02.284 | F204: 60.69
A205: 3 | B205: Bernardo Freitas | C205: 30 | D205: 127 | E205: 00:01:01.122 | F205: 61.84
A206: 3 | B206: Bernardo Freitas | C206: 30 | D206: 127 | E206: 00:01:02.131 | F206: 60.84
A207: 3 | B207: Bernardo Freitas | C207: 30 | D207: 127 | E207: 00:01:02.110 | F207: 60.86
A208: 3 | B208: Bernardo Freitas | C208: 30 | D208: 127 | E208: 00:01:02.241 | F208: 60.73
A209: 3 | B209: Bernardo Freitas | C209: 30 | D209: 127 | E209: 00:01:01.271 | F209: 61.69
A210: 3 | B210: Bernardo Freitas | C210: 30 | D210: 127 | E210: 00:01:01.101 | F210: 61.86
A211: 3 | B211: Bernardo Freitas | C211: 30 | D211: 127 | E211: 00:01:01.127 | F211: 61.84
A212: 3 | B212: Bernardo Freitas | C212: 30 | D212: 127 | E212: 00:01:01.347 | F212: 61.62
A213: 3 | B213: Bernardo Freitas | C213: 30 | D213: 127 | E213: 00:01:01.728 | F213: 61.24
A214: 3 | B214: Bernardo Freitas | C214: 30 | D214: 127 | E214: 00:01:01.059 | F214: 61.91
A215: 3 | B215: Bernardo Freitas | C215: 30 | D215: 127 | E215: 00:01:00.785 | F215: 62.19
A216: 3 | B216: Bernardo Freitas | C216: 30 | D216: 127 | E216: 00:01:01.725 | F216: 61.24
A217: 3 | B217: Bernardo Freitas | C217: 30 | D217: 127 | E217: 00:01:01.576 | F217: 61.39
... 757 more rows

Sheet ETAPA 2
A1: Obs.: 1. Selecione o nome de um Piloto, 2. Com a tecla Ctrl pressionada, Selecione o seu nome e 3. Clique sobre o Gráfico (Habilite a macro) Para as demais comparações Selecione o nome do Piloto e Clique sobre o Gráfico | G1: PILOTO | H1: =L$48 -> Cláudio Dumont | I1: =M$48 -> Marcelo Pereira | J1: =A2 -> Wesley Bambirra | M1: 00:00:01
A2: Wesley Bambirra | G2: MÉDIA | H2: =AVERAGE(L$49:L$105) -> 00:01:06.474 | I2: =AVERAGE(M$49:M$105) -> 00:01:06.641 | J2: =AVERAGE(N$49:N$105) -> 00:01:06.263 | M2: =M1 -> 00:00:01
A3: Cláudio Dumont | G3: MAXIMA | H3: =LARGE(L$49:L$105,1) -> 00:01:10.678 | I3: =LARGE(M$49:M$105,1) -> 00:01:12.395 | J3: =LARGE(N$49:N$105,1) -> 00:01:11.388
A4: Marcelo Pereira | G4: MÍNIMA | H4: =SMALL(L$49:L$105,1) -> 00:01:05.673 | I4: =SMALL(M$49:M$105,1) -> 00:01:05.769 | J4: =SMALL(N$49:N$105,1) -> 00:01:05.677
A5: Daniel Nahum | G5: Desvio Padrão | H5: =_xlfn.STDEV.S(L$50:L$130) -> 00:00:00.914 | I5: =_xlfn.STDEV.S(M$50:M$130) -> 00:00:01.323 | J5: =_xlfn.STDEV.S(N$50:N$130) -> 00:00:01.069
A6: Rodrigo Mercadante | G6: TEMPO TOTAL | H6: =SUM(L$49:L$105,1) -> 1.020773009 | I6: =SUM(M$49:M$105,1) -> 1.020825278 | J6: =SUM(N$49:N$105,1) -> 1.020707049
A7: Jarbas Reis
A8: Marcelo Marcondes
A9: Marcelo Campos
A10: Maurício Júnior
A11: Wesley Canuto
A12: Marcelo Sant'anna
A13: Guilherme Alves | J13: =SMALL(H4:J4,1)-K13 -> 00:01:05.423 | K13: 00:00:00.250
A14: Alexandre Melillo | J14: =LARGE(H3:J3,1)+K13 -> 00:01:12.645
A15: Marcelo Surerus
A16: Frederico Papatella
A17: Rodrigo Ricardo
A18: Guilherme Ruas
A19: Marcelo Clemente
A20: Reila Ricardo
A21: Délcio Ragazzi
A22: Jucimar Vieira
A23: Lucas Guimarães
A24: Luciano Robervine
A25: Raphael Reis
A26: Hélio Chagas
A27: Renato Amaral
A28: Leandro Malias
A29: Tati Marcondes
A30: Cláudio Naves
A31: Roberta Pifânio
A32: Pedro Mello
A33: Eduardo Henrique
A34: Marcelo Chagas
L48: Cláudio Dumont | M48: Marcelo Pereira | N48: Wesley Bambirra
K49: NÚMERO VOLTAS | L49: Cláudio Dumont | M49: Marcelo Pereira | N49: Wesley Bambirra
A50: ETAPA | B50: PILOTO | C50: NÚMERO VOLTAS | D50: KART | E50: Volta Tm | F50: velocidade Media | K50: 1 | L50: 00:01:10.678 | M50: 00:01:12.395 | N50: 00:01:11.388
A51: 2 | B51: Wesley Bambirra | C51: 27 | D51: 110 | E51: 00:01:11.388 | F51: 55,47km/h | K51: 2 | L51: 00:01:06.772 | M51: 00:01:08.667 | N51: 00:01:06.996
A52: 2 | B52: Wesley Bambirra | C52: 27 | D52: 110 | E52: 00:01:06.996 | F52: 59,11km/h | K52: 3 | L52: 00:01:06.340 | M52: 00:01:06.792 | N52: 00:01:06.013
A53: 2 | B53: Wesley Bambirra | C53: 27 | D53: 110 | E53: 00:01:06.013 | F53: 59,99km/h | K53: 4 | L53: 00:01:06.250 | M53: 00:01:06.290 | N53: 00:01:06.069
A54: 2 | B54: Wesley Bambirra | C54: 27 | D54: 110 | E54: 00:01:06.069 | F54: 59,94km/h | K54: 5 | L54: 00:01:06.642 | M54: 00:01:05.769 | N54: 00:01:06.381
A55: 2 | B55: Wesley Bambirra | C55: 27 | D55: 110 | E55: 00:01:06.381 | F55: 59,66km/h | K55: 6 | L55: 00:01:05.972 | M55: 00:01:06.724 | N55: 00:01:06.009
A56: 2 | B56: Wesley Bambirra | C56: 27 | D56: 110 | E56: 00:01:06.009 | F56: 59,99km/h | K56: 7 | L56: 00:01:06.182 | M56: 00:01:06.473 | N56: 00:01:05.882
A57: 2 | B57: Wesley Bambirra | C57: 27 | D57: 110 | E57: 00:01:05.882 | F57: 60,11km/h | K57: 8 | L57: 00:01:05.673 | M57: 00:01:05.914 | N57: 00:01:05.827
A58: 2 | B58: Wesley Bambirra | C58: 27 | D58: 110 | E58: 00:01:05.827 | F58: 60,16km/h | K58: 9 | L58: 00:01:05.995 | M58: 00:01:05.913 | N58: 00:01:05.909
A59: 2 | B59: Wesley Bambirra | C59: 27 | D59: 110 | E59: 00:01:05.909 | F59: 60,08km/h | K59: 10 | L59: 00:01:05.788 | M59: 00:01:06.015 | N59: 00:01:05.951
A60: 2 | B60: Wesley Bambirra | C60: 27 | D60: 110 | E60: 00:01:05.951 | F60: 60,04km/h | K60: 11 | L60: 00:01:06.093 | M60: 00:01:06.029 | N60: 00:01:05.933
A61: 2 | B61: Wesley Bambirra | C61: 27 | D61: 110 | E61: 00:01:05.933 | F61: 60,06km/h | K61: 12 | L61: 00:01:06.281 | M61: 00:01:06.223 | N61: 00:01:05.931
A62: 2 | B62: Wesley Bambirra | C62: 27 | D62: 110 | E62: 00:01:05.931 | F62: 60,06km/h | K62: 13 | L62: 00:01:06.042 | M62: 00:01:06.134 | N62: 00:01:05.724
A63: 2 | B63: Wesley Bambirra | C63: 27 | D63: 110 | E63: 00:01:05.724 | F63: 60,25km/h | K63: 14 | L63: 00:01:06.248 | M63: 00:01:05.947 | N63: 00:01:05.677
A64: 2 | B64: Wesley Bambirra | C64: 27 | D64: 110 | E64: 00:01:05.677 | F64: 60,3km/h | K64: 15 | L64: 00:01:06.608 | M64: 00:01:06.396 | N64: 00:01:05.931
A65: 2 | B65: Wesley Bambirra | C65: 27 | D65: 110 | E65: 00:01:05.931 | F65: 60,06km/h | K65: 16 | L65: 00:01:06.647 | M65: 00:01:06.419 | N65: 00:01:05.902
A66: 2 | B66: Wesley Bambirra | C66: 27 | D66: 110 | E66: 00:01:05.902 | F66: 60,09km/h | K66: 17 | L66: 00:01:06.347 | M66: 00:01:06.176 | N66: 00:01:06.045
A67: 2 | B67: Wesley Bambirra | C67: 27 | D67: 110 | E67: 00:01:06.045 | F67: 59,96km/h | K67: 18 | L67: 00:01:06.151 | M67: 00:01:06.169 | N67: 00:01:05.997
A68: 2 | B68: Wesley Bambirra | C68: 27 | D68: 110 | E68: 00:01:05.997 | F68: 60km/h | K68: 19 | L68: 00:01:06.324 | M68: 00:01:06.258 | N68: 00:01:06.207
A69: 2 | B69: Wesley Bambirra | C69: 27 | D69: 110 | E69: 00:01:06.207 | F69: 59,81km/h | K69: 20 | L69: 00:01:06.122 | M69: 00:01:06.318 | N69: 00:01:05.925
A70: 2 | B70: Wesley Bambirra | C70: 27 | D70: 110 | E70: 00:01:05.925 | F70: 60,07km/h | K70: 21 | L70: 00:01:06.924 | M70: 00:01:06.192 | N70: 00:01:06.051
A71: 2 | B71: Wesley Bambirra | C71: 27 | D71: 110 | E71: 00:01:06.051 | F71: 59,95km/h | K71: 22 | L71: 00:01:06.142 | M71: 00:01:06.279 | N71: 00:01:06.533
A72: 2 | B72: Wesley Bambirra | C72: 27 | D72: 110 | E72: 00:01:06.533 | F72: 59,52km/h | K72: 23 | L72: 00:01:06.444 | M72: 00:01:06.305 | N72: 00:01:05.952
A73: 2 | B73: Wesley Bambirra | C73: 27 | D73: 110 | E73: 00:01:05.952 | F73: 60,04km/h | K73: 24 | L73: 00:01:06.199 | M73: 00:01:06.191 | N73: 00:01:06.152
A74: 2 | B74: Wesley Bambirra | C74: 27 | D74: 110 | E74: 00:01:06.152 | F74: 59,86km/h | K74: 25 | L74: 00:01:06.039 | M74: 00:01:06.273 | N74: 00:01:05.897
A75: 2 | B75: Wesley Bambirra | C75: 27 | D75: 110 | E75: 00:01:05.897 | F75: 60,09km/h | K75: 26 | L75: 00:01:06.484 | M75: 00:01:08.373 | N75: 00:01:06.871
A76: 2 | B76: Wesley Bambirra | C76: 27 | D76: 110 | E76: 00:01:06.871 | F76: 59,22km/h | K76: 27 | L76: 00:01:07.401 | M76: 00:01:06.670 | N76: 00:01:05.936
A77: 2 | B77: Wesley Bambirra | C77: 27 | D77: 110 | E77: 00:01:05.936 | F77: 60,06km/h | K77: 28
A78: 2 | B78: Cláudio Dumont | C78: 27 | D78: 144 | E78: 00:01:10.678 | F78: 56,03km/h | K78: 29
A79: 2 | B79: Cláudio Dumont | C79: 27 | D79: 144 | E79: 00:01:06.772 | F79: 59,31km/h | K79: 30
A80: 2 | B80: Cláudio Dumont | C80: 27 | D80: 144 | E80: 00:01:06.340 | F80: 59,69km/h | K80: 31
A81: 2 | B81: Cláudio Dumont | C81: 27 | D81: 144 | E81: 00:01:06.250 | F81: 59,77km/h | K81: 32
A82: 2 | B82: Cláudio Dumont | C82: 27 | D82: 144 | E82: 00:01:06.642 | F82: 59,42km/h | K82: 33
A83: 2 | B83: Cláudio Dumont | C83: 27 | D83: 144 | E83: 00:01:05.972 | F83: 60,03km/h | K83: 34
A84: 2 | B84: Cláudio Dumont | C84: 27 | D84: 144 | E84: 00:01:06.182 | F84: 59,84km/h | K84: 35
A85: 2 | B85: Cláudio Dumont | C85: 27 | D85: 144 | E85: 00:01:05.673 | F85: 60,3km/h | K85: 36
A86: 2 | B86: Cláudio Dumont | C86: 27 | D86: 144 | E86: 00:01:05.995 | F86: 60km/h | K86: 37
A87: 2 | B87: Cláudio Dumont | C87: 27 | D87: 144 | E87: 00:01:05.788 | F87: 60,19km/h | K87: 38
A88: 2 | B88: Cláudio Dumont | C88: 27 | D88: 144 | E88: 00:01:06.093 | F88: 59,92km/h | K88: 39
A89: 2 | B89: Cláudio Dumont | C89: 27 | D89: 144 | E89: 00:01:06.281 | F89: 59,75km/h | K89: 40
A90: 2 | B90: Cláudio Dumont | C90: 27 | D90: 144 | E90: 00:01:06.042 | F90: 59,96km/h | K90: 41
A91: 2 | B91: Cláudio Dumont | C91: 27 | D91: 144 | E91: 00:01:06.248 | F91: 59,78km/h | K91: 42
A92: 2 | B92: Cláudio Dumont | C92: 27 | D92: 144 | E92: 00:01:06.608 | F92: 59,45km/h | K92: 43
A93: 2 | B93: Cláudio Dumont | C93: 27 | D93: 144 | E93: 00:01:06.647 | F93: 59,42km/h | K93: 44
A94: 2 | B94: Cláudio Dumont | C94: 27 | D94: 144 | E94: 00:01:06.347 | F94: 59,69km/h | K94: 45
A95: 2 | B95: Cláudio Dumont | C95: 27 | D95: 144 | E95: 00:01:06.151 | F95: 59,86km/h | K95: 46
A96: 2 | B96: Cláudio Dumont | C96: 27 | D96: 144 | E96: 00:01:06.324 | F96: 59,71km/h | K96: 47
A97: 2 | B97: Cláudio Dumont | C97: 27 | D97: 144 | E97: 00:01:06.122 | F97: 59,89km/h | K97: 48
A98: 2 | B98: Cláudio Dumont | C98: 27 | D98: 144 | E98: 00:01:06.924 | F98: 59,17km/h | K98: 49
A99: 2 | B99: Cláudio Dumont | C99: 27 | D99: 144 | E99: 00:01:06.142 | F99: 59,87km/h | K99: 50
A100: 2 | B100: Cláudio Dumont | C100: 27 | D100: 144 | E100: 00:01:06.444 | F100: 59,6km/h | K100: 51
A101: 2 | B101: Cláudio Dumont | C101: 27 | D101: 144 | E101: 00:01:06.199 | F101: 59,82km/h | K101: 52
A102: 2 | B102: Cláudio Dumont | C102: 27 | D102: 144 | E102: 00:01:06.039 | F102: 59,96km/h | K102: 53
A103: 2 | B103: Cláudio Dumont | C103: 27 | D103: 144 | E103: 00:01:06.484 | F103: 59,56km/h | K103: 54
A104: 2 | B104: Cláudio Dumont | C104: 27 | D104: 144 | E104: 00:01:07.401 | F104: 58,75km/h | K104: 55
A105: 2 | B105: Marcelo Pereira | C105: 27 | D105: 106 | E105: 00:01:12.395 | F105: 54,7km/h | K105: 56
A106: 2 | B106: Marcelo Pereira | C106: 27 | D106: 106 | E106: 00:01:08.667 | F106: 57,67km/h | K106: 57
A107: 2 | B107: Marcelo Pereira | C107: 27 | D107: 106 | E107: 00:01:06.792 | F107: 59,29km/h | K107: 58
A108: 2 | B108: Marcelo Pereira | C108: 27 | D108: 106 | E108: 00:01:06.290 | F108: 59,74km/h | K108: 59
A109: 2 | B109: Marcelo Pereira | C109: 27 | D109: 106 | E109: 00:01:05.769 | F109: 60,21km/h | K109: 60
A110: 2 | B110: Marcelo Pereira | C110: 27 | D110: 106 | E110: 00:01:06.724 | F110: 59,35km/h | K110: 61
A111: 2 | B111: Marcelo Pereira | C111: 27 | D111: 106 | E111: 00:01:06.473 | F111: 59,57km/h | K111: 62
A112: 2 | B112: Marcelo Pereira | C112: 27 | D112: 106 | E112: 00:01:05.914 | F112: 60,08km/h | K112: 63
A113: 2 | B113: Marcelo Pereira | C113: 27 | D113: 106 | E113: 00:01:05.913 | F113: 60,08km/h
A114: 2 | B114: Marcelo Pereira | C114: 27 | D114: 106 | E114: 00:01:06.015 | F114: 59,99km/h
A115: 2 | B115: Marcelo Pereira | C115: 27 | D115: 106 | E115: 00:01:06.029 | F115: 59,97km/h
A116: 2 | B116: Marcelo Pereira | C116: 27 | D116: 106 | E116: 00:01:06.223 | F116: 59,8km/h
A117: 2 | B117: Marcelo Pereira | C117: 27 | D117: 106 | E117: 00:01:06.134 | F117: 59,88km/h
A118: 2 | B118: Marcelo Pereira | C118: 27 | D118: 106 | E118: 00:01:05.947 | F118: 60,05km/h
A119: 2 | B119: Marcelo Pereira | C119: 27 | D119: 106 | E119: 00:01:06.396 | F119: 59,64km/h
A120: 2 | B120: Marcelo Pereira | C120: 27 | D120: 106 | E120: 00:01:06.419 | F120: 59,62km/h
A121: 2 | B121: Marcelo Pereira | C121: 27 | D121: 106 | E121: 00:01:06.176 | F121: 59,84km/h
A122: 2 | B122: Marcelo Pereira | C122: 27 | D122: 106 | E122: 00:01:06.169 | F122: 59,85km/h
A123: 2 | B123: Marcelo Pereira | C123: 27 | D123: 106 | E123: 00:01:06.258 | F123: 59,77km/h
A124: 2 | B124: Marcelo Pereira | C124: 27 | D124: 106 | E124: 00:01:06.318 | F124: 59,71km/h
A125: 2 | B125: Marcelo Pereira | C125: 27 | D125: 106 | E125: 00:01:06.192 | F125: 59,83km/h
A126: 2 | B126: Marcelo Pereira | C126: 27 | D126: 106 | E126: 00:01:06.279 | F126: 59,75km/h
A127: 2 | B127: Marcelo Pereira | C127: 27 | D127: 106 | E127: 00:01:06.305 | F127: 59,72km/h
A128: 2 | B128: Marcelo Pereira | C128: 27 | D128: 106 | E128: 00:01:06.191 | F128: 59,83km/h
A129: 2 | B129: Marcelo Pereira | C129: 27 | D129: 106 | E129: 00:01:06.273 | F129: 59,75km/h
A130: 2 | B130: Marcelo Pereira | C130: 27 | D130: 106 | E130: 00:01:08.373 | F130: 57,92km/h
A131: 2 | B131: Marcelo Pereira | C131: 27 | D131: 106 | E131: 00:01:06.670 | F131: 59,4km/h
A132: 2 | B132: Daniel Nahum | C132: 27 | D132: 101 | E132: 00:01:11.959 | F132: 55,03km/h
A133: 2 | B133: Daniel Nahum | C133: 27 | D133: 101 | E133: 00:01:08.366 | F133: 57,92km/h
A134: 2 | B134: Daniel Nahum | C134: 27 | D134: 101 | E134: 00:01:07.855 | F134: 58,36km/h
A135: 2 | B135: Daniel Nahum | C135: 27 | D135: 101 | E135: 00:01:06.654 | F135: 59,41km/h
A136: 2 | B136: Daniel Nahum | C136: 27 | D136: 101 | E136: 00:01:05.881 | F136: 60,11km/h
A137: 2 | B137: Daniel Nahum | C137: 27 | D137: 101 | E137: 00:01:06.537 | F137: 59,52km/h
A138: 2 | B138: Daniel Nahum | C138: 27 | D138: 101 | E138: 00:01:06.980 | F138: 59,12km/h
A139: 2 | B139: Daniel Nahum | C139: 27 | D139: 101 | E139: 00:01:06.206 | F139: 59,81km/h
A140: 2 | B140: Daniel Nahum | C140: 27 | D140: 101 | E140: 00:01:06.254 | F140: 59,77km/h
A141: 2 | B141: Daniel Nahum | C141: 27 | D141: 101 | E141: 00:01:06.694 | F141: 59,38km/h
A142: 2 | B142: Daniel Nahum | C142: 27 | D142: 101 | E142: 00:01:06.114 | F142: 59,9km/h
A143: 2 | B143: Daniel Nahum | C143: 27 | D143: 101 | E143: 00:01:06.022 | F143: 59,98km/h
A144: 2 | B144: Daniel Nahum | C144: 27 | D144: 101 | E144: 00:01:05.711 | F144: 60,26km/h
A145: 2 | B145: Daniel Nahum | C145: 27 | D145: 101 | E145: 00:01:05.798 | F145: 60,18km/h
A146: 2 | B146: Daniel Nahum | C146: 27 | D146: 101 | E146: 00:01:06.257 | F146: 59,77km/h
A147: 2 | B147: Daniel Nahum | C147: 27 | D147: 101 | E147: 00:01:05.697 | F147: 60,28km/h
A148: 2 | B148: Daniel Nahum | C148: 27 | D148: 101 | E148: 00:01:05.868 | F148: 60,12km/h
A149: 2 | B149: Daniel Nahum | C149: 27 | D149: 101 | E149: 00:01:06.219 | F149: 59,8km/h
A150: 2 | B150: Daniel Nahum | C150: 27 | D150: 101 | E150: 00:01:06.360 | F150: 59,67km/h
A151: 2 | B151: Daniel Nahum | C151: 27 | D151: 101 | E151: 00:01:06.014 | F151: 59,99km/h
A152: 2 | B152: Daniel Nahum | C152: 27 | D152: 101 | E152: 00:01:06.003 | F152: 60km/h
A153: 2 | B153: Daniel Nahum | C153: 27 | D153: 101 | E153: 00:01:06.270 | F153: 59,76km/h
A154: 2 | B154: Daniel Nahum | C154: 27 | D154: 101 | E154: 00:01:06.116 | F154: 59,89km/h
A155: 2 | B155: Daniel Nahum | C155: 27 | D155: 101 | E155: 00:01:06.326 | F155: 59,71km/h
A156: 2 | B156: Daniel Nahum | C156: 27 | D156: 101 | E156: 00:01:06.255 | F156: 59,77km/h
A157: 2 | B157: Daniel Nahum | C157: 27 | D157: 101 | E157: 00:01:08.033 | F157: 58,21km/h
A158: 2 | B158: Daniel Nahum | C158: 27 | D158: 101 | E158: 00:01:06.650 | F158: 59,41km/h
A159: 2 | B159: Rodrigo Mercadante | C159: 27 | D159: 132 | E159: 00:01:12.414 | F159: 54,69km/h
A160: 2 | B160: Rodrigo Mercadante | C160: 27 | D160: 132 | E160: 00:01:07.314 | F160: 58,83km/h
A161: 2 | B161: Rodrigo Mercadante | C161: 27 | D161: 132 | E161: 00:01:07.148 | F161: 58,97km/h
A162: 2 | B162: Rodrigo Mercadante | C162: 27 | D162: 132 | E162: 00:01:06.385 | F162: 59,65km/h
A163: 2 | B163: Rodrigo Mercadante | C163: 27 | D163: 132 | E163: 00:01:06.709 | F163: 59,36km/h
A164: 2 | B164: Rodrigo Mercadante | C164: 27 | D164: 132 | E164: 00:01:07.102 | F164: 59,01km/h
A165: 2 | B165: Rodrigo Mercadante | C165: 27 | D165: 132 | E165: 00:01:06.787 | F165: 59,29km/h
A166: 2 | B166: Rodrigo Mercadante | C166: 27 | D166: 132 | E166: 00:01:06.135 | F166: 59,88km/h
A167: 2 | B167: Rodrigo Mercadante | C167: 27 | D167: 132 | E167: 00:01:06.242 | F167: 59,78km/h
A168: 2 | B168: Rodrigo Mercadante | C168: 27 | D168: 132 | E168: 00:01:06.252 | F168: 59,77km/h
A169: 2 | B169: Rodrigo Mercadante | C169: 27 | D169: 132 | E169: 00:01:05.998 | F169: 60km/h
A170: 2 | B170: Rodrigo Mercadante | C170: 27 | D170: 132 | E170: 00:01:06.013 | F170: 59,99km/h
A171: 2 | B171: Rodrigo Mercadante | C171: 27 | D171: 132 | E171: 00:01:06.062 | F171: 59,94km/h
A172: 2 | B172: Rodrigo Mercadante | C172: 27 | D172: 132 | E172: 00:01:06.365 | F172: 59,67km/h
A173: 2 | B173: Rodrigo Mercadante | C173: 27 | D173: 132 | E173: 00:01:06.367 | F173: 59,67km/h
A174: 2 | B174: Rodrigo Mercadante | C174: 27 | D174: 132 | E174: 00:01:06.098 | F174: 59,91km/h
A175: 2 | B175: Rodrigo Mercadante | C175: 27 | D175: 132 | E175: 00:01:06.140 | F175: 59,87km/h
A176: 2 | B176: Rodrigo Mercadante | C176: 27 | D176: 132 | E176: 00:01:06.268 | F176: 59,76km/h
A177: 2 | B177: Rodrigo Mercadante | C177: 27 | D177: 132 | E177: 00:01:06.446 | F177: 59,6km/h
A178: 2 | B178: Rodrigo Mercadante | C178: 27 | D178: 132 | E178: 00:01:06.027 | F178: 59,98km/h
A179: 2 | B179: Rodrigo Mercadante | C179: 27 | D179: 132 | E179: 00:01:05.882 | F179: 60,11km/h
A180: 2 | B180: Rodrigo Mercadante | C180: 27 | D180: 132 | E180: 00:01:06.226 | F180: 59,8km/h
A181: 2 | B181: Rodrigo Mercadante | C181: 27 | D181: 132 | E181: 00:01:06.165 | F181: 59,85km/h
A182: 2 | B182: Rodrigo Mercadante | C182: 27 | D182: 132 | E182: 00:01:06.347 | F182: 59,69km/h
A183: 2 | B183: Rodrigo Mercadante | C183: 27 | D183: 132 | E183: 00:01:06.089 | F183: 59,92km/h
A184: 2 | B184: Rodrigo Mercadante | C184: 27 | D184: 132 | E184: 00:01:08.551 | F184: 57,77km/h
A185: 2 | B185: Rodrigo Mercadante | C185: 27 | D185: 132 | E185: 00:01:07.134 | F185: 58,99km/h
A186: 2 | B186: Jarbas Reis | C186: 27 | D186: 116 | E186: 00:01:12.676 | F186: 54,49km/h
A187: 2 | B187: Jarbas Reis | C187: 27 | D187: 116 | E187: 00:01:08.150 | F187: 58,11km/h
A188: 2 | B188: Jarbas Reis | C188: 27 | D188: 116 | E188: 00:01:06.990 | F188: 59,11km/h
A189: 2 | B189: Jarbas Reis | C189: 27 | D189: 116 | E189: 00:01:06.420 | F189: 59,62km/h
A190: 2 | B190: Jarbas Reis | C190: 27 | D190: 116 | E190: 00:01:05.963 | F190: 60,03km/h
A191: 2 | B191: Jarbas Reis | C191: 27 | D191: 116 | E191: 00:01:07.525 | F191: 58,64km/h
A192: 2 | B192: Jarbas Reis | C192: 27 | D192: 116 | E192: 00:01:07.398 | F192: 58,76km/h
A193: 2 | B193: Jarbas Reis | C193: 27 | D193: 116 | E193: 00:01:06.359 | F193: 59,68km/h
A194: 2 | B194: Jarbas Reis | C194: 27 | D194: 116 | E194: 00:01:06.553 | F194: 59,5km/h
A195: 2 | B195: Jarbas Reis | C195: 27 | D195: 116 | E195: 00:01:06.900 | F195: 59,19km/h
A196: 2 | B196: Jarbas Reis | C196: 27 | D196: 116 | E196: 00:01:06.810 | F196: 59,27km/h
A197: 2 | B197: Jarbas Reis | C197: 27 | D197: 116 | E197: 00:01:06.688 | F197: 59,38km/h
A198: 2 | B198: Jarbas Reis | C198: 27 | D198: 116 | E198: 00:01:05.890 | F198: 60,1km/h
A199: 2 | B199: Jarbas Reis | C199: 27 | D199: 116 | E199: 00:01:05.941 | F199: 60,05km/h
A200: 2 | B200: Jarbas Reis | C200: 27 | D200: 116 | E200: 00:01:05.982 | F200: 60,02km/h
A201: 2 | B201: Jarbas Reis | C201: 27 | D201: 116 | E201: 00:01:06.322 | F201: 59,71km/h
A202: 2 | B202: Jarbas Reis | C202: 27 | D202: 116 | E202: 00:01:05.912 | F202: 60,08km/h
A203: 2 | B203: Jarbas Reis | C203: 27 | D203: 116 | E203: 00:01:06.112 | F203: 59,9km/h
A204: 2 | B204: Jarbas Reis | C204: 27 | D204: 116 | E204: 00:01:06.282 | F204: 59,74km/h
A205: 2 | B205: Jarbas Reis | C205: 27 | D205: 116 | E205: 00:01:06.092 | F205: 59,92km/h
A206: 2 | B206: Jarbas Reis | C206: 27 | D206: 116 | E206: 00:01:06.562 | F206: 59,49km/h
A207: 2 | B207: Jarbas Reis | C207: 27 | D207: 116 | E207: 00:01:06.166 | F207: 59,85km/h
A208: 2 | B208: Jarbas Reis | C208: 27 | D208: 116 | E208: 00:01:06.019 | F208: 59,98km/h
A209: 2 | B209: Jarbas Reis | C209: 27 | D209: 116 | E209: 00:01:07.019 | F209: 59,09km/h
A210: 2 | B210: Jarbas Reis | C210: 27 | D210: 116 | E210: 00:01:06.140 | F210: 59,87km/h
A211: 2 | B211: Jarbas Reis | C211: 27 | D211: 116 | E211: 00:01:06.295 | F211: 59,73km/h
A212: 2 | B212: Jarbas Reis | C212: 27 | D212: 116 | E212: 00:01:06.502 | F212: 59,55km/h
A213: 2 | B213: Marcelo Marcondes | C213: 27 | D213: 130 | E213: 00:01:15.438 | F213: 52,49km/h
... 722 more rows

Sheet ETAPA 1
A1: Obs.: 1. Selecione o nome de um Piloto, 2. Com a tecla Ctrl pressionada, Selecione o seu nome e 3. Clique sobre o Gráfico (Habilite a macro) Para as demais comparações Selecione o nome do Piloto e Clique sobre o Gráfico | G1: PILOTO | H1: =L$48 -> Marcelo Campos | I1: =M$48 -> Marcelo Pereira | J1: =A2 -> Daniel Nahum | M1: 00:00:01
A2: Daniel Nahum | G2: MÉDIA | H2: =AVERAGE(L$49:L$105) -> 00:01:10.389 | I2: =AVERAGE(M$49:M$105) -> 00:01:11.528 | J2: =AVERAGE(N$49:N$105) -> 00:01:10.288 | M2: =M1 -> 00:00:01
A3: Marcelo Campos | G3: MAXIMA | H3: =LARGE(L$49:L$105,1) -> 00:01:13.010 | I3: =LARGE(M$49:M$105,1) -> 00:01:14.791 | J3: =LARGE(N$49:N$105,1) -> 00:01:13.706
A4: Marcelo Pereira | G4: MÍNIMA | H4: =SMALL(L$49:L$105,1) -> 00:01:09.775 | I4: =SMALL(M$49:M$105,1) -> 00:01:10.817 | J4: =SMALL(N$49:N$105,1) -> 00:01:09.837
A5: Luciano Robervine | G5: Desvio Padrão | H5: =_xlfn.STDEV.S(L$50:L$130) -> 00:00:00.793 | I5: =_xlfn.STDEV.S(M$50:M$130) -> 00:00:01.091 | J5: =_xlfn.STDEV.S(N$50:N$130) -> 00:00:00.871
A6: Frederico Papatella | G6: TEMPO TOTAL | H6: =SUM(L$49:L$105,1) -> 1.014664306 | I6: =SUM(M$49:M$105,1) -> 1.01490162 | J6: =SUM(N$49:N$105,1) -> 1.014643345
A7: Jarbas Reis
A8: Rodrigo Mercadante
A9: Cláudio Dumont
A10: Guilherme Alves
A11: Wesley Bambirra
A12: Marcelo Marcondes
A13: Alexandre Melillo | J13: =SMALL(H4:J4,1)-K13 -> 00:01:09.525 | K13: 00:00:00.250
A14: Tati Marcondes | J14: =LARGE(H3:J3,1)+K13 -> 00:01:15.041
A15: Raphael Reis
A16: Marcelo Surerus
A17: Maurício Júnior
A18: Rodrigo Ricardo
A19: Renato Amaral
A20: Leandro Malias
A21: Marcelo Sant'anna
A22: Délcio Ragazzi
A23: Marcelo Chagas
A24: Reila Ricardo
A25: Hélio Chagas
A26: Cláudio Naves
A27: Bernardo Freitas
A28: Marcelo Clemente
A29: Wesley Canuto
L48: Marcelo Campos | M48: Marcelo Pereira | N48: Daniel Nahum
K49: NÚMERO VOLTAS | L49: Marcelo Campos | M49: Marcelo Pereira | N49: Daniel Nahum
A50: ETAPA | B50: PILOTO | C50: NÚMERO VOLTAS | D50: KART | E50: Volta Tm | F50: velocidade Media | K50: 1 | L50: 00:01:13.010 | M50: 00:01:14.791 | N50: 00:01:13.706
A51: 1 | B51: Daniel Nahum | C51: 18 | D51: 123 | E51: 00:01:13.706 | F51: 58,61km/h | K51: 2 | L51: 00:01:10.628 | M51: 00:01:11.330 | N51: 00:01:10.274
A52: 1 | B52: Daniel Nahum | C52: 18 | D52: 123 | E52: 00:01:10.274 | F52: 61,47km/h | K52: 3 | L52: 00:01:10.387 | M52: 00:01:11.504 | N52: 00:01:10.230
A53: 1 | B53: Daniel Nahum | C53: 18 | D53: 123 | E53: 00:01:10.230 | F53: 61,51km/h | K53: 4 | L53: 00:01:10.240 | M53: 00:01:11.160 | N53: 00:01:10.244
A54: 1 | B54: Daniel Nahum | C54: 18 | D54: 123 | E54: 00:01:10.244 | F54: 61,5km/h | K54: 5 | L54: 00:01:10.684 | M54: 00:01:11.042 | N54: 00:01:10.452
A55: 1 | B55: Daniel Nahum | C55: 18 | D55: 123 | E55: 00:01:10.452 | F55: 61,32km/h | K55: 6 | L55: 00:01:10.085 | M55: 00:01:11.003 | N55: 00:01:10.096
A56: 1 | B56: Daniel Nahum | C56: 18 | D56: 123 | E56: 00:01:10.096 | F56: 61,63km/h | K56: 7 | L56: 00:01:10.273 | M56: 00:01:11.058 | N56: 00:01:10.197
A57: 1 | B57: Daniel Nahum | C57: 18 | D57: 123 | E57: 00:01:10.197 | F57: 61,54km/h | K57: 8 | L57: 00:01:10.182 | M57: 00:01:10.914 | N57: 00:01:10.202
A58: 1 | B58: Daniel Nahum | C58: 18 | D58: 123 | E58: 00:01:10.202 | F58: 61,54km/h | K58: 9 | L58: 00:01:09.989 | M58: 00:01:11.322 | N58: 00:01:09.951
A59: 1 | B59: Daniel Nahum | C59: 18 | D59: 123 | E59: 00:01:09.951 | F59: 61,76km/h | K59: 10 | L59: 00:01:09.909 | M59: 00:01:10.919 | N59: 00:01:10.010
A60: 1 | B60: Daniel Nahum | C60: 18 | D60: 123 | E60: 00:01:10.010 | F60: 61,71km/h | K60: 11 | L60: 00:01:09.927 | M60: 00:01:10.817 | N60: 00:01:09.873
A61: 1 | B61: Daniel Nahum | C61: 18 | D61: 123 | E61: 00:01:09.873 | F61: 61,83km/h | K61: 12 | L61: 00:01:10.016 | M61: 00:01:11.171 | N61: 00:01:10.064
A62: 1 | B62: Daniel Nahum | C62: 18 | D62: 123 | E62: 00:01:10.064 | F62: 61,66km/h | K62: 13 | L62: 00:01:10.089 | M62: 00:01:10.854 | N62: 00:01:10.030
A63: 1 | B63: Daniel Nahum | C63: 18 | D63: 123 | E63: 00:01:10.030 | F63: 61,69km/h | K63: 14 | L63: 00:01:09.899 | M63: 00:01:11.071 | N63: 00:01:09.886
A64: 1 | B64: Daniel Nahum | C64: 18 | D64: 123 | E64: 00:01:09.886 | F64: 61,81km/h | K64: 15 | L64: 00:01:09.984 | M64: 00:01:11.434 | N64: 00:01:09.989
A65: 1 | B65: Daniel Nahum | C65: 18 | D65: 123 | E65: 00:01:09.989 | F65: 61,72km/h | K65: 16 | L65: 00:01:09.775 | M65: 00:01:11.454 | N65: 00:01:09.837
A66: 1 | B66: Daniel Nahum | C66: 18 | D66: 123 | E66: 00:01:09.837 | F66: 61,86km/h | K66: 17 | L66: 00:01:10.173 | M66: 00:01:11.562 | N66: 00:01:09.849
A67: 1 | B67: Daniel Nahum | C67: 18 | D67: 123 | E67: 00:01:09.849 | F67: 61,85km/h | K67: 18 | L67: 00:01:11.746 | M67: 00:01:14.094 | N67: 00:01:10.295
A68: 1 | B68: Daniel Nahum | C68: 18 | D68: 123 | E68: 00:01:10.295 | F68: 61,46km/h | K68: 19
A69: 1 | B69: Marcelo Campos | C69: 18 | D69: 104 | E69: 00:01:13.010 | F69: 59,17km/h | K69: 20
A70: 1 | B70: Marcelo Campos | C70: 18 | D70: 104 | E70: 00:01:10.628 | F70: 61,17km/h | K70: 21
A71: 1 | B71: Marcelo Campos | C71: 18 | D71: 104 | E71: 00:01:10.387 | F71: 61,37km/h | K71: 22
A72: 1 | B72: Marcelo Campos | C72: 18 | D72: 104 | E72: 00:01:10.240 | F72: 61,5km/h | K72: 23
A73: 1 | B73: Marcelo Campos | C73: 18 | D73: 104 | E73: 00:01:10.684 | F73: 61,12km/h | K73: 24
A74: 1 | B74: Marcelo Campos | C74: 18 | D74: 104 | E74: 00:01:10.085 | F74: 61,64km/h | K74: 25
A75: 1 | B75: Marcelo Campos | C75: 18 | D75: 104 | E75: 00:01:10.273 | F75: 61,47km/h | K75: 26
A76: 1 | B76: Marcelo Campos | C76: 18 | D76: 104 | E76: 00:01:10.182 | F76: 61,55km/h | K76: 27
A77: 1 | B77: Marcelo Campos | C77: 18 | D77: 104 | E77: 00:01:09.989 | F77: 61,72km/h | K77: 28
A78: 1 | B78: Marcelo Campos | C78: 18 | D78: 104 | E78: 00:01:09.909 | F78: 61,79km/h | K78: 29
A79: 1 | B79: Marcelo Campos | C79: 18 | D79: 104 | E79: 00:01:09.927 | F79: 61,78km/h | K79: 30
A80: 1 | B80: Marcelo Campos | C80: 18 | D80: 104 | E80: 00:01:10.016 | F80: 61,7km/h | K80: 31
A81: 1 | B81: Marcelo Campos | C81: 18 | D81: 104 | E81: 00:01:10.089 | F81: 61,64km/h | K81: 32
A82: 1 | B82: Marcelo Campos | C82: 18 | D82: 104 | E82: 00:01:09.899 | F82: 61,8km/h | K82: 33
A83: 1 | B83: Marcelo Campos | C83: 18 | D83: 104 | E83: 00:01:09.984 | F83: 61,73km/h | K83: 34
A84: 1 | B84: Marcelo Campos | C84: 18 | D84: 104 | E84: 00:01:09.775 | F84: 61,91km/h | K84: 35
A85: 1 | B85: Marcelo Campos | C85: 18 | D85: 104 | E85: 00:01:10.173 | F85: 61,56km/h | K85: 36
A86: 1 | B86: Marcelo Campos | C86: 18 | D86: 104 | E86: 00:01:11.746 | F86: 60,21km/h | K86: 37
A87: 1 | B87: Marcelo Pereira | C87: 18 | D87: 133 | E87: 00:01:14.791 | F87: 57,76km/h | K87: 38
A88: 1 | B88: Marcelo Pereira | C88: 18 | D88: 133 | E88: 00:01:11.330 | F88: 60,56km/h | K88: 39
A89: 1 | B89: Marcelo Pereira | C89: 18 | D89: 133 | E89: 00:01:11.504 | F89: 60,42km/h | K89: 40
A90: 1 | B90: Marcelo Pereira | C90: 18 | D90: 133 | E90: 00:01:11.160 | F90: 60,71km/h | K90: 41
A91: 1 | B91: Marcelo Pereira | C91: 18 | D91: 133 | E91: 00:01:11.042 | F91: 60,81km/h | K91: 42
A92: 1 | B92: Marcelo Pereira | C92: 18 | D92: 133 | E92: 00:01:11.003 | F92: 60,84km/h | K92: 43
A93: 1 | B93: Marcelo Pereira | C93: 18 | D93: 133 | E93: 00:01:11.058 | F93: 60,8km/h | K93: 44
A94: 1 | B94: Marcelo Pereira | C94: 18 | D94: 133 | E94: 00:01:10.914 | F94: 60,92km/h | K94: 45
A95: 1 | B95: Marcelo Pereira | C95: 18 | D95: 133 | E95: 00:01:11.322 | F95: 60,57km/h | K95: 46
A96: 1 | B96: Marcelo Pereira | C96: 18 | D96: 133 | E96: 00:01:10.919 | F96: 60,91km/h | K96: 47
A97: 1 | B97: Marcelo Pereira | C97: 18 | D97: 133 | E97: 00:01:10.817 | F97: 61km/h | K97: 48
A98: 1 | B98: Marcelo Pereira | C98: 18 | D98: 133 | E98: 00:01:11.171 | F98: 60,7km/h | K98: 49
A99: 1 | B99: Marcelo Pereira | C99: 18 | D99: 133 | E99: 00:01:10.854 | F99: 60,97km/h | K99: 50
A100: 1 | B100: Marcelo Pereira | C100: 18 | D100: 133 | E100: 00:01:11.071 | F100: 60,78km/h | K100: 51
A101: 1 | B101: Marcelo Pereira | C101: 18 | D101: 133 | E101: 00:01:11.434 | F101: 60,48km/h | K101: 52
A102: 1 | B102: Marcelo Pereira | C102: 18 | D102: 133 | E102: 00:01:11.454 | F102: 60,46km/h | K102: 53
A103: 1 | B103: Marcelo Pereira | C103: 18 | D103: 133 | E103: 00:01:11.562 | F103: 60,37km/h | K103: 54
A104: 1 | B104: Marcelo Pereira | C104: 18 | D104: 133 | E104: 00:01:14.094 | F104: 58,3km/h | K104: 55
A105: 1 | B105: Luciano Robervine | C105: 18 | D105: 124 | E105: 00:01:14.499 | F105: 57,99km/h | K105: 56
A106: 1 | B106: Luciano Robervine | C106: 18 | D106: 124 | E106: 00:01:11.539 | F106: 60,39km/h | K106: 57
A107: 1 | B107: Luciano Robervine | C107: 18 | D107: 124 | E107: 00:01:11.425 | F107: 60,48km/h | K107: 58
A108: 1 | B108: Luciano Robervine | C108: 18 | D108: 124 | E108: 00:01:11.114 | F108: 60,75km/h | K108: 59
A109: 1 | B109: Luciano Robervine | C109: 18 | D109: 124 | E109: 00:01:10.975 | F109: 60,87km/h | K109: 60
A110: 1 | B110: Luciano Robervine | C110: 18 | D110: 124 | E110: 00:01:11.100 | F110: 60,76km/h | K110: 61
A111: 1 | B111: Luciano Robervine | C111: 18 | D111: 124 | E111: 00:01:11.004 | F111: 60,84km/h | K111: 62
A112: 1 | B112: Luciano Robervine | C112: 18 | D112: 124 | E112: 00:01:11.096 | F112: 60,76km/h | K112: 63
A113: 1 | B113: Luciano Robervine | C113: 18 | D113: 124 | E113: 00:01:11.234 | F113: 60,65km/h
A114: 1 | B114: Luciano Robervine | C114: 18 | D114: 124 | E114: 00:01:10.892 | F114: 60,94km/h
A115: 1 | B115: Luciano Robervine | C115: 18 | D115: 124 | E115: 00:01:10.927 | F115: 60,91km/h
A116: 1 | B116: Luciano Robervine | C116: 18 | D116: 124 | E116: 00:01:11.119 | F116: 60,74km/h
A117: 1 | B117: Luciano Robervine | C117: 18 | D117: 124 | E117: 00:01:10.781 | F117: 61,03km/h
A118: 1 | B118: Luciano Robervine | C118: 18 | D118: 124 | E118: 00:01:11.138 | F118: 60,73km/h
A119: 1 | B119: Luciano Robervine | C119: 18 | D119: 124 | E119: 00:01:11.715 | F119: 60,24km/h
A120: 1 | B120: Luciano Robervine | C120: 18 | D120: 124 | E120: 00:01:11.682 | F120: 60,27km/h
A121: 1 | B121: Luciano Robervine | C121: 18 | D121: 124 | E121: 00:01:11.551 | F121: 60,38km/h
A122: 1 | B122: Luciano Robervine | C122: 18 | D122: 124 | E122: 00:01:13.982 | F122: 58,39km/h
A123: 1 | B123: Frederico Papatella | C123: 18 | D123: 129 | E123: 00:01:15.444 | F123: 57,26km/h
A124: 1 | B124: Frederico Papatella | C124: 18 | D124: 129 | E124: 00:01:12.367 | F124: 59,7km/h
A125: 1 | B125: Frederico Papatella | C125: 18 | D125: 129 | E125: 00:01:12.587 | F125: 59,51km/h
A126: 1 | B126: Frederico Papatella | C126: 18 | D126: 129 | E126: 00:01:11.491 | F126: 60,43km/h
A127: 1 | B127: Frederico Papatella | C127: 18 | D127: 129 | E127: 00:01:10.735 | F127: 61,07km/h
A128: 1 | B128: Frederico Papatella | C128: 18 | D128: 129 | E128: 00:01:11.493 | F128: 60,43km/h
A129: 1 | B129: Frederico Papatella | C129: 18 | D129: 129 | E129: 00:01:10.829 | F129: 60,99km/h
A130: 1 | B130: Frederico Papatella | C130: 18 | D130: 129 | E130: 00:01:10.883 | F130: 60,95km/h
A131: 1 | B131: Frederico Papatella | C131: 18 | D131: 129 | E131: 00:01:11.102 | F131: 60,76km/h
A132: 1 | B132: Frederico Papatella | C132: 18 | D132: 129 | E132: 00:01:10.886 | F132: 60,94km/h
A133: 1 | B133: Frederico Papatella | C133: 18 | D133: 129 | E133: 00:01:10.988 | F133: 60,86km/h
A134: 1 | B134: Frederico Papatella | C134: 18 | D134: 129 | E134: 00:01:10.962 | F134: 60,88km/h
A135: 1 | B135: Frederico Papatella | C135: 18 | D135: 129 | E135: 00:01:10.757 | F135: 61,05km/h
A136: 1 | B136: Frederico Papatella | C136: 18 | D136: 129 | E136: 00:01:10.662 | F136: 61,14km/h
A137: 1 | B137: Frederico Papatella | C137: 18 | D137: 129 | E137: 00:01:10.744 | F137: 61,07km/h
A138: 1 | B138: Frederico Papatella | C138: 18 | D138: 129 | E138: 00:01:10.915 | F138: 60,92km/h
A139: 1 | B139: Frederico Papatella | C139: 18 | D139: 129 | E139: 00:01:10.890 | F139: 60,94km/h
A140: 1 | B140: Frederico Papatella | C140: 18 | D140: 129 | E140: 00:01:13.150 | F140: 59,06km/h
A141: 1 | B141: Jarbas Reis | C141: 18 | D141: 144 | E141: 00:01:15.998 | F141: 56,84km/h
A142: 1 | B142: Jarbas Reis | C142: 18 | D142: 144 | E142: 00:01:13.801 | F142: 58,54km/h
A143: 1 | B143: Jarbas Reis | C143: 18 | D143: 144 | E143: 00:01:11.785 | F143: 60,18km/h
A144: 1 | B144: Jarbas Reis | C144: 18 | D144: 144 | E144: 00:01:12.553 | F144: 59,54km/h
A145: 1 | B145: Jarbas Reis | C145: 18 | D145: 144 | E145: 00:01:12.071 | F145: 59,94km/h
A146: 1 | B146: Jarbas Reis | C146: 18 | D146: 144 | E146: 00:01:11.086 | F146: 60,77km/h
A147: 1 | B147: Jarbas Reis | C147: 18 | D147: 144 | E147: 00:01:12.401 | F147: 59,67km/h
A148: 1 | B148: Jarbas Reis | C148: 18 | D148: 144 | E148: 00:01:11.096 | F148: 60,76km/h
A149: 1 | B149: Jarbas Reis | C149: 18 | D149: 144 | E149: 00:01:10.655 | F149: 61,14km/h
A150: 1 | B150: Jarbas Reis | C150: 18 | D150: 144 | E150: 00:01:10.627 | F150: 61,17km/h
A151: 1 | B151: Jarbas Reis | C151: 18 | D151: 144 | E151: 00:01:10.634 | F151: 61,16km/h
A152: 1 | B152: Jarbas Reis | C152: 18 | D152: 144 | E152: 00:01:10.437 | F152: 61,33km/h
A153: 1 | B153: Jarbas Reis | C153: 18 | D153: 144 | E153: 00:01:10.216 | F153: 61,52km/h
A154: 1 | B154: Jarbas Reis | C154: 18 | D154: 144 | E154: 00:01:10.315 | F154: 61,44km/h
A155: 1 | B155: Jarbas Reis | C155: 18 | D155: 144 | E155: 00:01:11.284 | F155: 60,6km/h
A156: 1 | B156: Jarbas Reis | C156: 18 | D156: 144 | E156: 00:01:10.689 | F156: 61,11km/h
A157: 1 | B157: Jarbas Reis | C157: 18 | D157: 144 | E157: 00:01:10.498 | F157: 61,28km/h
A158: 1 | B158: Jarbas Reis | C158: 18 | D158: 144 | E158: 00:01:11.246 | F158: 60,63km/h
A159: 1 | B159: Rodrigo Mercadante | C159: 18 | D159: 140 | E159: 00:01:15.508 | F159: 57,21km/h
A160: 1 | B160: Rodrigo Mercadante | C160: 18 | D160: 140 | E160: 00:01:13.467 | F160: 58,8km/h
A161: 1 | B161: Rodrigo Mercadante | C161: 18 | D161: 140 | E161: 00:01:12.253 | F161: 59,79km/h
A162: 1 | B162: Rodrigo Mercadante | C162: 18 | D162: 140 | E162: 00:01:12.672 | F162: 59,45km/h
A163: 1 | B163: Rodrigo Mercadante | C163: 18 | D163: 140 | E163: 00:01:11.606 | F163: 60,33km/h
A164: 1 | B164: Rodrigo Mercadante | C164: 18 | D164: 140 | E164: 00:01:11.214 | F164: 60,66km/h
A165: 1 | B165: Rodrigo Mercadante | C165: 18 | D165: 140 | E165: 00:01:11.049 | F165: 60,8km/h
A166: 1 | B166: Rodrigo Mercadante | C166: 18 | D166: 140 | E166: 00:01:10.646 | F166: 61,15km/h
A167: 1 | B167: Rodrigo Mercadante | C167: 18 | D167: 140 | E167: 00:01:11.009 | F167: 60,84km/h
A168: 1 | B168: Rodrigo Mercadante | C168: 18 | D168: 140 | E168: 00:01:11.047 | F168: 60,8km/h
A169: 1 | B169: Rodrigo Mercadante | C169: 18 | D169: 140 | E169: 00:01:10.951 | F169: 60,89km/h
A170: 1 | B170: Rodrigo Mercadante | C170: 18 | D170: 140 | E170: 00:01:10.473 | F170: 61,3km/h
A171: 1 | B171: Rodrigo Mercadante | C171: 18 | D171: 140 | E171: 00:01:10.868 | F171: 60,96km/h
A172: 1 | B172: Rodrigo Mercadante | C172: 18 | D172: 140 | E172: 00:01:11.143 | F172: 60,72km/h
A173: 1 | B173: Rodrigo Mercadante | C173: 18 | D173: 140 | E173: 00:01:11.853 | F173: 60,12km/h
A174: 1 | B174: Rodrigo Mercadante | C174: 18 | D174: 140 | E174: 00:01:10.479 | F174: 61,29km/h
A175: 1 | B175: Rodrigo Mercadante | C175: 18 | D175: 140 | E175: 00:01:10.446 | F175: 61,32km/h
A176: 1 | B176: Rodrigo Mercadante | C176: 18 | D176: 140 | E176: 00:01:11.341 | F176: 60,55km/h
A177: 1 | B177: Cláudio Dumont | C177: 18 | D177: 120 | E177: 00:01:15.464 | F177: 57,25km/h
A178: 1 | B178: Cláudio Dumont | C178: 18 | D178: 120 | E178: 00:01:12.460 | F178: 59,62km/h
A179: 1 | B179: Cláudio Dumont | C179: 18 | D179: 120 | E179: 00:01:12.396 | F179: 59,67km/h
A180: 1 | B180: Cláudio Dumont | C180: 18 | D180: 120 | E180: 00:01:12.063 | F180: 59,95km/h
A181: 1 | B181: Cláudio Dumont | C181: 18 | D181: 120 | E181: 00:01:10.822 | F181: 61km/h
A182: 1 | B182: Cláudio Dumont | C182: 18 | D182: 120 | E182: 00:01:11.959 | F182: 60,03km/h
A183: 1 | B183: Cláudio Dumont | C183: 18 | D183: 120 | E183: 00:01:11.229 | F183: 60,65km/h
A184: 1 | B184: Cláudio Dumont | C184: 18 | D184: 120 | E184: 00:01:10.976 | F184: 60,87km/h
A185: 1 | B185: Cláudio Dumont | C185: 18 | D185: 120 | E185: 00:01:10.961 | F185: 60,88km/h
A186: 1 | B186: Cláudio Dumont | C186: 18 | D186: 120 | E186: 00:01:11.132 | F186: 60,73km/h
A187: 1 | B187: Cláudio Dumont | C187: 18 | D187: 120 | E187: 00:01:10.992 | F187: 60,85km/h
A188: 1 | B188: Cláudio Dumont | C188: 18 | D188: 120 | E188: 00:01:11.055 | F188: 60,8km/h
A189: 1 | B189: Cláudio Dumont | C189: 18 | D189: 120 | E189: 00:01:10.931 | F189: 60,9km/h
A190: 1 | B190: Cláudio Dumont | C190: 18 | D190: 120 | E190: 00:01:11.136 | F190: 60,73km/h
A191: 1 | B191: Cláudio Dumont | C191: 18 | D191: 120 | E191: 00:01:12.213 | F191: 59,82km/h
A192: 1 | B192: Cláudio Dumont | C192: 18 | D192: 120 | E192: 00:01:10.625 | F192: 61,17km/h
A193: 1 | B193: Cláudio Dumont | C193: 18 | D193: 120 | E193: 00:01:10.873 | F193: 60,95km/h
A194: 1 | B194: Cláudio Dumont | C194: 18 | D194: 120 | E194: 00:01:11.084 | F194: 60,77km/h
A195: 1 | B195: Guilherme Alves | C195: 18 | D195: 126 | E195: 00:01:14.760 | F195: 57,78km/h
A196: 1 | B196: Guilherme Alves | C196: 18 | D196: 126 | E196: 00:01:12.992 | F196: 59,18km/h
A197: 1 | B197: Guilherme Alves | C197: 18 | D197: 126 | E197: 00:01:11.815 | F197: 60,15km/h
A198: 1 | B198: Guilherme Alves | C198: 18 | D198: 126 | E198: 00:01:11.867 | F198: 60,11km/h
A199: 1 | B199: Guilherme Alves | C199: 18 | D199: 126 | E199: 00:01:11.800 | F199: 60,17km/h
A200: 1 | B200: Guilherme Alves | C200: 18 | D200: 126 | E200: 00:01:12.237 | F200: 59,8km/h
A201: 1 | B201: Guilherme Alves | C201: 18 | D201: 126 | E201: 00:01:11.850 | F201: 60,13km/h
A202: 1 | B202: Guilherme Alves | C202: 18 | D202: 126 | E202: 00:01:11.057 | F202: 60,8km/h
A203: 1 | B203: Guilherme Alves | C203: 18 | D203: 126 | E203: 00:01:11.063 | F203: 60,79km/h
A204: 1 | B204: Guilherme Alves | C204: 18 | D204: 126 | E204: 00:01:11.111 | F204: 60,75km/h
A205: 1 | B205: Guilherme Alves | C205: 18 | D205: 126 | E205: 00:01:11.344 | F205: 60,55km/h
A206: 1 | B206: Guilherme Alves | C206: 18 | D206: 126 | E206: 00:01:10.983 | F206: 60,86km/h
A207: 1 | B207: Guilherme Alves | C207: 18 | D207: 126 | E207: 00:01:11.041 | F207: 60,81km/h
A208: 1 | B208: Guilherme Alves | C208: 18 | D208: 126 | E208: 00:01:11.571 | F208: 60,36km/h
A209: 1 | B209: Guilherme Alves | C209: 18 | D209: 126 | E209: 00:01:11.154 | F209: 60,71km/h
A210: 1 | B210: Guilherme Alves | C210: 18 | D210: 126 | E210: 00:01:11.182 | F210: 60,69km/h
A211: 1 | B211: Guilherme Alves | C211: 18 | D211: 126 | E211: 00:01:11.281 | F211: 60,61km/h
A212: 1 | B212: Guilherme Alves | C212: 18 | D212: 126 | E212: 00:01:11.527 | F212: 60,4km/h
A213: 1 | B213: Wesley Bambirra | C213: 18 | D213: 139 | E213: 00:01:15.554 | F213: 57,18km/h
A214: 1 | B214: Wesley Bambirra | C214: 18 | D214: 139 | E214: 00:01:13.593 | F214: 58,7km/h
A215: 1 | B215: Wesley Bambirra | C215: 18 | D215: 139 | E215: 00:01:11.607 | F215: 60,33km/h
A216: 1 | B216: Wesley Bambirra | C216: 18 | D216: 139 | E216: 00:01:12.264 | F216: 59,78km/h
A217: 1 | B217: Wesley Bambirra | C217: 18 | D217: 139 | E217: 00:01:11.756 | F217: 60,2km/h
A218: 1 | B218: Wesley Bambirra | C218: 18 | D218: 139 | E218: 00:01:11.215 | F218: 60,66km/h
... 386 more rows
